{"text_format":"1","workbook":"xlsx","n_sheets":19,"sheets":["Instructions","PDE3003 Summary","PDE3003 Equipment","PDE3004 Program Outline+Syllabi","CDL Program","PDE3003 Instructor List","PDE279 Instructor Qualification","Job Opportunities","Facility","Reading Levels","Externship","PN Clinicals","Distance Education","Enrollment Agreement","Catalog","Academic Performance","Financial Ledger","Documents","Submission"],"not_rendered":{"charts":0,"images":0,"macros":0,"external_links":0,"defined_names":16,"comments":0,"pivot_tables":0},"unopened":[],"bounds":{"document_bytes":16777216,"sheet_cells":100000,"rows_first":2000,"rows_last":500,"rows_between":2000,"halvings":0,"cell_chars":16384,"cell_head_chars":4096},"cells_cut":0,"cells_raw":0,"read":"whole","date_system":"1900"}

{"sheet":"Instructions","index":0,"n_rows":129,"n_cols":3,"rows_kept":129,"cut":false,"hidden":false,"merged":[[19,1,19,5],[20,1,20,6],[96,1,96,3],[93,1,93,4],[95,1,95,3],[35,1,35,2],[23,1,23,5],[40,1,40,4],[94,1,94,4]]}
["New Program Application"]
["Pennsylvania State Board of Private Licensed Schools"]
[]
["ATTENTION: THIS IS AN MICROSOFT EXCEL WORKBOOK.  Attempting to convert this document to any other format - including Mac/Apple Numbers - will cause this document to lose formatting and will deemed unacceptable for submission.  MS Excel must be used to complete this application."]
[]
["Do not attempt to unlock or modify this application.  You will be required to submit a new application if the submitted application is unlocked, unprotected, edited, or modified in any way."]
["If you experience issues with the application or require assistance, call the Division at (717)783-8228."]
[]
["Board staff communicates with school personnel during the application process and not any external consultants contracted to assist with the application process."]
[]
["Board staff is responsible for ensuring an application has all mandated information and documentation included before presenting the application to the Board for review.  "]
["Board staff is not responsible for the quality of the information or documentation included in applications.  "]
["Board staff may provide the school with guidance regarding the quality of the application, but this should not be considered a qualitative review of the application as that is the responsibility of the Board."]
["Ultimately it is the school's responsibility to ensure accurate, consistent, and full information is provided to the Board."]
["*The SharePoint links to the most recent applications uploaded by the school are shared with the Board.  The school is responsible for ensuring that the applications include all intended information and documents."]
[]
["New Program Application Seminar for Licensed/Registered Schools Required"]
[null,"Licensed/Registered schools intending to submit a New Program Application to the Board for consideration are required to have the individual completing the application, "]
[null,"or the individual certifying the application, participate in the 'New Director Seminar Part 1 - New Program Application' within the 12 months PRIOR to submission. "]
[null,"New Director Seminar Dates"]
[null,"New Director Seminar Registration Form"]
[]
["Published submission deadlines are firm for all items and can be viewed at:"]
[null,"Board Meeting Dates and Submission Deadlines"]
[]
[null,"Applications must be submitted/uploaded to SharePoint by the published deadline date."]
[null,"The submission must be uploaded by 2 p.m. on the deadline date.  "]
[null,"Applications submitted after 2 p.m. on the submission deadline date will be considered for the subsequent Board meeting."]
[]
[null,"The application fee, along with any site visit fees, must be received in our offices by the submission deadline."]
[]
["Fees / Fee Submission:"]
[null,"New Program Application - $1,400 (a maximum of three applications may be placed on the agenda for review per Board meeting)"]
[null,"Remote Location Site Visit(s) - $750 per site"]
[]
[null,"Online Payment Center"]
[]
[null,"Effective June 30, 2023, check and money order payments are no longer accepted.  All payments need to be made using the Online Payment Center. "]
[]
[null,"Review and follow the instructions for making an online payment:"]
[null,"Payment for Private Licensed School Fees"]
[]
[null,"Important Notes: "]
[null,"Please be sure to carefully select the correct Program ID (which is the service/item you are paying the fee for). Selecting an incorrect Program ID may delay the processing of the school's request, as the payment will be applied to the selected Program ID (service/item). "]
[null,"Program ID – 063 NEW PROGRAM APPLICATION CERTIFICATE/DIPLOMA"]
[null,"Payment Reference – please be sure to provide your school's name and city as the 'Payment Reference'. Failure to provide this information may delay the processing of the school's request as we will need to verify the source of any anonymous payments. "]
[null,"Email – to receive an emailed receipt of your payment, you must provide your email address when processing the payment.  Receiving an emailed receipt is recommended for all transactions, especially in the event the school fails to provide the school's name and city as the 'Payment Reference'. "]
[null,"There is a 2% transaction fee charged for credit cards.  There is no fee charged for ACH transactions. "]
[]
["Approval"]
[null,"Only when an application and the corresponding fees are received in our offices by the published submission deadline will Board staff review a New Program Application."]
[null,"No exceptions will be made.  No extensions will be provided. Submission deadlines are firm."]
[]
[null,"Staff will conduct a quantitative review of the application to ensure the application is materially complete and to confirm that the applicant is eligible to use the application prior to presenting the application to the Board for consideration."]
[null,"Staff will provide written notice of application deficiencies identified during the review.  Schools are strongly encouraged to cure staff-identified deficiencies to avoid potential delays in the approval of the application. "]
[null,"If a revised application is not submitted within the afforded 10-day revision time period, the revised application does not cure the identified deficiencies, or the application is otherwise materially incomplete the application will not be placed before the Board for consideration.  "]
[null,"Staff will place the New Program Application on the next Board meeting agenda only when the application is deemed materially complete.  "]
[null,"Applications expire one year following the submission deadline date in which the application was originally submitted for and are able to be considered for no more than four consecutive Board meetings."]
[]
[null,"The State Board of Private Licensed Schools will consider applications only when presented by Board staff, after staff has deemed the application is materially complete."]
[null,"The application will be assigned by the Division Chief to an appropriate Board member to serve as a reviewer of the application.  The Board member will conduct a qualitative review of the New Program Application."]
[null,"The application may also be assigned to the Board's Curriculum Committee (CC) as a reviewer for any distance education programming included in the application.  The CC will conduct a qualitative review of the applicant's distance education LMS, course materials, resources, etc."]
[null,"The applicant will be invited to attend the Board meeting in which the application's status will be voted on by the full Board."]
[null,"Staff will provide written confirmation of the Board's decision, along with notice of any deficiencies identified by the Board and the CC, as soon as possible following the Board meeting."]
[null,"The applicant will be afforded the opportunity to cure any application deficiencies, providing the request is not denied."]
[null,"If a revised application is not submitted within the afforded 10-day revision time period, the revised application does not cure the identified deficiencies, or the application is otherwise materially incomplete the application will not be placed before the Board for consideration.  "]
[]
[null,"The Board may vote to approve an application, approve it pending revisions, defer it for revisions and reconsideration at a subsequent Board meeting, or deny the application.  "]
[null,"The regulations afford the Board the authority to request additional information or materials from the applicant in addition to the information requested in this application."]
[]
[null,null,"An approved New Program Application enables the applicant to launch the approved program immediately. A written letter of approval will be sent by Board staff."]
[]
[null,null,"Applicants with an approved pending New Program Application will receive written notice from staff of any deficiencies identified by the Board and CC.  "]
[null,null,"The applicant will be afforded the opportunity to cure any application deficiencies and will receive a written letter of approval from Board staff when the deficiencies have been effectively cured."]
[null,null,"Approved pending New Program Applications expire one year following the Board meeting date on which the approved pending status was received."]
[null,null,"Once an application has expired, a new application and the corresponding fees will be required for any further consideration from the Board."]
[]
[null,null,"Applicants with a deferred New Program Application will receive written notice from staff of any deficiencies identified by the Board.  "]
[null,null,"The applicant will be afforded 10-days (refer to the resubmission deadline date provided in the cure letter) to cure any application deficiencies."]
[null,null,"If a revised application is not submitted within the afforded 10-day revision time period, the revised application does not cure the identified deficiencies, or the application is otherwise materially incomplete the application will need to be held for a subsequent meeting."]
[null,null,"It is important to note that not all necessary revisions may be identified during an initial or subsequent review.  As the application changes, additional concerns or inconsistencies may be identified.\t\t\t\t\t\t\t\t\t\t\t\t"]
[null,null,"Deferred New Program Applications expire one year following the submission deadline date in which the application was originally submitted for and are able to be considered for no more than four consecutive Board meetings."]
[null,null,"Once an application has expired, a new application and the corresponding fees will be required for any further consideration from the Board."]
[]
[null,null,"Applicants with a denied New Program Application will receive written notice of the denial from staff. "]
[null,null,"Applicants with a denied New Program Application should carefully consider the Board's feedback prior to future New Program Applications being submitted."]
[null,null,"Denied New Program Applications cannot be resubmitted and the same program from the applicant will not be immediately reconsidered."]
[]
["ATTENTION: THIS IS AN MICROSOFT EXCEL WORKBOOK.  Attempting to convert this document to any other format - including Mac/Apple Numbers - will cause this document to lose formatting and will deemed unacceptable for submission.  MS Excel must be used to complete this application."]
[]
["IMPORTANT - PLEASE READ"]
[]
["Carefully review the Statute, Regulations, and Board Policy Memos at:"]
[null,"Private Licensed Schools Act 174 of 1986"]
[null,"Private Licensed Schools Act 110 of 2019"]
[null,"22 Pa. Code Chapter 73"]
[null,"Board Policy Memos"]
[]
["Respond to all questions and requests for information/documentation.  Information may be added in the following ways:"]
[null,"1. Type directly in the box."]
[null,"2. Copy and paste text into the box."]
[null,"3. Embed documents as an icon."]
[null,null,"On the insert tab, choose Object.  Select Create from File, check to display as an icon.  Browse for your document."]
[null,null,"NOTE:  Always embed the document as an icon.  You should see a symbol (icon) in the application rather than the entire document. "]
[null,null,"If the entire document appears, you have not embedded the document as an icon."]
[]
[null,"The  application cannot exceed 200MB.  If your application is larger than 200MB, you may have included information that was not requested or you have embedded large files such as .jpg files.  "]
[null,"Change the format of any large files and eliminate anything that was not requested.  "]
[]
["File Naming Conventions"]
[null,"Begin the file name with the school name or abbreviation - if multiple campuses, note location - followed by the name or abbreviation of the program name."]
[null,"Do not use punctuation in the file name.  "]
[null,"NOTE:  When resubmitting revisions to the application, it is absolutely essential to use the exact same filename.  "]
[null,"NOTE:  When resubmitting revisions to the application, it is absolutely essential that the same registered user upload the revised application to SharePoint."]
[null,"Do not change the filename in any way.  Do not even add a number or date to indicate a new version."]
[]
["Right to Know"]
[null,"The Division of Law Enforcement Education and Trade Schools does not have the authority under the new Right to Know Law to determine that a specific document contains confidential or proprietary information.  "]
[null,"Any document submitted to the Division of Law Enforcement Education and Trade Schools may be considered public information that must be disclosed. This includes information in this application. "]
[null,"If a school wishes to have a document protected, the school must provide a written statement signed by a representative of the school indicating that the document contains confidential proprietary information or a trade secret.  "]
[null,"This office will notify the school if a request is submitted under Right to Know that includes such a document.  "]
[null,"The school will have the opportunity to provide input on the release of the document.  "]
[null,"Generally, the Department will deny a Right to Know request for information that the school has deemed to be confidential proprietary information.  "]
[null,"However, if a denial is appealed to the Office of Open Records (OOR), the school will be notified and can intervene and appeal to Commonwealth Court if the OOR rules that the information must be disclosed.  "]
[null,"If the school does not intervene and the OOR says the information must be disclosed, the Department will likely disclose it rather than filing an appeal with Commonwealth Court. "]
[]
["END OF INSTRUCTIONS - PROCEED TO NEXT WORKSHEET TAB"]
[]
["Updated:","2025-03-28"]

{"sheet":"PDE3003 Summary","index":1,"n_rows":311,"n_cols":15,"rows_kept":311,"cut":false,"hidden":false,"merged":[[6,14,6,23],[289,1,289,5],[290,1,290,6],[123,5,123,7],[137,1,139,10],[125,5,125,7],[127,5,127,7],[250,1,255,10],[8,3,8,10],[10,3,10,10],[12,3,12,10],[121,5,121,7],[101,1,101,4],[113,5,113,7],[115,5,115,7],[117,5,117,7],[69,4,74,6],[24,4,29,6],[55,4,60,6],[40,4,45,6],[88,4,93,6],[268,2,268,7],[222,2,222,9],[224,2,224,9],[257,2,257,7],[119,5,119,7],[273,2,273,3],[265,2,265,7],[129,5,129,7],[131,5,131,7],[303,1,308,3],[170,1,175,10],[184,1,189,10],[199,1,204,10],[213,2,213,9],[277,2,277,7],[280,9,280,10],[215,2,215,9],[217,2,217,9],[220,2,220,9],[270,9,270,10],[237,1,242,10],[257,14,257,15],[259,2,259,7],[259,14,259,15],[261,2,261,7],[261,14,261,15]]}
["New Program Application"]
["Pennsylvania State Board of Private Licensed Schools"]
[]
[null,null,"Title of Proposed Program:",null,null,null,null,null,null,null,null,null,null,"Proposed CIP Code:"]
[null,null,null,"The program's name as it will appear on all advertising and documentation.",null,null,null,null,null,null,null,null,null,null,"Visit the NCES CIP Code Search using the link below:"]
[]
[null,null,"Name of School:",null,null,null,null,null,null,null,null,null,null,null,"Classification of Instructional Programs, National Center for Education Statistics, US Department of Education"]
[]
[null,null,"Address of School:"]
[]
[]
[]
[]
[null,null,null,"City, State and Zip Code"]
[]
["Substantive Program Change Request"]
[]
[null,"Is this an already Board-approved program, for which the school is requesting a 25% or more change?",null,null,null,null,null,null,null,null,"If no, proceed to next section."]
[]
[null,null,"Title of Existing Program:",null,null,null,null,null,null,null,null,null,null,"Existing Program CIP Code:"]
[]
[null,null,"If yes, please embed a copy of the program's original approval letter. "]
[null,null,"If the program has been changed since the original approval, please additionally embed a copy of the most recent program change approval letter."]
[]
[]
[]
[]
[]
[]
[]
[]
[null,null,"Approved Program Award:",null,null,"Diploma",null,null,null,"AST"]
[null,null,null,null,null,"Certificate"]
[]
[null,null,"Approved program graduation rate:"]
[]
[null,null,"Approved program placement rate:"]
[]
[null,null,"Provide documentation that demonstrates evidence of the above reported graduation and placement rates."]
[]
[]
[]
[]
[]
[]
[]
[]
[null,null,"Will the proposed program replace the existing program?"]
[]
[null,null,null,"If yes, what is the anticipated date the last student(s) will graduate?"]
[]
[null,null,"Anticipated date of revised program implementation:"]
[]
[null,null,"Embed a document that provides a narrative of, and rationale for, the proposed changes."]
[]
[]
[]
[]
[]
[]
[]
[]
["Transfer Program Request"]
[]
[null,"Is this exact program already approved at another licensed school operating under the same ownership?",null,null,null,null,null,null,null,null,"If no, proceed to next section."]
[]
[null,null,"If yes, please embed a copy of the program's approval letter for the other licensed school."]
[null,null,"If the program has been changed since the original approval, please additionally embed a copy of the most recent program change approval letter."]
[]
[]
[]
[]
[]
[]
[]
[]
[null,null,"If this application is approved to have the program offered at the proposed school, "]
[null,null,"will the program ultimately be discontinued at the other school already approved to offer the program?"]
[]
[null,null,"Approved Program Award:",null,null,"Diploma",null,null,null,"AST"]
[null,null,null,null,null,"Certificate"]
[]
[null,null,"Approved program graduation rate:"]
[]
[null,null,"Approved program placement rate:"]
[]
[null,null,"Provide documentation that demonstrates evidence of the above reported graduation and placement rates."]
[]
[]
[]
[]
[]
[]
[]
[]
["Length of Program: "]
[]
[null,null,"No. of Clock Hours OR",null,null,"No. of Semester Credit Hours OR",null,null,null,"No. of Quarter Credit Hours OR",null,null,null,"No. of Lessons (correspondence program/course only)"]
[]
["Time to Complete: "]
[]
[]
[null,"The number of days, weeks, or months required to complete the program on a standard schedule."]
[]
["Cost of Program:"]
[]
[null,null,"Registration/Application Fee"]
[]
[null,null,"Tuition (for full length of program)"]
[]
[null,{"$f":"D114+D116+D118+D120+D122+D124+D126+D128+D130+D132","v":0},"Other Fees Collected by the School (will be calculated automatically according to the itemized fees listed below)"]
[null,null,"Note: Fees are to be itemized on the enrollment agreement and catalog as well."]
[]
[null,null,"Fee Amount:",null,"Purpose:"]
[]
[null,null,"Fee Amount:",null,"Purpose:"]
[]
[null,null,"Fee Amount:",null,"Purpose:"]
[]
[null,null,"Fee Amount:",null,"Purpose:"]
[]
[null,null,"Fee Amount:",null,"Purpose:"]
[]
[null,null,"Fee Amount:",null,"Purpose:"]
[]
[null,null,"Fee Amount:",null,"Purpose:"]
[]
[null,null,"Fee Amount:",null,"Purpose:"]
[]
[null,null,"Fee Amount:",null,"Purpose:"]
[]
[null,null,"Fee Amount:",null,"Purpose:"]
[]
[null,{"$f":"B107+B109+B111","v":0},"Total Cost of Program"]
[]
[null,"If the total cost of the program is different than the registration/application fee + the tuition + the fees, please explain the difference and the expenses to students."]
[]
[]
[]
[]
[]
["Program Award:"]
[]
[null,"Diploma (best practice is to award a diploma for programs consisting of more than one course)"]
[]
[null,"Certificate (best practice is to award a certificate for programs consisting of only one course)"]
[]
["Other Information:"]
[]
[null,null,"Target date for start-up (must be after the next Board meeting date)"]
[]
[null,null,"Maximum number of students at start-up"]
[]
[null,null,"Maximum number of program starts per year"]
[]
["Will any component of the program be delivered by distance education?"]
[]
[]
[null,"If yes, the distance education worksheet in this program application must be completed."]
[]
[null,null,"Percentage of program to be offered by distance education"]
[]
["Entrance Requirements        "]
["List your school and program-specific entrance requirements (requirements for admission/enrollment - e.g., high school diploma or GED, driver's license, etc.)."]
["If a standardized test will be used, give its name and the minimum score acceptable for admission. "]
[]
["For truck driving programs, \nindicate whether a student must possess a Commercial Learners Permit upon admission or if this is obtained during the program. "]
[]
["Embed a document if the information extends beyond the provided text box."]
[]
[]
[]
[]
[]
[]
[]
[]
["Occupational Skills       "]
["State the major occupational skills that students will learn in sentence form. For example a statement such as the following IS sufficient: \"Upon successful completion of the program, the students will be able to assess a patient's vital signs, perform phlebotomy tactics, etc.\""]
["A statement such as the following is NOT sufficient: \"To prepare students with the skills needed to become Executive Secretaries.\" "]
[]
["Provide the program-specific occupational skills to be obtained as a result of the successful completion of the program in sentence form."]
["Embed a document if the information extends beyond the provided text box."]
[]
[]
[]
[]
[]
[]
[]
[]
["Employment Opportunities        "]
["State the type of employment for which graduates will be qualified. "]
[]
["Include specific job titles (e.g., Machinist, Dental Assistant). "]
[]
["List the program-specific job titles for which a graduate of the program will be able to apply for."]
["Embed a document if the information extends beyond the provided text box."]
[]
[]
[]
[]
[]
[]
[]
[]
["Branch Locations (PLS Board-Approved)"]
[]
["Will the program be offered at additional sites (branch locations) that operate under the same license?"]
[]
[]
[null,"If yes, list intended branch locations below."]
[]
["Address of Branch:"]
[]
[]
[]
[]
[null,null,"City, State and Zip Code"]
[]
["Address of Branch:"]
[]
[]
[]
[]
[null,null,"City, State and Zip Code"]
[]
["Remote Locations"]
[]
["Will the program require the use of remote locations?"]
[]
[]
[null,"If yes, the corresponding information on the facility worksheet in this program application must be completed."]
[]
["Describe the remote location and the need for the site. "]
["Embed a document if the information extends beyond the provided text box."]
[]
[]
[]
[]
[]
[]
[]
[]
["Accreditation"]
[]
["If the school is accredited, provide evidence of the school's current accreditation status."]
["Additionally, if this is an existing program with substantive changes, or an existing program to be transferred to another school, and the program is accredited, provide evidence of the program's current accreditation status."]
["Embed documents below."]
[]
[]
[]
[]
[]
[]
[]
[]
[null,"Name of accreditor:",null,null,null,null,null,null,null,null,"Accreditation expiration date:",null,null,"Accreditation status:"]
[]
[null,"Name of accreditor:",null,null,null,null,null,null,null,null,"Accreditation expiration date:",null,null,"Accreditation status:"]
[]
[null,"Name of accreditor:",null,null,null,null,null,null,null,null,"Accreditation expiration date:",null,null,"Accreditation status:"]
[]
["Certification of the person completing this application:"]
[]
[null,"Name:"]
[null,null,"By placing my name above, I certify with my electronic signature that the information contained in this application is accurate."]
[]
[null,"Affiliation with the school:"]
[]
[null,"E-mail:",null,null,null,null,null,null,"Phone:"]
[null,null,"The Division will communicate with the applicant using this e-mail address. Be sure that this e-mail address is valid and correct and that it is checked regularly."]
[]
[null,"Date of Certification:"]
[]
["Certification of the school's Director:"]
[]
[null,"Name:"]
[null,null,"By placing my name above, I certify with my electronic signature that the information contained in this application is accurate."]
[]
[null,"E-mail:",null,null,null,null,null,null,"Phone:"]
[null,null,"The Division will communicate with the applicant using this e-mail address. Be sure that this e-mail address is valid and correct and that it is checked regularly."]
[]
[null,"Date of Certification:"]
[]
["New Program Application Seminar attendance date:"]
[]
[null,"Licensed/Registered schools intending to submit a New Program Application to the Board for consideration are required to have the individual completing the application, "]
[null,"or the individual certifying the application, participate in the 'New Director Seminar Part 1 - New Program Application' within the 12 months PRIOR to submission. "]
[null,"New Director Seminar Dates"]
[null,"New Director Seminar Registration Form"]
[]
[null,"For new school applicants, the individual completing the application, or the individual certifying the application will provide the New School Applicant Orientation certificate of"]
[null,"of attendance as evidence of participation in the New Program Application seminar."]
[]
[null,"Attendee Name:",null,null,null,null,null,null,null,"Date Attended:"]
[]
[null,null,"Attendee's affiliation with the school or their position at the school:"]
[]
[]
[]
["Embed a copy of the attendee's certificate of attendance."]
[]
[]
[]
[]
[]
[]
[]
[]
["END OF PDE3003 SUMMARY - PROCEED TO NEXT WORKSHEET TAB"]

{"sheet":"PDE3003 Equipment","index":2,"n_rows":70,"n_cols":14,"rows_kept":70,"cut":false,"hidden":false,"merged":[]}
["New Program Application"]
["Pennsylvania State Board of Private Licensed Schools"]
[]
["List the major pieces of equipment to be used by students in the program. "]
["List only the equipment to be used in this program. DO NOT give a comprehensive list of all of the school's equipment. Do not list supplies."]
[null,null,null,null,null,null,null,null,null,null,null,"Choose one:"]
[null,null,null,null,null,null,null,null,null,null,null,"On-Site",null,"Student:Equipment "]
[null,"Item of Equipment",null,"Quantity",null,"Make",null,"Model",null,"Specifications",null,"To-be-Ordered",null,"Ratio"]
[]
["Example:","Nursing Skills Manikin",null,4,null,"Life/form",null,"Keri Complete",null,"Visual / Range of Motion / Simulations",null,"On-Site",null,"3:1"]
[]
[]
[]
[]
[]
[]
[]
[]
[]
[]
[]
[]
[]
[]
[]
[]
[]
[]
[]
[]
[]
[]
[]
[]
[]
[]
[]
[]
[]
[]
[]
[]
[]
[]
[]
[]
[]
[]
[]
[]
[]
[]
[]
[]
[]
[]
[]
[]
[]
[]
[]
[]
[]
[]
[]
[]
[]
[]
[]
["END OF PDE3003 EQUIPMENT - PROCEED TO NEXT WORKSHEET TAB"]

{"sheet":"PDE3004 Program Outline+Syllabi","index":3,"n_rows":300,"n_cols":42,"rows_kept":300,"cut":false,"hidden":false,"merged":[[289,39,289,41],[212,3,215,3],[212,7,215,7],[217,3,220,3],[217,7,220,7],[222,3,225,3],[222,7,225,7],[197,3,200,3],[197,7,200,7],[202,3,205,3],[202,7,205,7],[207,3,210,3],[207,7,210,7],[252,7,255,7],[257,7,260,7],[247,7,250,7],[282,7,285,7],[277,7,280,7],[272,7,275,7],[267,7,270,7],[262,7,265,7],[282,3,285,3],[237,3,240,3],[267,3,270,3],[22,1,22,4],[23,1,23,4],[32,27,32,41],[227,3,230,3],[227,7,230,7],[232,3,235,3],[232,7,235,7],[182,3,185,3],[182,7,185,7],[187,3,190,3],[187,7,190,7],[132,3,135,3],[132,7,135,7],[152,3,155,3],[152,7,155,7],[167,3,170,3],[167,7,170,7],[172,3,175,3],[172,7,175,7],[177,3,180,3],[177,7,180,7],[52,7,55,7],[52,3,55,3],[37,3,40,3],[272,3,275,3],[277,3,280,3],[257,3,260,3],[262,3,265,3],[252,3,255,3],[242,3,245,3],[137,3,140,3],[137,7,140,7],[142,3,145,3],[142,7,145,7],[192,3,195,3],[192,7,195,7],[147,3,150,3],[147,7,150,7],[157,3,160,3],[157,7,160,7],[162,3,165,3],[162,7,165,7],[237,7,240,7],[242,7,245,7],[42,3,45,3],[37,7,40,7],[42,7,45,7],[47,7,50,7],[47,3,50,3],[82,3,85,3],[77,3,80,3],[72,3,75,3],[82,7,85,7],[77,7,80,7],[72,7,75,7],[67,3,70,3],[67,7,70,7],[62,7,65,7],[57,7,60,7],[57,3,60,3],[62,3,65,3],[97,7,100,7],[92,7,95,7],[87,7,90,7],[97,3,100,3],[87,3,90,3],[92,3,95,3],[107,3,110,3],[102,3,105,3],[102,7,105,7],[107,7,110,7],[112,7,115,7],[112,3,115,3],[117,7,120,7],[127,3,130,3],[122,3,125,3],[117,3,120,3],[122,7,125,7],[298,35,298,37],[299,33,299,39],[293,35,293,37],[295,31,295,33],[295,35,295,37],[296,31,296,33],[296,35,296,37],[289,31,289,33],[289,35,289,37],[290,31,290,33],[290,35,290,37],[292,35,292,37],[290,39,290,41],[295,39,295,41],[296,39,296,41],[127,7,130,7],[247,3,250,3]]}
["New Program Application"]
["Pennsylvania State Board of Private Licensed Schools"]
[]
["Provide the required information for ALL program courses (if a correspondence program, list the lessons) in the sequence they will be offered."]
[]
["Distance Education notes:"]
[null,"Assign a course number different from the on-ground course number for courses being taught via distance education or to be taught via distance education."]
[null,"Courses taught in part via distance education (hybrid) are still considered distance education and must be assigned a new course number."]
[null,"Course catalogs must reflect the on-ground and/or distance education assigned course numbers, when both delivery options are available to students."]
[null,"Academic transcripts must reflect the on-ground and/or distance education assigned course numbers attempted by the student."]
[]
[null,"1. List the on-ground course number for any course taught only face-to-face at an approved location."]
[null,"2. List the distance ed course number for any course taught by any means of distance education."]
[null,"3. If the course is available in both on-ground and distance education formats, list both course numbers."]
[null,"4. List all the distance education modalities to be used throughout the course."]
[]
[null,"If the course is available in both formats, both course numbers must be presented in the school catalog and ultimately reflected accordingly on the student's academic transcript."]
[]
["Embed a full syllabus for each course in the boxes below. Include both on-ground and distance education syllabi, as appropriate.  "]
["Do not combine syllabi into one document.  Submit on-ground syllabi in a document separate from its distance education syllabi."]
[]
["Reference the sample on-ground and the sample distance education course syllabi, provided on our website, to ensure all syllabi contain the necessary elements."]
[null,"Sample On-Ground Syllabus"]
[null,"Sample Distance Education Syllabus"]
[]
["Each syllabus must contain the course title, course number, prerequisites, instructor's name and contact information, course schedule, course length, objectives, "]
["number of lab and number of lecture hours, number of residential and number of distance education hours, media and texts, grading method, attendance requirements, "]
["policy for make-up work, and a detailed session-by-session outline of course content."]
[]
["The syllabus should be the document you will hand out to student in each course. Do not include instructor notes or lesson plans."]
["For distance education, the syllabi submitted in the application should also be the syllabi found in the online course materials."]
[null,null,null,null,null,null,null,null,null,null,null,null,null,null,null,null,null,null,null,null,null,null,null,null,null,"Choose one option for each course:"]
[null,null,null,null,null,null,null,null,null,null,null,null,null,null,null,null,null,"Practical Nurse Clinical",null,null,null,null,null,null,null,"On-Ground Only",null,"If distance education is offered anywhere in the program, complete the following for each course in the proposed program."]
[null,null,null,"On-Ground",null,null,null,"Distance Education",null,"Course Name",null,null,null,null,null,null,null,"or",null,null,null,null,null,"Lessons",null,"Distance Ed Only",null,"Check only if",null,"Distance Education Modality",null,"Lecture",null,"Lecture",null,"Lab",null,"Lab",null,"Externship",null,"Externship or PN Clinical"]
[null,"On-Ground ",null,"Syllabus",null,"Distance Education",null,"Syllabus",null,"Course names will populate automatically ",null,"Total",null,"Lecture",null,"Lab",null,"Externship",null,"Semester",null,"Quarter",null,"(correspondence)",null,"Blended/Hybrid (combined modalities)",null,"full course is",null,"(list all applicable DE modalities)",null,"Clock Hours",null,"Clock Hours",null,"Clock Hours",null,"Clock Hours",null,"Clock Hours",null,"Clock Hours"]
[null,"Course Number",null,"(embed document)",null,"Course Number",null,"(embed document)",null,"to the PDE3003 Instructor List.  ",null,"Clock Hours","=","Clock Hours","+","Clock Hours","+","Clock Hours",null,"Credits",null,"Credits",null,"only)",null,"Either (choice of modality)",null,"available for review",null,"(i.e. Canvas, Zoom, Google Classroom, etc.)",null,"Distance Ed",null,"On-Ground",null,"Distance Ed",null,"On-Ground",null,"Distance Ed",null,"On-Ground"]
[]
[1]
[]
[]
[]
[]
[2]
[]
[]
[]
[]
[3]
[]
[]
[]
[]
[4]
[]
[]
[]
[]
[5]
[]
[]
[]
[]
[6]
[]
[]
[]
[]
[7]
[]
[]
[]
[]
[8]
[]
[]
[]
[]
[9]
[]
[]
[]
[]
[10]
[]
[]
[]
[]
[11]
[]
[]
[]
[]
[12]
[]
[]
[]
[]
[13]
[]
[]
[]
[]
[14]
[]
[]
[]
[]
[15]
[]
[]
[]
[]
[16]
[]
[]
[]
[]
[17]
[]
[]
[]
[]
[18]
[]
[]
[]
[]
[19]
[]
[]
[]
[]
[20]
[]
[]
[]
[]
[21]
[]
[]
[]
[]
[22]
[]
[]
[]
[]
[23]
[]
[]
[]
[]
[24]
[]
[]
[]
[]
[25]
[]
[]
[]
[]
[26]
[]
[]
[]
[]
[27]
[]
[]
[]
[]
[28]
[]
[]
[]
[]
[29]
[]
[]
[]
[]
[30]
[]
[]
[]
[]
[31]
[]
[]
[]
[]
[32]
[]
[]
[]
[]
[33]
[]
[]
[]
[]
[34]
[]
[]
[]
[]
[35]
[]
[]
[]
[]
[36]
[]
[]
[]
[]
[37]
[]
[]
[]
[]
[38]
[]
[]
[]
[]
[39]
[]
[]
[]
[]
[40]
[]
[]
[]
[]
[41]
[]
[]
[]
[]
[42]
[]
[]
[]
[]
[43]
[]
[]
[]
[]
[44]
[]
[]
[]
[]
[45]
[]
[]
[]
[]
[46]
[]
[]
[]
[]
[47]
[]
[]
[]
[]
[48]
[]
[]
[]
[]
[49]
[]
[]
[]
[]
[50]
[]
[null,null,null,null,null,null,null,null,null,null,null,null,null,null,null,null,null,null,null,"Semester",null,"Quarter",null,"Lessons",null,null,null,null,null,null,null,"Lecture",null,"Lecture",null,"Lab",null,"Lab",null,"Externship",null,"Externship"]
[null,null,null,null,null,null,null,null,null,null,null,"Clock Hours",null,"Clock Hours",null,"Clock Hours",null,"Clock Hours",null,"Credits",null,"Credits",null,"(correspondence only)",null,null,null,null,null,null,null,"Distance Ed",null,"On-Ground",null,"Distance Ed",null,"On-Ground",null,"Distance Ed",null,"On-Ground"]
[null,null,null,null,null,null,null,null,null,null,null,"Total",null,"Lecture",null,"Lab",null,"Externship",null,"Total",null,"Total",null,"Total",null,null,null,null,null,null,null,"Total",null,"Total",null,"Total",null,"Total",null,"Total",null,"Total"]
[null,null,null,null,null,null,null,null,null,null,null,{"$f":"SUM(L38:L283)","v":0},"=",{"$f":"SUM(N38:N283)","v":0},"+",{"$f":"SUM(P38:P283)","v":0},"+",{"$f":"SUM(R38:R283)","v":0},null,{"$f":"SUM(T38:T283)","v":0},null,{"$f":"SUM(V38:V283)","v":0},null,{"$f":"SUM(X38:X283)","v":0},null,null,null,null,null,null,null,{"$f":"SUM(AF38:AF283)","v":0},null,{"$f":"SUM(AH38:AH283)","v":0},null,{"$f":"SUM(AJ38:AJ283)","v":0},null,{"$f":"SUM(AL38:AL283)","v":0},null,{"$f":"SUM(AN38:AN283)","v":0},null,{"$f":"SUM(AP38:AP283)","v":0}]
[]
[null,null,null,null,null,null,null,null,null,null,null,null,null,null,null,null,null,null,null,null,null,null,null,null,null,null,null,null,null,null,null,{"$f":"AF288+AH288","v":0},null,null,null,{"$f":"AJ288+AL288","v":0},null,null,null,{"$f":"AN288+AP288","v":0}]
[null,null,null,null,null,null,null,null,null,null,null,null,null,null,null,null,null,null,null,null,null,null,null,null,null,null,null,null,null,null,null,"Total Lecture Hours",null,null,null,"Total Lab Hours",null,null,null,"Total Externship Hours"]
[]
[null,null,null,null,null,null,null,null,null,null,null,null,null,null,null,null,null,null,null,null,null,null,null,null,null,null,null,null,null,null,null,null,null,null,null,{"$f":"AF290+AJ290+AN290","v":0}]
[null,null,null,null,null,null,null,null,null,null,null,null,null,null,null,null,null,null,null,null,null,null,null,null,null,null,null,null,null,null,null,null,null,null,null,"Total Program Clock Hours"]
[]
[null,null,null,null,null,null,null,null,null,null,null,null,null,null,null,null,null,null,null,null,null,null,null,null,null,null,null,null,null,null,null,{"$f":"AF288+AJ288+AN288","v":0},null,null,null,{"$f":"AF296+AN296","v":0},null,null,null,{"$f":"AH288+AL288+AP288","v":0}]
[null,null,null,null,null,null,null,null,null,null,null,null,null,null,null,null,null,null,null,null,null,null,null,null,null,null,null,null,null,null,null,"Total Distance Ed Hours",null,null,null,"Total Program Clock Hours",null,null,null,"Total On-Ground Hours"]
[]
[null,null,null,null,null,null,null,null,null,null,null,null,null,null,null,null,null,null,null,null,null,null,null,null,null,null,null,null,null,null,null,null,null,null,null,{"$f":"AF296/AJ293","v":{"$error":"#DIV/0!"}}]
["END OF PDE3004 PROGRAM OUTLINE - PROCEED TO NEXT WORKSHEET TAB",null,null,null,null,null,null,null,null,null,null,null,null,null,null,null,null,null,null,null,null,null,null,null,null,null,null,null,null,null,null,null,null,"Percentage to be offered by Distance Education"]

{"sheet":"CDL Program","index":4,"n_rows":250,"n_cols":29,"rows_kept":250,"cut":false,"hidden":false,"merged":[[11,0,11,3],[20,1,25,5],[38,1,43,5],[48,1,53,5],[73,1,77,1],[71,0,71,1],[91,29,96,33],[101,1,106,5],[101,8,106,12],[101,15,106,19],[101,22,106,26],[101,29,106,33],[91,1,96,5],[110,1,115,5],[110,8,115,12],[110,15,115,19],[110,22,115,26],[91,8,96,12],[91,15,96,19],[91,22,96,26],[119,1,124,5],[119,8,124,12],[119,15,124,19],[119,22,124,26],[119,29,124,33],[133,8,138,12],[133,15,138,19],[133,22,138,26],[133,29,138,33],[110,29,115,33],[158,29,163,33],[168,1,173,5],[168,8,173,12],[168,15,173,19],[168,22,173,26],[168,29,173,33],[190,22,195,26],[158,1,163,5],[158,8,163,12],[158,15,163,19],[158,22,163,26],[242,1,247,5],[87,0,87,4],[87,7,87,11],[219,0,219,1],[234,1,239,5],[200,1,205,5],[200,8,205,12],[231,0,231,1],[210,1,215,5],[210,8,215,12],[178,1,183,5],[178,8,183,12],[145,1,150,5],[190,1,195,5],[190,8,195,12],[133,1,138,5],[87,14,87,18],[87,21,87,25],[87,28,87,32],[79,2,79,6],[224,1,229,5],[200,15,205,19],[200,22,205,26],[200,29,205,33],[210,15,215,19],[210,22,215,26],[210,29,215,33],[190,29,195,33],[178,15,183,19],[178,22,183,26],[178,29,183,33],[190,15,195,19]]}
["New Program Application"]
["Pennsylvania State Board of Private Licensed Schools"]
[]
["Effective February 7, 2022, all Private Licensed Schools offering entry-level driver training for commercial truck driver programs must be registered with the Federal Motor Carrier Safety Administration (FMCSA) as an Entry-Level Driver Training (ELDT) provider "]
["and must attest that all program requirements have been met in accordance with 49 CFR § 380.  "]
[]
["If at any time either FMCSA, PA Department of Transportation, or the Board determines that a training provider does not meet all applicable requirements, the provider may be removed the FMCSA list of approved training providers and will be required by the Board "]
["to suspend instruction until the requirements are met."]
[]
["Effective March 1, 2022, in addition to all other State Board of Private Licensed School License/Registration Renewal application requirements, the items requested on the CDL Program worksheet must be submitted by schools offering commercial truck driver training programs."]
[]
["Private Licensed Schools Memorandum #93 Commercial Truck Driving Programs"]
[]
["FMCSA ELDT Training Provider Registry"]
[]
["FMCSA ELDT Training Provider Registry (TRP) ID #"]
[]
[]
["Evidence of registration (embed document below)."]
[]
[]
[]
[]
[]
[]
[]
[]
["Administration"]
[]
["Name of school administrator or personnel with a minimum of 2 years’ experience with Commercial Driver Training programs or other involvement in the training of Commercial Drivers."]
[]
[]
[]
[null,"Email address:"]
[]
[]
["Evidence of 2 or more years of experience (embed documents below)."]
[]
[]
[]
[]
[]
[]
[]
[]
["List all Commercial Driver Training programs/facilities with which the individual has been affiliated."]
["Embed a document if the information extends beyond the provided text box."]
[]
[]
[]
[]
[]
[]
[]
[]
["Name of the person who is responsible as the Designated Employer Representative in accordance with Federal Motor Carrier Safety Regulations."]
[]
[]
[]
[null,"Email address:"]
[]
[]
["Name of the qualified staff member who has received the supervisor drug and alcohol training in accordance with 49 CFR 382.603."]
[]
[]
[]
[null,"Email address:"]
[]
[]
["Signed statement by the owner/director that the school agrees to abide by all applicable US Department of Transportation Federal Motor Carrier Safety Regulations (embed document below)."]
["The attestation must be signed biennially at the time of licensure/registration renewal or upon a change in Owner/Director."]
["CDL Owner/Director Attestation"]
[]
[]
[]
[]
[]
[]
[]
["Instructor Qualifications"]
[]
[null,"> > > scroll right to continue to add additional instructors > > >",null,null,null,null,null,null,"> > > scroll right to continue to add additional instructors > > >",null,null,null,null,null,null,"> > > scroll right to continue to add additional instructors > > >",null,null,null,null,null,null,"> > > scroll right to continue to add additional instructors > > >"]
[]
["1. Instructor's name:",null,null,null,null,null,null,"2. Instructor's name:",null,null,null,null,null,null,"3. Instructor's name:",null,null,null,null,null,null,"4. Instructor's name:",null,null,null,null,null,null,"5. Instructor's name:"]
[]
[]
[]
["Instructor Qualifications Form PDE-279 (Excel)",null,null,null,null,null,null,"Instructor Qualifications Form PDE-279 (Excel)",null,null,null,null,null,null,"Instructor Qualifications Form PDE-279 (Excel)",null,null,null,null,null,null,"Instructor Qualifications Form PDE-279 (Excel)",null,null,null,null,null,null,"Instructor Qualifications Form PDE-279 (Excel)"]
["1a. Evidence of a minimum of 2 years’ working experience with a Commercial Driver’s License as a driver ",null,null,null,null,null,null,"2a. Evidence of a minimum of 2 years’ working experience with a Commercial Driver’s License as a driver ",null,null,null,null,null,null,"3a. Evidence of a minimum of 2 years’ working experience with a Commercial Driver’s License as a driver ",null,null,null,null,null,null,"4a. Evidence of a minimum of 2 years’ working experience with a Commercial Driver’s License as a driver ",null,null,null,null,null,null,"5a. Evidence of a minimum of 2 years’ working experience with a Commercial Driver’s License as a driver "]
["(embed PDE-279 and necessary documents below).",null,null,null,null,null,null,"(embed PDE-279 and necessary documents below).",null,null,null,null,null,null,"(embed PDE-279 and necessary documents below).",null,null,null,null,null,null,"(embed PDE-279 and necessary documents below).",null,null,null,null,null,null,"(embed PDE-279 and necessary documents below)."]
[]
[]
[]
[]
[]
[]
[]
[]
["1b. Valid and unexpired Commercial Driver’s License of the same class of commercial motor vehicle as that which the ",null,null,null,null,null,null,"2b. Valid and unexpired Commercial Driver’s License of the same class of commercial motor vehicle as that which the ",null,null,null,null,null,null,"3b. Valid and unexpired Commercial Driver’s License of the same class of commercial motor vehicle as that which the ",null,null,null,null,null,null,"4b. Valid and unexpired Commercial Driver’s License of the same class of commercial motor vehicle as that which the ",null,null,null,null,null,null,"5b. Valid and unexpired Commercial Driver’s License of the same class of commercial motor vehicle as that which the "]
["instructor will provide instruction to students (embed document below).",null,null,null,null,null,null,"instructor will provide instruction to students (embed document below).",null,null,null,null,null,null,"instructor will provide instruction to students (embed document below).",null,null,null,null,null,null,"instructor will provide instruction to students (embed document below).",null,null,null,null,null,null,"instructor will provide instruction to students (embed document below)."]
[]
[]
[]
[]
[]
[]
[]
[]
["1c. Unexpired medical examiner certificate (embed document below).",null,null,null,null,null,null,"2c. Unexpired medical examiner certificate (embed document below).",null,null,null,null,null,null,"3c. Unexpired medical examiner certificate (embed document below).",null,null,null,null,null,null,"4c. Unexpired medical examiner certificate (embed document below).",null,null,null,null,null,null,"5c. Unexpired medical examiner certificate (embed document below)."]
[]
[]
[]
[]
[]
[]
[]
[]
["1e. Current Motor Vehicle Report (embed document below).",null,null,null,null,null,null,"2e. Current Motor Vehicle Report (embed document below).",null,null,null,null,null,null,"3e. Current Motor Vehicle Report (embed document below).",null,null,null,null,null,null,"4e. Current Motor Vehicle Report (embed document below).",null,null,null,null,null,null,"5e. Current Motor Vehicle Report (embed document below)."]
[]
[]
[]
[]
[]
[]
[]
[]
["1f. Date of most recent drug test:",null,null,null,null,null,null,"2f. Date of most recent drug test:",null,null,null,null,null,null,"3f. Date of most recent drug test:",null,null,null,null,null,null,"4f. Date of most recent drug test:",null,null,null,null,null,null,"5f. Date of most recent drug test:"]
[]
[]
[]
["1g. Evidence of 'not prohibited' through a query result with the FMCSA Drug and Alcohol Clearing House ",null,null,null,null,null,null,"2g. Evidence of 'not prohibited' through a query result with the FMCSA Drug and Alcohol Clearing House ",null,null,null,null,null,null,"3g. Evidence of 'not prohibited' through a query result with the FMCSA Drug and Alcohol Clearing House ",null,null,null,null,null,null,"4g. Evidence of 'not prohibited' through a query result with the FMCSA Drug and Alcohol Clearing House ",null,null,null,null,null,null,"5g. Evidence of 'not prohibited' through a query result with the FMCSA Drug and Alcohol Clearing House "]
["(embed document below).",null,null,null,null,null,null,"(embed document below).",null,null,null,null,null,null,"(embed document below).",null,null,null,null,null,null,"(embed document below).",null,null,null,null,null,null,"(embed document below)."]
[]
[]
[]
[]
[]
[]
[]
[]
["Equipment"]
[]
["Description of the equipment maintenance program and how it impacts student training."]
["Embed a document if the information extends beyond the provided text box."]
[]
[]
[]
[]
[]
[]
[]
[]
[null,"> > > scroll right to continue to add additional tractors/vehicles > > >",null,null,null,null,null,null,"> > > scroll right to continue to add additional tractors/vehicles > > >",null,null,null,null,null,null,"> > > scroll right to continue to add additional tractors/vehicles > > >",null,null,null,null,null,null,"> > > scroll right to continue to add additional tractors/vehicles > > >"]
[]
["1. Tractor/Vehicle: year, make, model, mileage, automatic or manual transmission, synchronized or unsynchronized ",null,null,null,null,null,null,"2. Tractor/Vehicle: year, make, model, mileage, automatic or manual transmission, synchronized or unsynchronized ",null,null,null,null,null,null,"3. Tractor/Vehicle: year, make, model, mileage, automatic or manual transmission, synchronized or unsynchronized ",null,null,null,null,null,null,"4. Tractor/Vehicle: year, make, model, mileage, automatic or manual transmission, synchronized or unsynchronized ",null,null,null,null,null,null,"5. Tractor/Vehicle: year, make, model, mileage, automatic or manual transmission, synchronized or unsynchronized "]
["transmission, airbrake, number of axels, day/sleeper cab; as well as any additional descriptors.",null,null,null,null,null,null,"transmission, airbrake, number of axels, day/sleeper cab; as well as any additional descriptors.",null,null,null,null,null,null,"transmission, airbrake, number of axels, day/sleeper cab; as well as any additional descriptors.",null,null,null,null,null,null,"transmission, airbrake, number of axels, day/sleeper cab; as well as any additional descriptors.",null,null,null,null,null,null,"transmission, airbrake, number of axels, day/sleeper cab; as well as any additional descriptors."]
["Embed a document if the information extends beyond the provided text box.",null,null,null,null,null,null,"Embed a document if the information extends beyond the provided text box.",null,null,null,null,null,null,"Embed a document if the information extends beyond the provided text box.",null,null,null,null,null,null,"Embed a document if the information extends beyond the provided text box.",null,null,null,null,null,null,"Embed a document if the information extends beyond the provided text box."]
[]
[]
[]
[]
[]
[]
[]
[]
["1a. Evidence of ownership or lease agreement that includes the owner’s/lessor’s name and contact information ",null,null,null,null,null,null,"2a. Evidence of ownership or lease agreement that includes the owner’s/lessor’s name and contact information ",null,null,null,null,null,null,"3a. Evidence of ownership or lease agreement that includes the owner’s/lessor’s name and contact information ",null,null,null,null,null,null,"4a. Evidence of ownership or lease agreement that includes the owner’s/lessor’s name and contact information ",null,null,null,null,null,null,"5a. Evidence of ownership or lease agreement that includes the owner’s/lessor’s name and contact information "]
["(embed document below).",null,null,null,null,null,null,"(embed document below).",null,null,null,null,null,null,"(embed document below).",null,null,null,null,null,null,"(embed document below).",null,null,null,null,null,null,"(embed document below)."]
[]
[]
[]
[]
[]
[]
[]
[]
["1b. Evidence of insurance to include the insurer’s name, address, contact information, policy type, policy number and ",null,null,null,null,null,null,"2b. Evidence of insurance to include the insurer’s name, address, contact information, policy type, policy number and ",null,null,null,null,null,null,"3b. Evidence of insurance to include the insurer’s name, address, contact information, policy type, policy number and ",null,null,null,null,null,null,"4b. Evidence of insurance to include the insurer’s name, address, contact information, policy type, policy number and ",null,null,null,null,null,null,"5b. Evidence of insurance to include the insurer’s name, address, contact information, policy type, policy number and "]
["expiration date (embed document below).",null,null,null,null,null,null,"expiration date (embed document below).",null,null,null,null,null,null,"expiration date (embed document below).",null,null,null,null,null,null,"expiration date (embed document below).",null,null,null,null,null,null,"expiration date (embed document below)."]
[]
[]
[]
[]
[]
[]
[]
[]
[null,"> > > scroll right to continue to add additional trailers > > >",null,null,null,null,null,null,"> > > scroll right to continue to add additional trailers > > >",null,null,null,null,null,null,"> > > scroll right to continue to add additional trailers > > >",null,null,null,null,null,null,"> > > scroll right to continue to add additional trailers > > >"]
[]
["1. Trailer: year, make, type, number of axels, length; as well as any additional descriptors.",null,null,null,null,null,null,"2. Trailer: year, make, type, number of axels, length; as well as any additional descriptors.",null,null,null,null,null,null,"3. Trailer: year, make, type, number of axels, length; as well as any additional descriptors.",null,null,null,null,null,null,"4. Trailer: year, make, type, number of axels, length; as well as any additional descriptors.",null,null,null,null,null,null,"5. Trailer: year, make, type, number of axels, length; as well as any additional descriptors."]
["Embed a document if the information extends beyond the provided text box.",null,null,null,null,null,null,"Embed a document if the information extends beyond the provided text box.",null,null,null,null,null,null,"Embed a document if the information extends beyond the provided text box.",null,null,null,null,null,null,"Embed a document if the information extends beyond the provided text box.",null,null,null,null,null,null,"Embed a document if the information extends beyond the provided text box."]
[]
[]
[]
[]
[]
[]
[]
[]
["1a. Evidence of ownership or lease agreement that includes the owner’s/lessor’s name and contact information ",null,null,null,null,null,null,"2a. Evidence of ownership or lease agreement that includes the owner’s/lessor’s name and contact information ",null,null,null,null,null,null,"3a. Evidence of ownership or lease agreement that includes the owner’s/lessor’s name and contact information ",null,null,null,null,null,null,"4a. Evidence of ownership or lease agreement that includes the owner’s/lessor’s name and contact information ",null,null,null,null,null,null,"5a. Evidence of ownership or lease agreement that includes the owner’s/lessor’s name and contact information "]
["(embed document below).",null,null,null,null,null,null,"(embed document below).",null,null,null,null,null,null,"(embed document below).",null,null,null,null,null,null,"(embed document below).",null,null,null,null,null,null,"(embed document below)."]
[]
[]
[]
[]
[]
[]
[]
[]
["1b. Evidence of insurance to include the insurer’s name, address, contact information, policy type, policy number and ",null,null,null,null,null,null,"2b. Evidence of insurance to include the insurer’s name, address, contact information, policy type, policy number and ",null,null,null,null,null,null,"3b. Evidence of insurance to include the insurer’s name, address, contact information, policy type, policy number and ",null,null,null,null,null,null,"4b. Evidence of insurance to include the insurer’s name, address, contact information, policy type, policy number and ",null,null,null,null,null,null,"5b. Evidence of insurance to include the insurer’s name, address, contact information, policy type, policy number and "]
["expiration date (embed document below).",null,null,null,null,null,null,"expiration date (embed document below).",null,null,null,null,null,null,"expiration date (embed document below).",null,null,null,null,null,null,"expiration date (embed document below).",null,null,null,null,null,null,"expiration date (embed document below)."]
[]
[]
[]
[]
[]
[]
[]
[]
["Program"]
[]
["Refer to Memo #93 to ensure all requirements included."]
["The program must be of a sufficient length to enable the training provider to deliver the minimum required training based upon the stated objectives and stated purpose of the program to be approved. "]
["Justification of the number of program hours is necessary for an indication of how the program compares with other industry training programs and how the program sufficiently achieves the stated educational objectives of the program."]
[]
[null,"Embed a document with your justification for program hours along with an industry comparison."]
[]
[]
[]
[]
[]
[]
[]
["CDL FMCSA Bridge Worksheets"]
[]
[null,"Embed the completed CDL FMCSA Bridge Worksheets."]
[]
[]
[]
[]
[]
[]
[]
[null,"Embed the assessments that will be utilized to assess students to ensure 100% proficiency on all BTW (Range and Public Road) topics outlined in 49 CFR part 380 appendices A through E, as applicable."]
[]
[]
[]
[]
[]
[]
[]
["END OF CDL PROGRAM - PROCEED TO NEXT WORKSHEET TAB"]

{"sheet":"PDE3003 Instructor List","index":5,"n_rows":68,"n_cols":5,"rows_kept":68,"cut":false,"hidden":false,"merged":[]}
["New Program Application"]
["Pennsylvania State Board of Private Licensed Schools"]
[]
["This tab is not required for new CDL ELDT programs, as this information is collected on the CDL Program worksheet."]
[]
["List an instructor for each course.  The list MUST show an instructor for EVERY course in the program."]
["If multiple instructors teach the course (including both on-ground and distance ed), please enter the name of the primary instructor only."]
[]
["If some instructors that will be required for this program have not been hired yet, indicate TBA as the instructor's name and provide a staffing plan "]
["or a job description and resumes of qualified applicants on the PDE279 Instructors Qualifications worksheet."]
[]
[null,"Instructor names entered here will automatically ",null,"Course names will populate automatically from the PDE3004 Program Outline worksheet.  "]
[null,"populate to the PDE279 Instructor Qualification worksheet.",null,"It is not possible to enter the course names directly on this form."]
[]
[null,"Name of Instructor",null,"Course taught in the Proposed Program"]
[]
[1,null,{"$f":"INDEX($B$17:$B$46,MATCH(0,INDEX(COUNTIF($C$1:$C16,$B$17:$B$46),0,0),0))","v":0},{"$f":"'PDE3004 Program Outline+Syllabi'!J38","v":0},1]
[2,null,{"$f":"INDEX($B$17:$B$46,MATCH(0,INDEX(COUNTIF($C$1:$C17,$B$17:$B$46),0,0),0))","v":{"$error":"#N/A"}},{"$f":"'PDE3004 Program Outline+Syllabi'!J43","v":0},2]
[3,null,{"$f":"INDEX($B$17:$B$46,MATCH(0,INDEX(COUNTIF($C$1:$C18,$B$17:$B$46),0,0),0))","v":{"$error":"#N/A"}},{"$f":"'PDE3004 Program Outline+Syllabi'!J48","v":0},3]
[4,null,{"$f":"INDEX($B$17:$B$46,MATCH(0,INDEX(COUNTIF($C$1:$C19,$B$17:$B$46),0,0),0))","v":{"$error":"#N/A"}},{"$f":"'PDE3004 Program Outline+Syllabi'!J53","v":0},4]
[5,null,{"$f":"INDEX($B$17:$B$46,MATCH(0,INDEX(COUNTIF($C$1:$C20,$B$17:$B$46),0,0),0))","v":{"$error":"#N/A"}},{"$f":"'PDE3004 Program Outline+Syllabi'!J58","v":0},5]
[6,null,{"$f":"INDEX($B$17:$B$46,MATCH(0,INDEX(COUNTIF($C$1:$C21,$B$17:$B$46),0,0),0))","v":{"$error":"#N/A"}},{"$f":"'PDE3004 Program Outline+Syllabi'!J63","v":0},6]
[7,null,{"$f":"INDEX($B$17:$B$46,MATCH(0,INDEX(COUNTIF($C$1:$C22,$B$17:$B$46),0,0),0))","v":{"$error":"#N/A"}},{"$f":"'PDE3004 Program Outline+Syllabi'!J68","v":0},7]
[8,null,{"$f":"INDEX($B$17:$B$46,MATCH(0,INDEX(COUNTIF($C$1:$C23,$B$17:$B$46),0,0),0))","v":{"$error":"#N/A"}},{"$f":"'PDE3004 Program Outline+Syllabi'!J73","v":0},8]
[9,null,{"$f":"INDEX($B$17:$B$46,MATCH(0,INDEX(COUNTIF($C$1:$C24,$B$17:$B$46),0,0),0))","v":{"$error":"#N/A"}},{"$f":"'PDE3004 Program Outline+Syllabi'!J78","v":0},9]
[10,null,{"$f":"INDEX($B$17:$B$46,MATCH(0,INDEX(COUNTIF($C$1:$C25,$B$17:$B$46),0,0),0))","v":{"$error":"#N/A"}},{"$f":"'PDE3004 Program Outline+Syllabi'!J83","v":0},10]
[11,null,{"$f":"INDEX($B$17:$B$46,MATCH(0,INDEX(COUNTIF($C$1:$C26,$B$17:$B$46),0,0),0))","v":{"$error":"#N/A"}},{"$f":"'PDE3004 Program Outline+Syllabi'!J88","v":0},11]
[12,null,{"$f":"INDEX($B$17:$B$46,MATCH(0,INDEX(COUNTIF($C$1:$C27,$B$17:$B$46),0,0),0))","v":{"$error":"#N/A"}},{"$f":"'PDE3004 Program Outline+Syllabi'!J93","v":0},12]
[13,null,{"$f":"INDEX($B$17:$B$46,MATCH(0,INDEX(COUNTIF($C$1:$C28,$B$17:$B$46),0,0),0))","v":{"$error":"#N/A"}},{"$f":"'PDE3004 Program Outline+Syllabi'!J98","v":0},13]
[14,null,{"$f":"INDEX($B$17:$B$46,MATCH(0,INDEX(COUNTIF($C$1:$C29,$B$17:$B$46),0,0),0))","v":{"$error":"#N/A"}},{"$f":"'PDE3004 Program Outline+Syllabi'!J103","v":0},14]
[15,null,{"$f":"INDEX($B$17:$B$46,MATCH(0,INDEX(COUNTIF($C$1:$C30,$B$17:$B$46),0,0),0))","v":{"$error":"#N/A"}},{"$f":"'PDE3004 Program Outline+Syllabi'!J108","v":0},15]
[16,null,{"$f":"INDEX($B$17:$B$46,MATCH(0,INDEX(COUNTIF($C$1:$C31,$B$17:$B$46),0,0),0))","v":{"$error":"#N/A"}},{"$f":"'PDE3004 Program Outline+Syllabi'!J113","v":0},16]
[17,null,{"$f":"INDEX($B$17:$B$46,MATCH(0,INDEX(COUNTIF($C$1:$C32,$B$17:$B$46),0,0),0))","v":{"$error":"#N/A"}},{"$f":"'PDE3004 Program Outline+Syllabi'!J118","v":0},17]
[18,null,{"$f":"INDEX($B$17:$B$46,MATCH(0,INDEX(COUNTIF($C$1:$C33,$B$17:$B$46),0,0),0))","v":{"$error":"#N/A"}},{"$f":"'PDE3004 Program Outline+Syllabi'!J123","v":0},18]
[19,null,{"$f":"INDEX($B$17:$B$46,MATCH(0,INDEX(COUNTIF($C$1:$C34,$B$17:$B$46),0,0),0))","v":{"$error":"#N/A"}},{"$f":"'PDE3004 Program Outline+Syllabi'!J128","v":0},19]
[20,null,{"$f":"INDEX($B$17:$B$46,MATCH(0,INDEX(COUNTIF($C$1:$C35,$B$17:$B$46),0,0),0))","v":{"$error":"#N/A"}},{"$f":"'PDE3004 Program Outline+Syllabi'!J133","v":0},20]
[21,null,{"$f":"INDEX($B$17:$B$46,MATCH(0,INDEX(COUNTIF($C$1:$C36,$B$17:$B$46),0,0),0))","v":{"$error":"#N/A"}},{"$f":"'PDE3004 Program Outline+Syllabi'!J138","v":0},21]
[22,null,{"$f":"INDEX($B$17:$B$46,MATCH(0,INDEX(COUNTIF($C$1:$C37,$B$17:$B$46),0,0),0))","v":{"$error":"#N/A"}},{"$f":"'PDE3004 Program Outline+Syllabi'!J143","v":0},22]
[23,null,{"$f":"INDEX($B$17:$B$46,MATCH(0,INDEX(COUNTIF($C$1:$C38,$B$17:$B$46),0,0),0))","v":{"$error":"#N/A"}},{"$f":"'PDE3004 Program Outline+Syllabi'!J148","v":0},23]
[24,null,{"$f":"INDEX($B$17:$B$46,MATCH(0,INDEX(COUNTIF($C$1:$C39,$B$17:$B$46),0,0),0))","v":{"$error":"#N/A"}},{"$f":"'PDE3004 Program Outline+Syllabi'!J153","v":0},24]
[25,null,{"$f":"INDEX($B$17:$B$46,MATCH(0,INDEX(COUNTIF($C$1:$C40,$B$17:$B$46),0,0),0))","v":{"$error":"#N/A"}},{"$f":"'PDE3004 Program Outline+Syllabi'!J158","v":0},25]
[26,null,{"$f":"INDEX($B$17:$B$46,MATCH(0,INDEX(COUNTIF($C$1:$C41,$B$17:$B$46),0,0),0))","v":{"$error":"#N/A"}},{"$f":"'PDE3004 Program Outline+Syllabi'!J163","v":0},26]
[27,null,{"$f":"INDEX($B$17:$B$46,MATCH(0,INDEX(COUNTIF($C$1:$C42,$B$17:$B$46),0,0),0))","v":{"$error":"#N/A"}},{"$f":"'PDE3004 Program Outline+Syllabi'!J168","v":0},27]
[28,null,{"$f":"INDEX($B$17:$B$46,MATCH(0,INDEX(COUNTIF($C$1:$C43,$B$17:$B$46),0,0),0))","v":{"$error":"#N/A"}},{"$f":"'PDE3004 Program Outline+Syllabi'!J173","v":0},28]
[29,null,{"$f":"INDEX($B$17:$B$46,MATCH(0,INDEX(COUNTIF($C$1:$C44,$B$17:$B$46),0,0),0))","v":{"$error":"#N/A"}},{"$f":"'PDE3004 Program Outline+Syllabi'!J178","v":0},29]
[30,null,{"$f":"INDEX($B$17:$B$46,MATCH(0,INDEX(COUNTIF($C$1:$C45,$B$17:$B$46),0,0),0))","v":{"$error":"#N/A"}},{"$f":"'PDE3004 Program Outline+Syllabi'!J183","v":0},30]
[31,null,{"$f":"INDEX($B$17:$B$46,MATCH(0,INDEX(COUNTIF($C$1:$C46,$B$17:$B$46),0,0),0))","v":{"$error":"#N/A"}},{"$f":"'PDE3004 Program Outline+Syllabi'!J188","v":0},31]
[32,null,{"$f":"INDEX($B$17:$B$46,MATCH(0,INDEX(COUNTIF($C$1:$C47,$B$17:$B$46),0,0),0))","v":{"$error":"#N/A"}},{"$f":"'PDE3004 Program Outline+Syllabi'!J193","v":0},32]
[33,null,{"$f":"INDEX($B$17:$B$46,MATCH(0,INDEX(COUNTIF($C$1:$C48,$B$17:$B$46),0,0),0))","v":{"$error":"#N/A"}},{"$f":"'PDE3004 Program Outline+Syllabi'!J198","v":0},33]
[34,null,{"$f":"INDEX($B$17:$B$46,MATCH(0,INDEX(COUNTIF($C$1:$C49,$B$17:$B$46),0,0),0))","v":{"$error":"#N/A"}},{"$f":"'PDE3004 Program Outline+Syllabi'!J203","v":0},34]
[35,null,{"$f":"INDEX($B$17:$B$46,MATCH(0,INDEX(COUNTIF($C$1:$C50,$B$17:$B$46),0,0),0))","v":{"$error":"#N/A"}},{"$f":"'PDE3004 Program Outline+Syllabi'!J208","v":0},35]
[36,null,{"$f":"INDEX($B$17:$B$46,MATCH(0,INDEX(COUNTIF($C$1:$C51,$B$17:$B$46),0,0),0))","v":{"$error":"#N/A"}},{"$f":"'PDE3004 Program Outline+Syllabi'!J213","v":0},36]
[37,null,{"$f":"INDEX($B$17:$B$46,MATCH(0,INDEX(COUNTIF($C$1:$C52,$B$17:$B$46),0,0),0))","v":{"$error":"#N/A"}},{"$f":"'PDE3004 Program Outline+Syllabi'!J218","v":0},37]
[38,null,{"$f":"INDEX($B$17:$B$46,MATCH(0,INDEX(COUNTIF($C$1:$C53,$B$17:$B$46),0,0),0))","v":{"$error":"#N/A"}},{"$f":"'PDE3004 Program Outline+Syllabi'!J223","v":0},38]
[39,null,{"$f":"INDEX($B$17:$B$46,MATCH(0,INDEX(COUNTIF($C$1:$C54,$B$17:$B$46),0,0),0))","v":{"$error":"#N/A"}},{"$f":"'PDE3004 Program Outline+Syllabi'!J228","v":0},39]
[40,null,{"$f":"INDEX($B$17:$B$46,MATCH(0,INDEX(COUNTIF($C$1:$C55,$B$17:$B$46),0,0),0))","v":{"$error":"#N/A"}},{"$f":"'PDE3004 Program Outline+Syllabi'!J233","v":0},40]
[41,null,{"$f":"INDEX($B$17:$B$46,MATCH(0,INDEX(COUNTIF($C$1:$C56,$B$17:$B$46),0,0),0))","v":{"$error":"#N/A"}},{"$f":"'PDE3004 Program Outline+Syllabi'!J238","v":0},41]
[42,null,{"$f":"INDEX($B$17:$B$46,MATCH(0,INDEX(COUNTIF($C$1:$C57,$B$17:$B$46),0,0),0))","v":{"$error":"#N/A"}},{"$f":"'PDE3004 Program Outline+Syllabi'!J243","v":0},42]
[43,null,{"$f":"INDEX($B$17:$B$46,MATCH(0,INDEX(COUNTIF($C$1:$C58,$B$17:$B$46),0,0),0))","v":{"$error":"#N/A"}},{"$f":"'PDE3004 Program Outline+Syllabi'!J248","v":0},43]
[44,null,{"$f":"INDEX($B$17:$B$46,MATCH(0,INDEX(COUNTIF($C$1:$C59,$B$17:$B$46),0,0),0))","v":{"$error":"#N/A"}},{"$f":"'PDE3004 Program Outline+Syllabi'!J253","v":0},44]
[45,null,{"$f":"INDEX($B$17:$B$46,MATCH(0,INDEX(COUNTIF($C$1:$C60,$B$17:$B$46),0,0),0))","v":{"$error":"#N/A"}},{"$f":"'PDE3004 Program Outline+Syllabi'!J258","v":0},45]
[46,null,{"$f":"INDEX($B$17:$B$46,MATCH(0,INDEX(COUNTIF($C$1:$C61,$B$17:$B$46),0,0),0))","v":{"$error":"#N/A"}},{"$f":"'PDE3004 Program Outline+Syllabi'!J263","v":0},46]
[47,null,{"$f":"INDEX($B$17:$B$46,MATCH(0,INDEX(COUNTIF($C$1:$C62,$B$17:$B$46),0,0),0))","v":{"$error":"#N/A"}},{"$f":"'PDE3004 Program Outline+Syllabi'!J268","v":0},47]
[48,null,{"$f":"INDEX($B$17:$B$46,MATCH(0,INDEX(COUNTIF($C$1:$C63,$B$17:$B$46),0,0),0))","v":{"$error":"#N/A"}},{"$f":"'PDE3004 Program Outline+Syllabi'!J273","v":0},48]
[49,null,{"$f":"INDEX($B$17:$B$46,MATCH(0,INDEX(COUNTIF($C$1:$C64,$B$17:$B$46),0,0),0))","v":{"$error":"#N/A"}},{"$f":"'PDE3004 Program Outline+Syllabi'!J278","v":0},49]
[50,null,{"$f":"INDEX($B$17:$B$46,MATCH(0,INDEX(COUNTIF($C$1:$C65,$B$17:$B$46),0,0),0))","v":{"$error":"#N/A"}},{"$f":"'PDE3004 Program Outline+Syllabi'!J283","v":0},50]
[]
["END OF PDE3003 INSTRUCTOR LIST - PROCEED TO NEXT WORKSHEET TAB"]

{"sheet":"PDE279 Instructor Qualification","index":6,"n_rows":5663,"n_cols":18,"rows_kept":5663,"cut":false,"hidden":false,"merged":[[8,16,8,25],[5383,1,5383,4],[5383,6,5383,9],[5385,1,5385,4],[5385,6,5385,9],[5387,1,5387,4],[5387,6,5387,9],[5389,1,5389,4],[5389,6,5389,9],[5391,1,5391,4],[5391,6,5391,9],[5393,1,5393,4],[5393,6,5393,9],[5395,17,5395,20],[5418,1,5422,14],[5356,1,5356,4],[5356,6,5356,11],[5363,1,5363,4],[5363,8,5363,11],[5365,1,5365,4],[5365,8,5365,11],[5367,1,5367,4],[5367,8,5367,11],[5369,1,5369,4],[5369,8,5369,11],[5371,1,5371,4],[5371,8,5371,11],[5373,17,5373,20],[5379,1,5379,4],[5379,6,5379,9],[5381,1,5381,4],[5381,6,5381,9],[5338,1,5338,4],[5338,6,5338,11],[5340,1,5340,4],[5340,6,5340,11],[5342,1,5342,4],[5342,6,5342,11],[5344,17,5344,20],[5346,1,5346,4],[5346,6,5346,11],[5348,1,5348,4],[5348,6,5348,11],[5350,1,5350,4],[5350,6,5350,11],[5352,1,5352,4],[5352,6,5352,11],[5354,1,5354,4],[5354,6,5354,11],[5280,1,5280,4],[5280,6,5280,9],[5282,1,5282,4],[5282,6,5282,9],[5284,1,5284,4],[5284,6,5284,9],[5286,17,5286,20],[5309,1,5313,14],[5316,3,5316,10],[5316,17,5316,20],[5318,3,5318,10],[5320,3,5320,10],[5322,3,5322,10],[5327,3,5327,10],[5334,1,5334,4],[5334,6,5334,11],[5336,1,5336,4],[5336,6,5336,11],[5258,1,5258,4],[5258,8,5258,11],[5260,1,5260,4],[5260,8,5260,11],[5262,1,5262,4],[5262,8,5262,11],[5264,17,5264,20],[5270,1,5270,4],[5270,6,5270,9],[5272,1,5272,4],[5272,6,5272,9],[5274,1,5274,4],[5274,6,5274,9],[5276,1,5276,4],[5276,6,5276,9],[5278,1,5278,4],[5278,6,5278,9],[5235,17,5235,20],[5237,1,5237,4],[5237,6,5237,11],[5239,1,5239,4],[5239,6,5239,11],[5241,1,5241,4],[5241,6,5241,11],[5243,1,5243,4],[5243,6,5243,11],[5245,1,5245,4],[5245,6,5245,11],[5247,1,5247,4],[5247,6,5247,11],[5254,1,5254,4],[5254,8,5254,11],[5256,1,5256,4],[5256,8,5256,11],[5178,17,5178,20],[5201,1,5205,14],[5207,3,5207,10],[5207,17,5207,20],[5209,3,5209,10],[5211,3,5211,10],[5213,3,5213,10],[5218,3,5218,10],[5225,1,5225,4],[5225,6,5225,11],[5227,1,5227,4],[5227,6,5227,11],[5229,1,5229,4],[5229,6,5229,11],[5231,1,5231,4],[5231,6,5231,11],[5233,1,5233,4],[5233,6,5233,11],[5156,17,5156,20],[5162,1,5162,4],[5162,6,5162,9],[5164,1,5164,4],[5164,6,5164,9],[5166,1,5166,4],[5166,6,5166,9],[5168,1,5168,4],[5168,6,5168,9],[5170,1,5170,4],[5170,6,5170,9],[5172,1,5172,4],[5172,6,5172,9],[5174,1,5174,4],[5174,6,5174,9],[5176,1,5176,4],[5176,6,5176,9],[5133,1,5133,4],[5133,6,5133,11],[5135,1,5135,4],[5135,6,5135,11],[5137,1,5137,4],[5137,6,5137,11],[5139,1,5139,4],[5139,6,5139,11],[5146,1,5146,4],[5146,8,5146,11],[5148,1,5148,4],[5148,8,5148,11],[5150,1,5150,4],[5150,8,5150,11],[5152,1,5152,4],[5152,8,5152,11],[5154,1,5154,4],[5154,8,5154,11],[5103,3,5103,10],[5105,3,5105,10],[5110,3,5110,10],[5117,1,5117,4],[5117,6,5117,11],[5119,1,5119,4],[5119,6,5119,11],[5121,1,5121,4],[5121,6,5121,11],[5123,1,5123,4],[5123,6,5123,11],[5125,1,5125,4],[5125,6,5125,11],[5127,17,5127,20],[5129,1,5129,4],[5129,6,5129,11],[5131,1,5131,4],[5131,6,5131,11],[5058,1,5058,4],[5058,6,5058,9],[5060,1,5060,4],[5060,6,5060,9],[5062,1,5062,4],[5062,6,5062,9],[5064,1,5064,4],[5064,6,5064,9],[5066,1,5066,4],[5066,6,5066,9],[5068,1,5068,4],[5068,6,5068,9],[5070,17,5070,20],[5093,1,5097,14],[5099,3,5099,10],[5099,17,5099,20],[5101,3,5101,10],[5031,1,5031,4],[5031,6,5031,11],[5038,1,5038,4],[5038,8,5038,11],[5040,1,5040,4],[5040,8,5040,11],[5042,1,5042,4],[5042,8,5042,11],[5044,1,5044,4],[5044,8,5044,11],[5046,1,5046,4],[5046,8,5046,11],[5048,17,5048,20],[5054,1,5054,4],[5054,6,5054,9],[5056,1,5056,4],[5056,6,5056,9],[5013,1,5013,4],[5013,6,5013,11],[5015,1,5015,4],[5015,6,5015,11],[5017,1,5017,4],[5017,6,5017,11],[5019,17,5019,20],[5021,1,5021,4],[5021,6,5021,11],[5023,1,5023,4],[5023,6,5023,11],[5025,1,5025,4],[5025,6,5025,11],[5027,1,5027,4],[5027,6,5027,11],[5029,1,5029,4],[5029,6,5029,11],[4956,1,4956,4],[4956,6,4956,9],[4958,1,4958,4],[4958,6,4958,9],[4960,1,4960,4],[4960,6,4960,9],[4962,17,4962,20],[4985,1,4989,14],[4991,3,4991,10],[4991,17,4991,20],[4993,3,4993,10],[4995,3,4995,10],[4997,3,4997,10],[5002,3,5002,10],[5009,1,5009,4],[5009,6,5009,11],[5011,1,5011,4],[5011,6,5011,11],[4934,1,4934,4],[4934,8,4934,11],[4936,1,4936,4],[4936,8,4936,11],[4938,1,4938,4],[4938,8,4938,11],[4940,17,4940,20],[4946,1,4946,4],[4946,6,4946,9],[4948,1,4948,4],[4948,6,4948,9],[4950,1,4950,4],[4950,6,4950,9],[4952,1,4952,4],[4952,6,4952,9],[4954,1,4954,4],[4954,6,4954,9],[4911,17,4911,20],[4913,1,4913,4],[4913,6,4913,11],[4915,1,4915,4],[4915,6,4915,11],[4917,1,4917,4],[4917,6,4917,11],[4919,1,4919,4],[4919,6,4919,11],[4921,1,4921,4],[4921,6,4921,11],[4923,1,4923,4],[4923,6,4923,11],[4930,1,4930,4],[4930,8,4930,11],[4932,1,4932,4],[4932,8,4932,11],[4854,17,4854,20],[4877,1,4881,14],[4883,3,4883,10],[4883,17,4883,20],[4885,3,4885,10],[4887,3,4887,10],[4889,3,4889,10],[4894,3,4894,10],[4901,1,4901,4],[4901,6,4901,11],[4903,1,4903,4],[4903,6,4903,11],[4905,1,4905,4],[4905,6,4905,11],[4907,1,4907,4],[4907,6,4907,11],[4909,1,4909,4],[4909,6,4909,11],[4832,17,4832,20],[4838,1,4838,4],[4838,6,4838,9],[4840,1,4840,4],[4840,6,4840,9],[4842,1,4842,4],[4842,6,4842,9],[4844,1,4844,4],[4844,6,4844,9],[4846,1,4846,4],[4846,6,4846,9],[4848,1,4848,4],[4848,6,4848,9],[4850,1,4850,4],[4850,6,4850,9],[4852,1,4852,4],[4852,6,4852,9],[4809,1,4809,4],[4809,6,4809,11],[4811,1,4811,4],[4811,6,4811,11],[4813,1,4813,4],[4813,6,4813,11],[4815,1,4815,4],[4815,6,4815,11],[4822,1,4822,4],[4822,8,4822,11],[4824,1,4824,4],[4824,8,4824,11],[4826,1,4826,4],[4826,8,4826,11],[4828,1,4828,4],[4828,8,4828,11],[4830,1,4830,4],[4830,8,4830,11],[4779,3,4779,10],[4781,3,4781,10],[4786,3,4786,10],[4793,1,4793,4],[4793,6,4793,11],[4795,1,4795,4],[4795,6,4795,11],[4797,1,4797,4],[4797,6,4797,11],[4799,1,4799,4],[4799,6,4799,11],[4801,1,4801,4],[4801,6,4801,11],[4803,17,4803,20],[4805,1,4805,4],[4805,6,4805,11],[4807,1,4807,4],[4807,6,4807,11],[4733,1,4733,4],[4733,6,4733,9],[4735,1,4735,4],[4735,6,4735,9],[4737,1,4737,4],[4737,6,4737,9],[4739,1,4739,4],[4739,6,4739,9],[4741,1,4741,4],[4741,6,4741,9],[4743,1,4743,4],[4743,6,4743,9],[4745,17,4745,20],[4768,1,4772,14],[4775,3,4775,10],[4775,17,4775,20],[4777,3,4777,10],[4706,1,4706,4],[4706,6,4706,11],[4713,1,4713,4],[4713,8,4713,11],[4715,1,4715,4],[4715,8,4715,11],[4717,1,4717,4],[4717,8,4717,11],[4719,1,4719,4],[4719,8,4719,11],[4721,1,4721,4],[4721,8,4721,11],[4723,17,4723,20],[4729,1,4729,4],[4729,6,4729,9],[4731,1,4731,4],[4731,6,4731,9],[4688,1,4688,4],[4688,6,4688,11],[4690,1,4690,4],[4690,6,4690,11],[4692,1,4692,4],[4692,6,4692,11],[4694,17,4694,20],[4696,1,4696,4],[4696,6,4696,11],[4698,1,4698,4],[4698,6,4698,11],[4700,1,4700,4],[4700,6,4700,11],[4702,1,4702,4],[4702,6,4702,11],[4704,1,4704,4],[4704,6,4704,11],[4631,1,4631,4],[4631,6,4631,9],[4633,1,4633,4],[4633,6,4633,9],[4635,1,4635,4],[4635,6,4635,9],[4637,17,4637,20],[4660,1,4664,14],[4666,3,4666,10],[4666,17,4666,20],[4668,3,4668,10],[4670,3,4670,10],[4672,3,4672,10],[4677,3,4677,10],[4684,1,4684,4],[4684,6,4684,11],[4686,1,4686,4],[4686,6,4686,11],[4609,1,4609,4],[4609,8,4609,11],[4611,1,4611,4],[4611,8,4611,11],[4613,1,4613,4],[4613,8,4613,11],[4615,17,4615,20],[4621,1,4621,4],[4621,6,4621,9],[4623,1,4623,4],[4623,6,4623,9],[4625,1,4625,4],[4625,6,4625,9],[4627,1,4627,4],[4627,6,4627,9],[4629,1,4629,4],[4629,6,4629,9],[4586,17,4586,20],[4588,1,4588,4],[4588,6,4588,11],[4590,1,4590,4],[4590,6,4590,11],[4592,1,4592,4],[4592,6,4592,11],[4594,1,4594,4],[4594,6,4594,11],[4596,1,4596,4],[4596,6,4596,11],[4598,1,4598,4],[4598,6,4598,11],[4605,1,4605,4],[4605,8,4605,11],[4607,1,4607,4],[4607,8,4607,11],[4529,17,4529,20],[4552,1,4556,14],[4558,3,4558,10],[4558,17,4558,20],[4560,3,4560,10],[4562,3,4562,10],[4564,3,4564,10],[4569,3,4569,10],[4576,1,4576,4],[4576,6,4576,11],[4578,1,4578,4],[4578,6,4578,11],[4580,1,4580,4],[4580,6,4580,11],[4582,1,4582,4],[4582,6,4582,11],[4584,1,4584,4],[4584,6,4584,11],[4507,17,4507,20],[4513,1,4513,4],[4513,6,4513,9],[4515,1,4515,4],[4515,6,4515,9],[4517,1,4517,4],[4517,6,4517,9],[4519,1,4519,4],[4519,6,4519,9],[4521,1,4521,4],[4521,6,4521,9],[4523,1,4523,4],[4523,6,4523,9],[4525,1,4525,4],[4525,6,4525,9],[4527,1,4527,4],[4527,6,4527,9],[4484,1,4484,4],[4484,6,4484,11],[4486,1,4486,4],[4486,6,4486,11],[4488,1,4488,4],[4488,6,4488,11],[4490,1,4490,4],[4490,6,4490,11],[4497,1,4497,4],[4497,8,4497,11],[4499,1,4499,4],[4499,8,4499,11],[4501,1,4501,4],[4501,8,4501,11],[4503,1,4503,4],[4503,8,4503,11],[4505,1,4505,4],[4505,8,4505,11],[4454,3,4454,10],[4456,3,4456,10],[4461,3,4461,10],[4468,1,4468,4],[4468,6,4468,11],[4470,1,4470,4],[4470,6,4470,11],[4472,1,4472,4],[4472,6,4472,11],[4474,1,4474,4],[4474,6,4474,11],[4476,1,4476,4],[4476,6,4476,11],[4478,17,4478,20],[4480,1,4480,4],[4480,6,4480,11],[4482,1,4482,4],[4482,6,4482,11],[4409,1,4409,4],[4409,6,4409,9],[4411,1,4411,4],[4411,6,4411,9],[4413,1,4413,4],[4413,6,4413,9],[4415,1,4415,4],[4415,6,4415,9],[4417,1,4417,4],[4417,6,4417,9],[4419,1,4419,4],[4419,6,4419,9],[4421,17,4421,20],[4444,1,4448,14],[4450,3,4450,10],[4450,17,4450,20],[4452,3,4452,10],[4382,1,4382,4],[4382,6,4382,11],[4389,1,4389,4],[4389,8,4389,11],[4391,1,4391,4],[4391,8,4391,11],[4393,1,4393,4],[4393,8,4393,11],[4395,1,4395,4],[4395,8,4395,11],[4397,1,4397,4],[4397,8,4397,11],[4399,17,4399,20],[4405,1,4405,4],[4405,6,4405,9],[4407,1,4407,4],[4407,6,4407,9],[4364,1,4364,4],[4364,6,4364,11],[4366,1,4366,4],[4366,6,4366,11],[4368,1,4368,4],[4368,6,4368,11],[4370,17,4370,20],[4372,1,4372,4],[4372,6,4372,11],[4374,1,4374,4],[4374,6,4374,11],[4376,1,4376,4],[4376,6,4376,11],[4378,1,4378,4],[4378,6,4378,11],[4380,1,4380,4],[4380,6,4380,11],[4307,1,4307,4],[4307,6,4307,9],[4309,1,4309,4],[4309,6,4309,9],[4311,1,4311,4],[4311,6,4311,9],[4313,17,4313,20],[4336,1,4340,14],[4342,3,4342,10],[4342,17,4342,20],[4344,3,4344,10],[4346,3,4346,10],[4348,3,4348,10],[4353,3,4353,10],[4360,1,4360,4],[4360,6,4360,11],[4362,1,4362,4],[4362,6,4362,11],[4285,1,4285,4],[4285,8,4285,11],[4287,1,4287,4],[4287,8,4287,11],[4289,1,4289,4],[4289,8,4289,11],[4291,17,4291,20],[4297,1,4297,4],[4297,6,4297,9],[4299,1,4299,4],[4299,6,4299,9],[4301,1,4301,4],[4301,6,4301,9],[4303,1,4303,4],[4303,6,4303,9],[4305,1,4305,4],[4305,6,4305,9],[4262,17,4262,20],[4264,1,4264,4],[4264,6,4264,11],[4266,1,4266,4],[4266,6,4266,11],[4268,1,4268,4],[4268,6,4268,11],[4270,1,4270,4],[4270,6,4270,11],[4272,1,4272,4],[4272,6,4272,11],[4274,1,4274,4],[4274,6,4274,11],[4281,1,4281,4],[4281,8,4281,11],[4283,1,4283,4],[4283,8,4283,11],[4204,17,4204,20],[4227,1,4231,14],[4234,3,4234,10],[4234,17,4234,20],[4236,3,4236,10],[4238,3,4238,10],[4240,3,4240,10],[4245,3,4245,10],[4252,1,4252,4],[4252,6,4252,11],[4254,1,4254,4],[4254,6,4254,11],[4256,1,4256,4],[4256,6,4256,11],[4258,1,4258,4],[4258,6,4258,11],[4260,1,4260,4],[4260,6,4260,11],[4182,17,4182,20],[4188,1,4188,4],[4188,6,4188,9],[4190,1,4190,4],[4190,6,4190,9],[4192,1,4192,4],[4192,6,4192,9],[4194,1,4194,4],[4194,6,4194,9],[4196,1,4196,4],[4196,6,4196,9],[4198,1,4198,4],[4198,6,4198,9],[4200,1,4200,4],[4200,6,4200,9],[4202,1,4202,4],[4202,6,4202,9],[4159,1,4159,4],[4159,6,4159,11],[4161,1,4161,4],[4161,6,4161,11],[4163,1,4163,4],[4163,6,4163,11],[4165,1,4165,4],[4165,6,4165,11],[4172,1,4172,4],[4172,8,4172,11],[4174,1,4174,4],[4174,8,4174,11],[4176,1,4176,4],[4176,8,4176,11],[4178,1,4178,4],[4178,8,4178,11],[4180,1,4180,4],[4180,8,4180,11],[4129,3,4129,10],[4131,3,4131,10],[4136,3,4136,10],[4143,1,4143,4],[4143,6,4143,11],[4145,1,4145,4],[4145,6,4145,11],[4147,1,4147,4],[4147,6,4147,11],[4149,1,4149,4],[4149,6,4149,11],[4151,1,4151,4],[4151,6,4151,11],[4153,17,4153,20],[4155,1,4155,4],[4155,6,4155,11],[4157,1,4157,4],[4157,6,4157,11],[4084,1,4084,4],[4084,6,4084,9],[4086,1,4086,4],[4086,6,4086,9],[4088,1,4088,4],[4088,6,4088,9],[4090,1,4090,4],[4090,6,4090,9],[4092,1,4092,4],[4092,6,4092,9],[4094,1,4094,4],[4094,6,4094,9],[4096,17,4096,20],[4119,1,4123,14],[4125,3,4125,10],[4125,17,4125,20],[4127,3,4127,10],[4057,1,4057,4],[4057,6,4057,11],[4064,1,4064,4],[4064,8,4064,11],[4066,1,4066,4],[4066,8,4066,11],[4068,1,4068,4],[4068,8,4068,11],[4070,1,4070,4],[4070,8,4070,11],[4072,1,4072,4],[4072,8,4072,11],[4074,17,4074,20],[4080,1,4080,4],[4080,6,4080,9],[4082,1,4082,4],[4082,6,4082,9],[4039,1,4039,4],[4039,6,4039,11],[4041,1,4041,4],[4041,6,4041,11],[4043,1,4043,4],[4043,6,4043,11],[4045,17,4045,20],[4047,1,4047,4],[4047,6,4047,11],[4049,1,4049,4],[4049,6,4049,11],[4051,1,4051,4],[4051,6,4051,11],[4053,1,4053,4],[4053,6,4053,11],[4055,1,4055,4],[4055,6,4055,11],[3982,1,3982,4],[3982,6,3982,9],[3984,1,3984,4],[3984,6,3984,9],[3986,1,3986,4],[3986,6,3986,9],[3988,17,3988,20],[4011,1,4015,14],[4017,3,4017,10],[4017,17,4017,20],[4019,3,4019,10],[4021,3,4021,10],[4023,3,4023,10],[4028,3,4028,10],[4035,1,4035,4],[4035,6,4035,11],[4037,1,4037,4],[4037,6,4037,11],[3960,1,3960,4],[3960,8,3960,11],[3962,1,3962,4],[3962,8,3962,11],[3964,1,3964,4],[3964,8,3964,11],[3966,17,3966,20],[3972,1,3972,4],[3972,6,3972,9],[3974,1,3974,4],[3974,6,3974,9],[3976,1,3976,4],[3976,6,3976,9],[3978,1,3978,4],[3978,6,3978,9],[3980,1,3980,4],[3980,6,3980,9],[3937,17,3937,20],[3939,1,3939,4],[3939,6,3939,11],[3941,1,3941,4],[3941,6,3941,11],[3943,1,3943,4],[3943,6,3943,11],[3945,1,3945,4],[3945,6,3945,11],[3947,1,3947,4],[3947,6,3947,11],[3949,1,3949,4],[3949,6,3949,11],[3956,1,3956,4],[3956,8,3956,11],[3958,1,3958,4],[3958,8,3958,11],[3880,17,3880,20],[3903,1,3907,14],[3909,3,3909,10],[3909,17,3909,20],[3911,3,3911,10],[3913,3,3913,10],[3915,3,3915,10],[3920,3,3920,10],[3927,1,3927,4],[3927,6,3927,11],[3929,1,3929,4],[3929,6,3929,11],[3931,1,3931,4],[3931,6,3931,11],[3933,1,3933,4],[3933,6,3933,11],[3935,1,3935,4],[3935,6,3935,11],[3858,17,3858,20],[3864,1,3864,4],[3864,6,3864,9],[3866,1,3866,4],[3866,6,3866,9],[3868,1,3868,4],[3868,6,3868,9],[3870,1,3870,4],[3870,6,3870,9],[3872,1,3872,4],[3872,6,3872,9],[3874,1,3874,4],[3874,6,3874,9],[3876,1,3876,4],[3876,6,3876,9],[3878,1,3878,4],[3878,6,3878,9],[3835,1,3835,4],[3835,6,3835,11],[3837,1,3837,4],[3837,6,3837,11],[3839,1,3839,4],[3839,6,3839,11],[3841,1,3841,4],[3841,6,3841,11],[3848,1,3848,4],[3848,8,3848,11],[3850,1,3850,4],[3850,8,3850,11],[3852,1,3852,4],[3852,8,3852,11],[3854,1,3854,4],[3854,8,3854,11],[3856,1,3856,4],[3856,8,3856,11],[3805,3,3805,10],[3807,3,3807,10],[3812,3,3812,10],[3819,1,3819,4],[3819,6,3819,11],[3821,1,3821,4],[3821,6,3821,11],[3823,1,3823,4],[3823,6,3823,11],[3825,1,3825,4],[3825,6,3825,11],[3827,1,3827,4],[3827,6,3827,11],[3829,17,3829,20],[3831,1,3831,4],[3831,6,3831,11],[3833,1,3833,4],[3833,6,3833,11],[3760,1,3760,4],[3760,6,3760,9],[3762,1,3762,4],[3762,6,3762,9],[3764,1,3764,4],[3764,6,3764,9],[3766,1,3766,4],[3766,6,3766,9],[3768,1,3768,4],[3768,6,3768,9],[3770,1,3770,4],[3770,6,3770,9],[3772,17,3772,20],[3795,1,3799,14],[3801,3,3801,10],[3801,17,3801,20],[3803,3,3803,10],[3733,1,3733,4],[3733,6,3733,11],[3740,1,3740,4],[3740,8,3740,11],[3742,1,3742,4],[3742,8,3742,11],[3744,1,3744,4],[3744,8,3744,11],[3746,1,3746,4],[3746,8,3746,11],[3748,1,3748,4],[3748,8,3748,11],[3750,17,3750,20],[3756,1,3756,4],[3756,6,3756,9],[3758,1,3758,4],[3758,6,3758,9],[3715,1,3715,4],[3715,6,3715,11],[3717,1,3717,4],[3717,6,3717,11],[3719,1,3719,4],[3719,6,3719,11],[3721,17,3721,20],[3723,1,3723,4],[3723,6,3723,11],[3725,1,3725,4],[3725,6,3725,11],[3727,1,3727,4],[3727,6,3727,11],[3729,1,3729,4],[3729,6,3729,11],[3731,1,3731,4],[3731,6,3731,11],[3657,1,3657,4],[3657,6,3657,9],[3659,1,3659,4],[3659,6,3659,9],[3661,1,3661,4],[3661,6,3661,9],[3663,17,3663,20],[3686,1,3690,14],[3693,3,3693,10],[3693,17,3693,20],[3695,3,3695,10],[3697,3,3697,10],[3699,3,3699,10],[3704,3,3704,10],[3711,1,3711,4],[3711,6,3711,11],[3713,1,3713,4],[3713,6,3713,11],[3635,1,3635,4],[3635,8,3635,11],[3637,1,3637,4],[3637,8,3637,11],[3639,1,3639,4],[3639,8,3639,11],[3641,17,3641,20],[3647,1,3647,4],[3647,6,3647,9],[3649,1,3649,4],[3649,6,3649,9],[3651,1,3651,4],[3651,6,3651,9],[3653,1,3653,4],[3653,6,3653,9],[3655,1,3655,4],[3655,6,3655,9],[3612,17,3612,20],[3614,1,3614,4],[3614,6,3614,11],[3616,1,3616,4],[3616,6,3616,11],[3618,1,3618,4],[3618,6,3618,11],[3620,1,3620,4],[3620,6,3620,11],[3622,1,3622,4],[3622,6,3622,11],[3624,1,3624,4],[3624,6,3624,11],[3631,1,3631,4],[3631,8,3631,11],[3633,1,3633,4],[3633,8,3633,11],[3578,1,3582,14],[3584,3,3584,10],[3584,17,3584,20],[3586,3,3586,10],[3588,3,3588,10],[3590,3,3590,10],[3595,3,3595,10],[3602,1,3602,4],[3602,6,3602,11],[3604,1,3604,4],[3604,6,3604,11],[3606,1,3606,4],[3606,6,3606,11],[3608,1,3608,4],[3608,6,3608,11],[3610,1,3610,4],[3610,6,3610,11],[3539,1,3539,4],[3539,6,3539,9],[3541,1,3541,4],[3541,6,3541,9],[3543,1,3543,4],[3543,6,3543,9],[3545,1,3545,4],[3545,6,3545,9],[3547,1,3547,4],[3547,6,3547,9],[3549,1,3549,4],[3549,6,3549,9]],"merged_total":2933,"flags":["merged_cut"]}
["New Program Application"]
["Pennsylvania State Board of Private Licensed Schools"]
[]
["CDL Program Applicants do not need to complete this worksheet, this information is collected on the CDL Program worksheet."]
[]
["Make any necessary adjustments to instructor names on the PDE3003 Instructor List worksheet."]
[]
["If some instructors that will be required for this program have not been hired yet, indicate TBA as the instructor's name on the PDE3003 "]
["Instructor List worksheet and provide a staffing plan or a job description and resumes of qualified applicants* at the bottom of this worksheet.  ",null,null,null,null,null,null,null,null,null,null,null,null,null,null,null,"*Staffing plans should be entered in the section starting with row 5421 at the bottom of this worksheet."]
["Please note that the board may require additional information."]
[]
["NOTE:  It is not necessary to complete a PDE-279 for every instructor that might teach courses in the program in the future.  "]
["It is only necessary to complete a PDE-279 form with the program application for the main instructor who will teach the course initially."]
[]
["NOTE:  It is  necessary to enter the corresponding dates in the following format 12/2013. The cell will then automatically revise to read December 2013.  "]
[]
[null,null,"Qualifications of Instructor:",{"$f":"'PDE3003 Instructor List'!C17","v":0},null,null,null,null,null,null,null,null,null,null,null,null,null,{"$f":"'PDE3003 Instructor List'!C17","v":0}]
[]
[null,null,"Instructor's Home Address:"]
[]
[]
[]
[]
[null,null,null,"City, State and Zip Code"]
[]
[null,null,null,null,"Is this instructor currently employed by the school? "]
[]
[null,null,"School Director:"]
[null,null,null,"By placing my name above, I certify that, to the best of my knowledge, the information reported herein is true and accurate."]
[]
[null,null,"Date of Certification:"]
[]
["Names of courses to be taught by this instructor in the proposed new program:"]
[]
["Courses:"]
[]
[]
[]
[]
[]
[]
[]
[]
[]
["Courses taught by this instructor in OTHER programs at the school:",null,null,null,null,null,null,null,null,null,null,null,null,null,null,null,null,{"$f":"'PDE3003 Instructor List'!C17","v":0}]
[]
["Courses:"]
[]
[]
[]
[]
[]
[]
[]
[]
[]
[]
[]
["Instructor's Education:"]
[null,null,null,null,null,null,null,null,"Award Received and Field of Study",null,null,null,null,"Dates Attended"]
[null,"Institution Attended",null,null,null,null,null,null,"(Examples: BS-Computer Science or ",null,null,null,null,"Month/Year",null,"Month/Year"]
[null,"School name, city, & state",null,null,null,null,"Graduated",null,"Diploma-Carpentry)",null,null,null,null,"From",null,"To"]
[]
["College:"]
[]
["College:"]
[]
["Other:"]
[]
["Other:"]
[]
["High School:"]
[]
["Instructor's Program-Specific Teaching and/or Work Experience (list chronologically starting with the most recent employer, including this school):",null,null,null,null,null,null,null,null,null,null,null,null,null,null,null,null,{"$f":"'PDE3003 Instructor List'!C17","v":0}]
[]
[null,null,null,null,null,null,null,null,null,null,null,"Dates of Employment"]
[null,"Employer",null,null,null,null,"Subject(s) Taught or Position Held",null,null,null,null,"Month/Year",null,"Month/Year"]
[null,"Employer name, city, & state",null,null,null,null,"(include supervisory experience)",null,null,null,null,"From",null,"To"]
[]
[]
[]
[]
[]
[]
[]
[]
[]
[]
[]
[]
[]
[]
[]
[]
[]
["Instructor's Verification of Qualifications:",null,null,null,null,null,null,null,null,null,null,null,null,null,null,null,null,{"$f":"'PDE3003 Instructor List'!C17","v":0}]
[]
[null," The Board's regulations require instructors to have at least one of the qualifications listed below (22 Pa. Code Section 73.104).  "]
[null," Check all of the qualifications that apply, then attach the documentation needed for at least one of the qualifications you checked."]
[]
[null,"Baccalaureate degree or higher in the intended field of instruction.  (Embed copy of degree and/or transcript.)"]
[]
[null,"Two or more years' work experience in the intended field of instruction which is acceptable to the School Director."]
[null,"(Embed resume and/or letters from former employers describing the nature of the instructor's former duties.)"]
[]
[null,"Two or more years' teaching experience in the intended field of instruction.  "]
[null,"(Embed resume and/or letters from former employers that verify teaching experience and qualification in the field.)"]
[]
[null,"Journeyman's license relevant to the intended field of instruction.  (Embed copy of license.)"]
[]
[null,"Demonstrated competency in the intended field of instruction. "]
[null,"(Embed documentation of competency.  Such documentation would include a copy of a widely accepted license or certificate such "]
[null,"as a CDL, a MCSE certificate, or a \"Train the Trainer\" certificate.)"]
[]
[null,"State certification as a Vocational Educator in the intended field of instruction.  (Embed copy of certificate.)"]
[]
[null,"Embed evidence to verify the instructor's qualifications:"]
[]
[]
[]
[]
[]
[]
[]
[null,null,"Qualifications of Instructor:",{"$f":"'PDE3003 Instructor List'!C18","v":{"$error":"#N/A"}},null,null,null,null,null,null,null,null,null,null,null,null,null,{"$f":"'PDE3003 Instructor List'!C18","v":{"$error":"#N/A"}}]
[]
[null,null,"Instructor's Home Address:"]
[]
[]
[]
[]
[null,null,null,"City, State and Zip Code"]
[]
[null,null,null,null,"Is this instructor currently employed by the school? "]
[]
[null,null,"School Director:"]
[null,null,null,"By placing my name above, I certify that, to the best of my knowledge, the information reported herein is true and accurate."]
[]
[null,null,"Date of Certification:"]
[]
["Names of courses to be taught by this instructor in the proposed new program:"]
[]
["Courses:"]
[]
[]
[]
[]
[]
[]
[]
[]
[]
["Courses taught by this instructor in OTHER programs at the school:",null,null,null,null,null,null,null,null,null,null,null,null,null,null,null,null,{"$f":"'PDE3003 Instructor List'!C18","v":{"$error":"#N/A"}}]
[]
["Courses:"]
[]
[]
[]
[]
[]
[]
[]
[]
[]
[]
[]
["Instructor's Education:"]
[null,null,null,null,null,null,null,null,"Award Received and Field of Study",null,null,null,null,"Dates Attended"]
[null,"Institution Attended",null,null,null,null,null,null,"(Examples: BS-Computer Science or ",null,null,null,null,"Month/Year",null,"Month/Year"]
[null,"School name, city, & state",null,null,null,null,"Graduated",null,"Diploma-Carpentry or Certificate-Word Processing)",null,null,null,null,"From",null,"To"]
[]
["College:"]
[]
["College:"]
[]
["Other:"]
[]
["Other:"]
[]
["High School:"]
[]
["Instructor's Program-Specific Teaching and/or Work Experience (list chronologically starting with the most recent employer, including this school):",null,null,null,null,null,null,null,null,null,null,null,null,null,null,null,null,{"$f":"'PDE3003 Instructor List'!C18","v":{"$error":"#N/A"}}]
[]
[null,null,null,null,null,null,null,null,null,null,null,"Dates of Employment"]
[null,"Employer",null,null,null,null,"Subject(s) Taught or Position Held",null,null,null,null,"Month/Year",null,"Month/Year"]
[null,"Employer name, city, & state",null,null,null,null,"(include supervisory experience)",null,null,null,null,"From",null,"To"]
[]
[]
[]
[]
[]
[]
[]
[]
[]
[]
[]
[]
[]
[]
[]
[]
[]
["Instructor's Verification of Qualifications:",null,null,null,null,null,null,null,null,null,null,null,null,null,null,null,null,{"$f":"'PDE3003 Instructor List'!C18","v":{"$error":"#N/A"}}]
[]
[null," The Board's regulations require instructors to have at least one of the qualifications listed below (22 Pa. Code Section 73.104).  "]
[null," Check all of the qualifications that apply, then attach the documentation needed for at least one of the qualifications you checked."]
[]
[null,"Baccalaureate degree or higher in the intended field of instruction.  (Embed copy of degree and/or transcript.)"]
[]
[null,"Two or more years' work experience in the intended field of instruction which is acceptable to the School Director."]
[null,"(Embed resume and/or letters from former employers describing the nature of the instructor's former duties.)"]
[]
[null,"Two or more years' teaching experience in the intended field of instruction.  "]
[null,"(Embed resume and/or letters from former employers that verify teaching experience and qualification in the field.)"]
[]
[null,"Journeyman's license relevant to the intended field of instruction.  (Embed copy of license.)"]
[]
[null,"Demonstrated competency in the intended field of instruction. "]
[null,"(Embed documentation of competency.  Such documentation would include a copy of a widely accepted license or certificate such "]
[null,"as a CDL, a MCSE certificate, or a \"Train the Trainer\" certificate.)"]
[]
[null,"State certification as a Vocational Educator in the intended field of instruction.  (Embed copy of certificate.)"]
[]
[null,"Embed evidence to verify the instructor's qualifications:"]
[]
[]
[]
[]
[]
[]
[]
[null,null,"Qualifications of Instructor:",{"$f":"'PDE3003 Instructor List'!C19","v":{"$error":"#N/A"}},null,null,null,null,null,null,null,null,null,null,null,null,null,{"$f":"'PDE3003 Instructor List'!C19","v":{"$error":"#N/A"}}]
[]
[null,null,"Instructor's Home Address:"]
[]
[]
[]
[]
[null,null,null,"City, State and Zip Code"]
[]
[null,null,null,null,"Is this instructor currently employed by the school? "]
[]
[null,null,"School Director:"]
[null,null,null,"By placing my name above, I certify that, to the best of my knowledge, the information reported herein is true and accurate."]
[]
[null,null,"Date of Certification:"]
[]
["Names of courses to be taught by this instructor in the proposed new program:"]
[]
["Courses:"]
[]
[]
[]
[]
[]
[]
[]
[]
[]
["Courses taught by this instructor in OTHER programs at the school:",null,null,null,null,null,null,null,null,null,null,null,null,null,null,null,null,{"$f":"'PDE3003 Instructor List'!C19","v":{"$error":"#N/A"}}]
[]
["Courses:"]
[]
[]
[]
[]
[]
[]
[]
[]
[]
[]
[]
["Instructor's Education:"]
[null,null,null,null,null,null,null,null,"Award Received and Field of Study",null,null,null,null,"Dates Attended"]
[null,"Institution Attended",null,null,null,null,null,null,"(Examples: BS-Computer Science or ",null,null,null,null,"Month/Year",null,"Month/Year"]
[null,"School name, city, & state",null,null,null,null,"Graduated",null,"Diploma-Carpentry or Certificate-Word Processing)",null,null,null,null,"From",null,"To"]
[]
["College:"]
[]
["College:"]
[]
["Other:"]
[]
["Other:"]
[]
["High School:"]
[]
["Instructor's Program-Specific Teaching and/or Work Experience (list chronologically starting with the most recent employer, including this school):",null,null,null,null,null,null,null,null,null,null,null,null,null,null,null,null,{"$f":"'PDE3003 Instructor List'!C19","v":{"$error":"#N/A"}}]
[]
[null,null,null,null,null,null,null,null,null,null,null,"Dates of Employment"]
[null,"Employer",null,null,null,null,"Subject(s) Taught or Position Held",null,null,null,null,"Month/Year",null,"Month/Year"]
[null,"Employer name, city, & state",null,null,null,null,"(include supervisory experience)",null,null,null,null,"From",null,"To"]
[]
[]
[]
[]
[]
[]
[]
[]
[]
[]
[]
[]
[]
[]
[]
[]
[]
["Instructor's Verification of Qualifications:",null,null,null,null,null,null,null,null,null,null,null,null,null,null,null,null,{"$f":"'PDE3003 Instructor List'!C19","v":{"$error":"#N/A"}}]
[]
[null," The Board's regulations require instructors to have at least one of the qualifications listed below (22 Pa. Code Section 73.104).  "]
[null," Check all of the qualifications that apply, then attach the documentation needed for at least one of the qualifications you checked."]
[]
[null,"Baccalaureate degree or higher in the intended field of instruction.  (Embed copy of degree and/or transcript.)"]
[]
[null,"Two or more years' work experience in the intended field of instruction which is acceptable to the School Director."]
[null,"(Embed resume and/or letters from former employers describing the nature of the instructor's former duties.)"]
[]
[null,"Two or more years' teaching experience in the intended field of instruction.  "]
[null,"(Embed resume and/or letters from former employers that verify teaching experience and qualification in the field.)"]
[]
[null,"Journeyman's license relevant to the intended field of instruction.  (Embed copy of license.)"]
[]
[null,"Demonstrated competency in the intended field of instruction. "]
[null,"(Embed documentation of competency.  Such documentation would include a copy of a widely accepted license or certificate such "]
[null,"as a CDL, a MCSE certificate, or a \"Train the Trainer\" certificate.)"]
[]
[null,"State certification as a Vocational Educator in the intended field of instruction.  (Embed copy of certificate.)"]
[]
[null,"Embed evidence to verify the instructor's qualifications:"]
[]
[]
[]
[]
[]
[]
[]
[null,null,"Qualifications of Instructor:",{"$f":"'PDE3003 Instructor List'!C20","v":{"$error":"#N/A"}},null,null,null,null,null,null,null,null,null,null,null,null,null,{"$f":"'PDE3003 Instructor List'!C20","v":{"$error":"#N/A"}}]
[]
[null,null,"Instructor's Home Address:"]
[]
[]
[]
[]
[null,null,null,"City, State and Zip Code"]
[]
[null,null,null,null,"Is this instructor currently employed by the school?"]
[]
[null,null,"School Director:"]
[null,null,null,"By placing my name above, I certify that, to the best of my knowledge, the information reported herein is true and accurate."]
[]
[null,null,"Date of Certification:"]
[]
["Names of courses to be taught by this instructor in the proposed new program:"]
[]
["Courses:"]
[]
[]
[]
[]
[]
[]
[]
[]
[]
["Courses taught by this instructor in OTHER programs at the school:",null,null,null,null,null,null,null,null,null,null,null,null,null,null,null,null,{"$f":"'PDE3003 Instructor List'!C20","v":{"$error":"#N/A"}}]
[]
["Courses:"]
[]
[]
[]
[]
[]
[]
[]
[]
[]
[]
[]
["Instructor's Education:"]
[null,null,null,null,null,null,null,null,"Award Received and Field of Study",null,null,null,null,"Dates Attended"]
[null,"Institution Attended",null,null,null,null,null,null,"(Examples: BS-Computer Science or ",null,null,null,null,"Month/Year",null,"Month/Year"]
[null,"School name, city, & state",null,null,null,null,"Graduated",null,"Diploma-Carpentry or Certificate-Word Processing)",null,null,null,null,"From",null,"To"]
[]
["College:"]
[]
["College:"]
[]
["Other:"]
[]
["Other:"]
[]
["High School:"]
[]
["Instructor's Program-Specific Teaching and/or Work Experience (list chronologically starting with the most recent employer, including this school):",null,null,null,null,null,null,null,null,null,null,null,null,null,null,null,null,{"$f":"'PDE3003 Instructor List'!C20","v":{"$error":"#N/A"}}]
[]
[null,null,null,null,null,null,null,null,null,null,null,"Dates of Employment"]
[null,"Employer",null,null,null,null,"Subject(s) Taught or Position Held",null,null,null,null,"Month/Year",null,"Month/Year"]
[null,"Employer name, city, & state",null,null,null,null,"(include supervisory experience)",null,null,null,null,"From",null,"To"]
[]
[]
[]
[]
[]
[]
[]
[]
[]
[]
[]
[]
[]
[]
[]
[]
[]
["Instructor's Verification of Qualifications:",null,null,null,null,null,null,null,null,null,null,null,null,null,null,null,null,{"$f":"'PDE3003 Instructor List'!C20","v":{"$error":"#N/A"}}]
[]
[null," The Board's regulations require instructors to have at least one of the qualifications listed below (22 Pa. Code Section 73.104).  "]
[null," Check all of the qualifications that apply, then attach the documentation needed for at least one of the qualifications you checked."]
[]
[null,"Baccalaureate degree or higher in the intended field of instruction.  (Embed copy of degree and/or transcript.)"]
[]
[null,"Two or more years' work experience in the intended field of instruction which is acceptable to the School Director."]
[null,"(Embed resume and/or letters from former employers describing the nature of the instructor's former duties.)"]
[]
[null,"Two or more years' teaching experience in the intended field of instruction.  "]
[null,"(Embed resume and/or letters from former employers that verify teaching experience and qualification in the field.)"]
[]
[null,"Journeyman's license relevant to the intended field of instruction.  (Embed copy of license.)"]
[]
[null,"Demonstrated competency in the intended field of instruction. "]
[null,"(Embed documentation of competency.  Such documentation would include a copy of a widely accepted license or certificate such "]
[null,"as a CDL, a MCSE certificate, or a \"Train the Trainer\" certificate.)"]
[]
[null,"State certification as a Vocational Educator in the intended field of instruction.  (Embed copy of certificate.)"]
[]
[null,"Embed evidence to verify the instructor's qualifications:"]
[]
[]
[]
[]
[]
[]
[]
[null,null,"Qualifications of Instructor:",{"$f":"'PDE3003 Instructor List'!C21","v":{"$error":"#N/A"}},null,null,null,null,null,null,null,null,null,null,null,null,null,{"$f":"'PDE3003 Instructor List'!C21","v":{"$error":"#N/A"}}]
[]
[null,null,"Instructor's Home Address:"]
[]
[]
[]
[]
[null,null,null,"City, State and Zip Code"]
[]
[null,null,null,null,"Is this instructor currently employed by the school?"]
[]
[null,null,"School Director:"]
[null,null,null,"By placing my name above, I certify that, to the best of my knowledge, the information reported herein is true and accurate."]
[]
[null,null,"Date of Certification:"]
[]
["Names of courses to be taught by this instructor in the proposed new program:"]
[]
["Courses:"]
[]
[]
[]
[]
[]
[]
[]
[]
[]
["Courses taught by this instructor in OTHER programs at the school:",null,null,null,null,null,null,null,null,null,null,null,null,null,null,null,null,{"$f":"'PDE3003 Instructor List'!C21","v":{"$error":"#N/A"}}]
[]
["Courses:"]
[]
[]
[]
[]
[]
[]
[]
[]
[]
[]
[]
["Instructor's Education:"]
[null,null,null,null,null,null,null,null,"Award Received and Field of Study",null,null,null,null,"Dates Attended"]
[null,"Institution Attended",null,null,null,null,null,null,"(Examples: BS-Computer Science or ",null,null,null,null,"Month/Year",null,"Month/Year"]
[null,"School name, city, & state",null,null,null,null,"Graduated",null,"Diploma-Carpentry or Certificate-Word Processing)",null,null,null,null,"From",null,"To"]
[]
["College:"]
[]
["College:"]
[]
["Other:"]
[]
["Other:"]
[]
["High School:"]
[]
["Instructor's Program-Specific Teaching and/or Work Experience (list chronologically starting with the most recent employer, including this school):",null,null,null,null,null,null,null,null,null,null,null,null,null,null,null,null,{"$f":"'PDE3003 Instructor List'!C21","v":{"$error":"#N/A"}}]
[]
[null,null,null,null,null,null,null,null,null,null,null,"Dates of Employment"]
[null,"Employer",null,null,null,null,"Subject(s) Taught or Position Held",null,null,null,null,"Month/Year",null,"Month/Year"]
[null,"Employer name, city, & state",null,null,null,null,"(include supervisory experience)",null,null,null,null,"From",null,"To"]
[]
[]
[]
[]
[]
[]
[]
[]
[]
[]
[]
[]
[]
[]
[]
[]
[]
["Instructor's Verification of Qualifications:",null,null,null,null,null,null,null,null,null,null,null,null,null,null,null,null,{"$f":"'PDE3003 Instructor List'!C21","v":{"$error":"#N/A"}}]
[]
[null," The Board's regulations require instructors to have at least one of the qualifications listed below (22 Pa. Code Section 73.104).  "]
[null," Check all of the qualifications that apply, then attach the documentation needed for at least one of the qualifications you checked."]
[]
[null,"Baccalaureate degree or higher in the intended field of instruction.  (Embed copy of degree and/or transcript.)"]
[]
[null,"Two or more years' work experience in the intended field of instruction which is acceptable to the School Director."]
[null,"(Embed resume and/or letters from former employers describing the nature of the instructor's former duties.)"]
[]
[null,"Two or more years' teaching experience in the intended field of instruction.  "]
[null,"(Embed resume and/or letters from former employers that verify teaching experience and qualification in the field.)"]
[]
[null,"Journeyman's license relevant to the intended field of instruction.  (Embed copy of license.)"]
[]
[null,"Demonstrated competency in the intended field of instruction. "]
[null,"(Embed documentation of competency.  Such documentation would include a copy of a widely accepted license or certificate such "]
[null,"as a CDL, a MCSE certificate, or a \"Train the Trainer\" certificate.)"]
[]
[null,"State certification as a Vocational Educator in the intended field of instruction.  (Embed copy of certificate.)"]
[]
[null,"Embed evidence to verify the instructor's qualifications:"]
[]
[]
[]
[]
[]
[]
[]
[null,null,"Qualifications of Instructor:",{"$f":"'PDE3003 Instructor List'!C22","v":{"$error":"#N/A"}},null,null,null,null,null,null,null,null,null,null,null,null,null,{"$f":"'PDE3003 Instructor List'!C22","v":{"$error":"#N/A"}}]
[]
[null,null,"Instructor's Home Address:"]
[]
[]
[]
[]
[null,null,null,"City, State and Zip Code"]
[]
[null,null,null,null,"Is this instructor currently employed by the school? "]
[]
[null,null,"School Director:"]
[null,null,null,"By placing my name above, I certify that, to the best of my knowledge, the information reported herein is true and accurate."]
[]
[null,null,"Date of Certification:"]
[]
["Names of courses to be taught by this instructor in the proposed new program:"]
[]
["Courses:"]
[]
[]
[]
[]
[]
[]
[]
[]
[]
["Courses taught by this instructor in OTHER programs at the school:",null,null,null,null,null,null,null,null,null,null,null,null,null,null,null,null,{"$f":"'PDE3003 Instructor List'!C22","v":{"$error":"#N/A"}}]
[]
["Courses:"]
[]
[]
[]
[]
[]
[]
[]
[]
[]
[]
[]
["Instructor's Education:"]
[null,null,null,null,null,null,null,null,"Award Received and Field of Study",null,null,null,null,"Dates Attended"]
[null,"Institution Attended",null,null,null,null,null,null,"(Examples: BS-Computer Science or ",null,null,null,null,"Month/Year",null,"Month/Year"]
[null,"School name, city, & state",null,null,null,null,"Graduated",null,"Diploma-Carpentry or Certificate-Word Processing)",null,null,null,null,"From",null,"To"]
[]
["College:"]
[]
["College:"]
[]
["Other:"]
[]
["Other:"]
[]
["High School:"]
[]
["Instructor's Program-Specific Teaching and/or Work Experience (list chronologically starting with the most recent employer, including this school):",null,null,null,null,null,null,null,null,null,null,null,null,null,null,null,null,{"$f":"'PDE3003 Instructor List'!C22","v":{"$error":"#N/A"}}]
[]
[null,null,null,null,null,null,null,null,null,null,null,"Dates of Employment"]
[null,"Employer",null,null,null,null,"Subject(s) Taught or Position Held",null,null,null,null,"Month/Year",null,"Month/Year"]
[null,"Employer name, city, & state",null,null,null,null,"(include supervisory experience)",null,null,null,null,"From",null,"To"]
[]
[]
[]
[]
[]
[]
[]
[]
[]
[]
[]
[]
[]
[]
[]
[]
[]
["Instructor's Verification of Qualifications:",null,null,null,null,null,null,null,null,null,null,null,null,null,null,null,null,{"$f":"'PDE3003 Instructor List'!C22","v":{"$error":"#N/A"}}]
[]
[null," The Board's regulations require instructors to have at least one of the qualifications listed below (22 Pa. Code Section 73.104).  "]
[null," Check all of the qualifications that apply, then attach the documentation needed for at least one of the qualifications you checked."]
[]
[null,"Baccalaureate degree or higher in the intended field of instruction.  (Embed copy of degree and/or transcript.)"]
[]
[null,"Two or more years' work experience in the intended field of instruction which is acceptable to the School Director."]
[null,"(Embed resume and/or letters from former employers describing the nature of the instructor's former duties.)"]
[]
[null,"Two or more years' teaching experience in the intended field of instruction.  "]
[null,"(Embed resume and/or letters from former employers that verify teaching experience and qualification in the field.)"]
[]
[null,"Journeyman's license relevant to the intended field of instruction.  (Embed copy of license.)"]
[]
[null,"Demonstrated competency in the intended field of instruction. "]
[null,"(Embed documentation of competency.  Such documentation would include a copy of a widely accepted license or certificate such "]
[null,"as a CDL, a MCSE certificate, or a \"Train the Trainer\" certificate.)"]
[]
[null,"State certification as a Vocational Educator in the intended field of instruction.  (Embed copy of certificate.)"]
[]
[null,"Embed evidence to verify the instructor's qualifications:"]
[]
[]
[]
[]
[]
[]
[]
[null,null,"Qualifications of Instructor:",{"$f":"'PDE3003 Instructor List'!C23","v":{"$error":"#N/A"}},null,null,null,null,null,null,null,null,null,null,null,null,null,{"$f":"'PDE3003 Instructor List'!C23","v":{"$error":"#N/A"}}]
[]
[null,null,"Instructor's Home Address:"]
[]
[]
[]
[]
[null,null,null,"City, State and Zip Code"]
[]
[null,null,null,null,"Is this instructor currently employed by the school? "]
[]
[null,null,"School Director:"]
[null,null,null,"By placing my name above, I certify that, to the best of my knowledge, the information reported herein is true and accurate."]
[]
[null,null,"Date of Certification:"]
[]
["Names of courses to be taught by this instructor in the proposed new program:"]
[]
["Courses:"]
[]
[]
[]
[]
[]
[]
[]
[]
[]
["Courses taught by this instructor in OTHER programs at the school:",null,null,null,null,null,null,null,null,null,null,null,null,null,null,null,null,{"$f":"'PDE3003 Instructor List'!C23","v":{"$error":"#N/A"}}]
[]
["Courses:"]
[]
[]
[]
[]
[]
[]
[]
[]
[]
[]
[]
["Instructor's Education:"]
[null,null,null,null,null,null,null,null,"Award Received and Field of Study",null,null,null,null,"Dates Attended"]
[null,"Institution Attended",null,null,null,null,null,null,"(Examples: BS-Computer Science or ",null,null,null,null,"Month/Year",null,"Month/Year"]
[null,"School name, city, & state",null,null,null,null,"Graduated",null,"Diploma-Carpentry or Certificate-Word Processing)",null,null,null,null,"From",null,"To"]
[]
["College:"]
[]
["College:"]
[]
["Other:"]
[]
["Other:"]
[]
["High School:"]
[]
["Instructor's Program-Specific Teaching and/or Work Experience (list chronologically starting with the most recent employer, including this school):",null,null,null,null,null,null,null,null,null,null,null,null,null,null,null,null,{"$f":"'PDE3003 Instructor List'!C23","v":{"$error":"#N/A"}}]
[]
[null,null,null,null,null,null,null,null,null,null,null,"Dates of Employment"]
[null,"Employer",null,null,null,null,"Subject(s) Taught or Position Held",null,null,null,null,"Month/Year",null,"Month/Year"]
[null,"Employer name, city, & state",null,null,null,null,"(include supervisory experience)",null,null,null,null,"From",null,"To"]
[]
[]
[]
[]
[]
[]
[]
[]
[]
[]
[]
[]
[]
[]
[]
[]
[]
["Instructor's Verification of Qualifications:",null,null,null,null,null,null,null,null,null,null,null,null,null,null,null,null,{"$f":"'PDE3003 Instructor List'!C23","v":{"$error":"#N/A"}}]
[]
[null," The Board's regulations require instructors to have at least one of the qualifications listed below (22 Pa. Code Section 73.104).  "]
[null," Check all of the qualifications that apply, then attach the documentation needed for at least one of the qualifications you checked."]
[]
[null,"Baccalaureate degree or higher in the intended field of instruction.  (Embed copy of degree and/or transcript.)"]
[]
[null,"Two or more years' work experience in the intended field of instruction which is acceptable to the School Director."]
[null,"(Embed resume and/or letters from former employers describing the nature of the instructor's former duties.)"]
[]
[null,"Two or more years' teaching experience in the intended field of instruction.  "]
[null,"(Embed resume and/or letters from former employers that verify teaching experience and qualification in the field.)"]
[]
[null,"Journeyman's license relevant to the intended field of instruction.  (Embed copy of license.)"]
[]
[null,"Demonstrated competency in the intended field of instruction. "]
[null,"(Embed documentation of competency.  Such documentation would include a copy of a widely accepted license or certificate such "]
[null,"as a CDL, a MCSE certificate, or a \"Train the Trainer\" certificate.)"]
[]
[null,"State certification as a Vocational Educator in the intended field of instruction.  (Embed copy of certificate.)"]
[]
[null,"Embed evidence to verify the instructor's qualifications:"]
[]
[]
[]
[]
[]
[]
[]
[null,null,"Qualifications of Instructor:",{"$f":"'PDE3003 Instructor List'!C24","v":{"$error":"#N/A"}},null,null,null,null,null,null,null,null,null,null,null,null,null,{"$f":"'PDE3003 Instructor List'!C24","v":{"$error":"#N/A"}}]
[]
[null,null,"Instructor's Home Address:"]
[]
[]
[]
[]
[null,null,null,"City, State and Zip Code"]
[]
[null,null,null,null,"Is this instructor currently employed by the school? "]
[]
[null,null,"School Director:"]
[null,null,null,"By placing my name above, I certify that, to the best of my knowledge, the information reported herein is true and accurate."]
[]
[null,null,"Date of Certification:"]
[]
["Names of courses to be taught by this instructor in the proposed new program:"]
[]
["Courses:"]
[]
[]
[]
[]
[]
[]
[]
[]
[]
["Courses taught by this instructor in OTHER programs at the school:",null,null,null,null,null,null,null,null,null,null,null,null,null,null,null,null,{"$f":"'PDE3003 Instructor List'!C24","v":{"$error":"#N/A"}}]
[]
["Courses:"]
[]
[]
[]
[]
[]
[]
[]
[]
[]
[]
[]
["Instructor's Education:"]
[null,null,null,null,null,null,null,null,"Award Received and Field of Study",null,null,null,null,"Dates Attended"]
[null,"Institution Attended",null,null,null,null,null,null,"(Examples: BS-Computer Science or ",null,null,null,null,"Month/Year",null,"Month/Year"]
[null,"School name, city, & state",null,null,null,null,"Graduated",null,"Diploma-Carpentry or Certificate-Word Processing)",null,null,null,null,"From",null,"To"]
[]
["College:"]
[]
["College:"]
[]
["Other:"]
[]
["Other:"]
[]
["High School:"]
[]
["Instructor's Program-Specific Teaching and/or Work Experience (list chronologically starting with the most recent employer, including this school):",null,null,null,null,null,null,null,null,null,null,null,null,null,null,null,null,{"$f":"'PDE3003 Instructor List'!C24","v":{"$error":"#N/A"}}]
[]
[null,null,null,null,null,null,null,null,null,null,null,"Dates of Employment"]
[null,"Employer",null,null,null,null,"Subject(s) Taught or Position Held",null,null,null,null,"Month/Year",null,"Month/Year"]
[null,"Employer name, city, & state",null,null,null,null,"(include supervisory experience)",null,null,null,null,"From",null,"To"]
[]
[]
[]
[]
[]
[]
[]
[]
[]
[]
[]
[]
[]
[]
[]
[]
[]
["Instructor's Verification of Qualifications:",null,null,null,null,null,null,null,null,null,null,null,null,null,null,null,null,{"$f":"'PDE3003 Instructor List'!C24","v":{"$error":"#N/A"}}]
[]
[null," The Board's regulations require instructors to have at least one of the qualifications listed below (22 Pa. Code Section 73.104).  "]
[null," Check all of the qualifications that apply, then attach the documentation needed for at least one of the qualifications you checked."]
[]
[null,"Baccalaureate degree or higher in the intended field of instruction.  (Embed copy of degree and/or transcript.)"]
[]
[null,"Two or more years' work experience in the intended field of instruction which is acceptable to the School Director."]
[null,"(Embed resume and/or letters from former employers describing the nature of the instructor's former duties.)"]
[]
[null,"Two or more years' teaching experience in the intended field of instruction.  "]
[null,"(Embed resume and/or letters from former employers that verify teaching experience and qualification in the field.)"]
[]
[null,"Journeyman's license relevant to the intended field of instruction.  (Embed copy of license.)"]
[]
[null,"Demonstrated competency in the intended field of instruction. "]
[null,"(Embed documentation of competency.  Such documentation would include a copy of a widely accepted license or certificate such "]
[null,"as a CDL, a MCSE certificate, or a \"Train the Trainer\" certificate.)"]
[]
[null,"State certification as a Vocational Educator in the intended field of instruction.  (Embed copy of certificate.)"]
[]
[null,"Embed evidence to verify the instructor's qualifications:"]
[]
[]
[]
[]
[]
[]
[]
[null,null,"Qualifications of Instructor:",{"$f":"'PDE3003 Instructor List'!C25","v":{"$error":"#N/A"}},null,null,null,null,null,null,null,null,null,null,null,null,null,{"$f":"'PDE3003 Instructor List'!C25","v":{"$error":"#N/A"}}]
[]
[null,null,"Instructor's Home Address:"]
[]
[]
[]
[]
[null,null,null,"City, State and Zip Code"]
[]
[null,null,null,null,"Is this instructor currently employed by the school? "]
[]
[null,null,"School Director:"]
[null,null,null,"By placing my name above, I certify that, to the best of my knowledge, the information reported herein is true and accurate."]
[]
[null,null,"Date of Certification:"]
[]
["Names of courses to be taught by this instructor in the proposed new program:"]
[]
["Courses:"]
[]
[]
[]
[]
[]
[]
[]
[]
[]
["Courses taught by this instructor in OTHER programs at the school:",null,null,null,null,null,null,null,null,null,null,null,null,null,null,null,null,{"$f":"'PDE3003 Instructor List'!C25","v":{"$error":"#N/A"}}]
[]
["Courses:"]
[]
[]
[]
[]
[]
[]
[]
[]
[]
[]
[]
["Instructor's Education:"]
[null,null,null,null,null,null,null,null,"Award Received and Field of Study",null,null,null,null,"Dates Attended"]
[null,"Institution Attended",null,null,null,null,null,null,"(Examples: BS-Computer Science or ",null,null,null,null,"Month/Year",null,"Month/Year"]
[null,"School name, city, & state",null,null,null,null,"Graduated",null,"Diploma-Carpentry or Certificate-Word Processing)",null,null,null,null,"From",null,"To"]
[]
["College:"]
[]
["College:"]
[]
["Other:"]
[]
["Other:"]
[]
["High School:"]
[]
["Instructor's Program-Specific Teaching and/or Work Experience (list chronologically starting with the most recent employer, including this school):",null,null,null,null,null,null,null,null,null,null,null,null,null,null,null,null,{"$f":"'PDE3003 Instructor List'!C25","v":{"$error":"#N/A"}}]
[]
[null,null,null,null,null,null,null,null,null,null,null,"Dates of Employment"]
[null,"Employer",null,null,null,null,"Subject(s) Taught or Position Held",null,null,null,null,"Month/Year",null,"Month/Year"]
[null,"Employer name, city, & state",null,null,null,null,"(include supervisory experience)",null,null,null,null,"From",null,"To"]
[]
[]
[]
[]
[]
[]
[]
[]
[]
[]
[]
[]
[]
[]
[]
[]
[]
["Instructor's Verification of Qualifications:",null,null,null,null,null,null,null,null,null,null,null,null,null,null,null,null,{"$f":"'PDE3003 Instructor List'!C25","v":{"$error":"#N/A"}}]
[]
[null," The Board's regulations require instructors to have at least one of the qualifications listed below (22 Pa. Code Section 73.104).  "]
[null," Check all of the qualifications that apply, then attach the documentation needed for at least one of the qualifications you checked."]
[]
[null,"Baccalaureate degree or higher in the intended field of instruction.  (Embed copy of degree and/or transcript.)"]
[]
[null,"Two or more years' work experience in the intended field of instruction which is acceptable to the School Director."]
[null,"(Embed resume and/or letters from former employers describing the nature of the instructor's former duties.)"]
[]
[null,"Two or more years' teaching experience in the intended field of instruction.  "]
[null,"(Embed resume and/or letters from former employers that verify teaching experience and qualification in the field.)"]
[]
[null,"Journeyman's license relevant to the intended field of instruction.  (Embed copy of license.)"]
[]
[null,"Demonstrated competency in the intended field of instruction. "]
[null,"(Embed documentation of competency.  Such documentation would include a copy of a widely accepted license or certificate such "]
[null,"as a CDL, a MCSE certificate, or a \"Train the Trainer\" certificate.)"]
[]
[null,"State certification as a Vocational Educator in the intended field of instruction.  (Embed copy of certificate.)"]
[]
[null,"Embed evidence to verify the instructor's qualifications:"]
[]
[]
[]
[]
[]
[]
[]
[]
[null,null,"Qualifications of Instructor:",{"$f":"'PDE3003 Instructor List'!C26","v":{"$error":"#N/A"}},null,null,null,null,null,null,null,null,null,null,null,null,null,{"$f":"'PDE3003 Instructor List'!C26","v":{"$error":"#N/A"}}]
[]
[null,null,"Instructor's Home Address:"]
[]
[]
[]
[]
[null,null,null,"City, State and Zip Code"]
[]
[null,null,null,null,"Is this instructor currently employed by the school? "]
[]
[null,null,"School Director:"]
[null,null,null,"By placing my name above, I certify that, to the best of my knowledge, the information reported herein is true and accurate."]
[]
[null,null,"Date of Certification:"]
[]
["Names of courses to be taught by this instructor in the proposed new program:"]
[]
["Courses:"]
[]
[]
[]
[]
[]
[]
[]
[]
[]
["Courses taught by this instructor in OTHER programs at the school:",null,null,null,null,null,null,null,null,null,null,null,null,null,null,null,null,{"$f":"'PDE3003 Instructor List'!C26","v":{"$error":"#N/A"}}]
[]
["Courses:"]
[]
[]
[]
[]
[]
[]
[]
[]
[]
[]
[]
["Instructor's Education:"]
[null,null,null,null,null,null,null,null,"Award Received and Field of Study",null,null,null,null,"Dates Attended"]
[null,"Institution Attended",null,null,null,null,null,null,"(Examples: BS-Computer Science or ",null,null,null,null,"Month/Year",null,"Month/Year"]
[null,"School name, city, & state",null,null,null,null,"Graduated",null,"Diploma-Carpentry or Certificate-Word Processing)",null,null,null,null,"From",null,"To"]
[]
["College:"]
[]
["College:"]
[]
["Other:"]
[]
["Other:"]
[]
["High School:"]
[]
["Instructor's Program-Specific Teaching and/or Work Experience (list chronologically starting with the most recent employer, including this school):",null,null,null,null,null,null,null,null,null,null,null,null,null,null,null,null,{"$f":"'PDE3003 Instructor List'!C26","v":{"$error":"#N/A"}}]
[]
[null,null,null,null,null,null,null,null,null,null,null,"Dates of Employment"]
[null,"Employer",null,null,null,null,"Subject(s) Taught or Position Held",null,null,null,null,"Month/Year",null,"Month/Year"]
[null,"Employer name, city, & state",null,null,null,null,"(include supervisory experience)",null,null,null,null,"From",null,"To"]
[]
[]
[]
[]
[]
[]
[]
[]
[]
[]
[]
[]
[]
[]
[]
[]
[]
["Instructor's Verification of Qualifications:",null,null,null,null,null,null,null,null,null,null,null,null,null,null,null,null,{"$f":"'PDE3003 Instructor List'!C26","v":{"$error":"#N/A"}}]
[]
[null," The Board's regulations require instructors to have at least one of the qualifications listed below (22 Pa. Code Section 73.104).  "]
[null," Check all of the qualifications that apply, then attach the documentation needed for at least one of the qualifications you checked."]
[]
[null,"Baccalaureate degree or higher in the intended field of instruction.  (Embed copy of degree and/or transcript.)"]
[]
[null,"Two or more years' work experience in the intended field of instruction which is acceptable to the School Director."]
[null,"(Embed resume and/or letters from former employers describing the nature of the instructor's former duties.)"]
[]
[null,"Two or more years' teaching experience in the intended field of instruction.  "]
[null,"(Embed resume and/or letters from former employers that verify teaching experience and qualification in the field.)"]
[]
[null,"Journeyman's license relevant to the intended field of instruction.  (Embed copy of license.)"]
[]
[null,"Demonstrated competency in the intended field of instruction. "]
[null,"(Embed documentation of competency.  Such documentation would include a copy of a widely accepted license or certificate such "]
[null,"as a CDL, a MCSE certificate, or a \"Train the Trainer\" certificate.)"]
[]
[null,"State certification as a Vocational Educator in the intended field of instruction.  (Embed copy of certificate.)"]
[]
[null,"Embed evidence to verify the instructor's qualifications:"]
[]
[]
[]
[]
[]
[]
[]
[]
[null,null,"Qualifications of Instructor:",{"$f":"'PDE3003 Instructor List'!C27","v":{"$error":"#N/A"}},null,null,null,null,null,null,null,null,null,null,null,null,null,{"$f":"'PDE3003 Instructor List'!C27","v":{"$error":"#N/A"}}]
[]
[null,null,"Instructor's Home Address:"]
[]
[]
[]
[]
[null,null,null,"City, State and Zip Code"]
[]
[null,null,null,null,"Is this instructor currently employed by the school? "]
[]
[null,null,"School Director:"]
[null,null,null,"By placing my name above, I certify that, to the best of my knowledge, the information reported herein is true and accurate."]
[]
[null,null,"Date of Certification:"]
[]
["Names of courses to be taught by this instructor in the proposed new program:"]
[]
["Courses:"]
[]
[]
[]
[]
[]
[]
[]
[]
[]
["Courses taught by this instructor in OTHER programs at the school:",null,null,null,null,null,null,null,null,null,null,null,null,null,null,null,null,{"$f":"'PDE3003 Instructor List'!C27","v":{"$error":"#N/A"}}]
[]
["Courses:"]
[]
[]
[]
[]
[]
[]
[]
[]
[]
[]
[]
["Instructor's Education:"]
[null,null,null,null,null,null,null,null,"Award Received and Field of Study",null,null,null,null,"Dates Attended"]
[null,"Institution Attended",null,null,null,null,null,null,"(Examples: BS-Computer Science or ",null,null,null,null,"Month/Year",null,"Month/Year"]
[null,"School name, city, & state",null,null,null,null,"Graduated",null,"Diploma-Carpentry or Certificate-Word Processing)",null,null,null,null,"From",null,"To"]
[]
["College:"]
[]
["College:"]
[]
["Other:"]
[]
["Other:"]
[]
["High School:"]
[]
["Instructor's Program-Specific Teaching and/or Work Experience (list chronologically starting with the most recent employer, including this school):",null,null,null,null,null,null,null,null,null,null,null,null,null,null,null,null,{"$f":"'PDE3003 Instructor List'!C27","v":{"$error":"#N/A"}}]
[]
[null,null,null,null,null,null,null,null,null,null,null,"Dates of Employment"]
[null,"Employer",null,null,null,null,"Subject(s) Taught or Position Held",null,null,null,null,"Month/Year",null,"Month/Year"]
[null,"Employer name, city, & state",null,null,null,null,"(include supervisory experience)",null,null,null,null,"From",null,"To"]
[]
[]
[]
[]
[]
[]
[]
[]
[]
[]
[]
[]
[]
[]
[]
[]
[]
["Instructor's Verification of Qualifications:",null,null,null,null,null,null,null,null,null,null,null,null,null,null,null,null,{"$f":"'PDE3003 Instructor List'!C27","v":{"$error":"#N/A"}}]
[]
[null," The Board's regulations require instructors to have at least one of the qualifications listed below (22 Pa. Code Section 73.104).  "]
[null," Check all of the qualifications that apply, then attach the documentation needed for at least one of the qualifications you checked."]
[]
[null,"Baccalaureate degree or higher in the intended field of instruction.  (Embed copy of degree and/or transcript.)"]
[]
[null,"Two or more years' work experience in the intended field of instruction which is acceptable to the School Director."]
[null,"(Embed resume and/or letters from former employers describing the nature of the instructor's former duties.)"]
[]
[null,"Two or more years' teaching experience in the intended field of instruction.  "]
[null,"(Embed resume and/or letters from former employers that verify teaching experience and qualification in the field.)"]
[]
[null,"Journeyman's license relevant to the intended field of instruction.  (Embed copy of license.)"]
[]
[null,"Demonstrated competency in the intended field of instruction. "]
[null,"(Embed documentation of competency.  Such documentation would include a copy of a widely accepted license or certificate such "]
[null,"as a CDL, a MCSE certificate, or a \"Train the Trainer\" certificate.)"]
[]
[null,"State certification as a Vocational Educator in the intended field of instruction.  (Embed copy of certificate.)"]
[]
[null,"Embed evidence to verify the instructor's qualifications:"]
[]
[]
[]
[]
[]
[]
[]
[null,null,"Qualifications of Instructor:",{"$f":"'PDE3003 Instructor List'!C28","v":{"$error":"#N/A"}},null,null,null,null,null,null,null,null,null,null,null,null,null,{"$f":"'PDE3003 Instructor List'!C28","v":{"$error":"#N/A"}}]
[]
[null,null,"Instructor's Home Address:"]
[]
[]
[]
[]
[null,null,null,"City, State and Zip Code"]
[]
[null,null,null,null,"Is this instructor currently employed by the school? "]
[]
[null,null,"School Director:"]
[null,null,null,"By placing my name above, I certify that, to the best of my knowledge, the information reported herein is true and accurate."]
[]
[null,null,"Date of Certification:"]
[]
["Names of courses to be taught by this instructor in the proposed new program:"]
[]
["Courses:"]
[]
[]
[]
[]
[]
[]
[]
[]
[]
["Courses taught by this instructor in OTHER programs at the school:",null,null,null,null,null,null,null,null,null,null,null,null,null,null,null,null,{"$f":"'PDE3003 Instructor List'!C28","v":{"$error":"#N/A"}}]
[]
["Courses:"]
[]
[]
[]
[]
[]
[]
[]
[]
[]
[]
[]
["Instructor's Education:"]
[null,null,null,null,null,null,null,null,"Award Received and Field of Study",null,null,null,null,"Dates Attended"]
[null,"Institution Attended",null,null,null,null,null,null,"(Examples: BS-Computer Science or ",null,null,null,null,"Month/Year",null,"Month/Year"]
[null,"School name, city, & state",null,null,null,null,"Graduated",null,"Diploma-Carpentry or Certificate-Word Processing)",null,null,null,null,"From",null,"To"]
[]
["College:"]
[]
["College:"]
[]
["Other:"]
[]
["Other:"]
[]
["High School:"]
[]
["Instructor's Program-Specific Teaching and/or Work Experience (list chronologically starting with the most recent employer, including this school):",null,null,null,null,null,null,null,null,null,null,null,null,null,null,null,null,{"$f":"'PDE3003 Instructor List'!C28","v":{"$error":"#N/A"}}]
[]
[null,null,null,null,null,null,null,null,null,null,null,"Dates of Employment"]
[null,"Employer",null,null,null,null,"Subject(s) Taught or Position Held",null,null,null,null,"Month/Year",null,"Month/Year"]
[null,"Employer name, city, & state",null,null,null,null,"(include supervisory experience)",null,null,null,null,"From",null,"To"]
[]
[]
[]
[]
[]
[]
[]
[]
[]
[]
[]
[]
[]
[]
[]
[]
[]
["Instructor's Verification of Qualifications:",null,null,null,null,null,null,null,null,null,null,null,null,null,null,null,null,{"$f":"'PDE3003 Instructor List'!C28","v":{"$error":"#N/A"}}]
[]
[null," The Board's regulations require instructors to have at least one of the qualifications listed below (22 Pa. Code Section 73.104).  "]
[null," Check all of the qualifications that apply, then attach the documentation needed for at least one of the qualifications you checked."]
[]
[null,"Baccalaureate degree or higher in the intended field of instruction.  (Embed copy of degree and/or transcript.)"]
[]
[null,"Two or more years' work experience in the intended field of instruction which is acceptable to the School Director."]
[null,"(Embed resume and/or letters from former employers describing the nature of the instructor's former duties.)"]
[]
[null,"Two or more years' teaching experience in the intended field of instruction.  "]
[null,"(Embed resume and/or letters from former employers that verify teaching experience and qualification in the field.)"]
[]
[null,"Journeyman's license relevant to the intended field of instruction.  (Embed copy of license.)"]
[]
[null,"Demonstrated competency in the intended field of instruction. "]
[null,"(Embed documentation of competency.  Such documentation would include a copy of a widely accepted license or certificate such "]
[null,"as a CDL, a MCSE certificate, or a \"Train the Trainer\" certificate.)"]
[]
[null,"State certification as a Vocational Educator in the intended field of instruction.  (Embed copy of certificate.)"]
[]
[null,"Embed evidence to verify the instructor's qualifications:"]
[]
[]
[]
[]
[]
[]
[]
[null,null,"Qualifications of Instructor:",{"$f":"'PDE3003 Instructor List'!C29","v":{"$error":"#N/A"}},null,null,null,null,null,null,null,null,null,null,null,null,null,{"$f":"'PDE3003 Instructor List'!C29","v":{"$error":"#N/A"}}]
[]
[null,null,"Instructor's Home Address:"]
[]
[]
[]
[]
[null,null,null,"City, State and Zip Code"]
[]
[null,null,null,null,"Is this instructor currently employed by the school? "]
[]
[null,null,"School Director:"]
[null,null,null,"By placing my name above, I certify that, to the best of my knowledge, the information reported herein is true and accurate."]
[]
[null,null,"Date of Certification:"]
[]
["Names of courses to be taught by this instructor in the proposed new program:"]
[]
["Courses:"]
[]
[]
[]
[]
[]
[]
[]
[]
[]
["Courses taught by this instructor in OTHER programs at the school:",null,null,null,null,null,null,null,null,null,null,null,null,null,null,null,null,{"$f":"'PDE3003 Instructor List'!C29","v":{"$error":"#N/A"}}]
[]
["Courses:"]
[]
[]
[]
[]
[]
[]
[]
[]
[]
[]
[]
["Instructor's Education:"]
[null,null,null,null,null,null,null,null,"Award Received and Field of Study",null,null,null,null,"Dates Attended"]
[null,"Institution Attended",null,null,null,null,null,null,"(Examples: BS-Computer Science or ",null,null,null,null,"Month/Year",null,"Month/Year"]
[null,"School name, city, & state",null,null,null,null,"Graduated",null,"Diploma-Carpentry or Certificate-Word Processing)",null,null,null,null,"From",null,"To"]
[]
["College:"]
[]
["College:"]
[]
["Other:"]
[]
["Other:"]
[]
["High School:"]
[]
["Instructor's Program-Specific Teaching and/or Work Experience (list chronologically starting with the most recent employer, including this school):",null,null,null,null,null,null,null,null,null,null,null,null,null,null,null,null,{"$f":"'PDE3003 Instructor List'!C29","v":{"$error":"#N/A"}}]
[]
[null,null,null,null,null,null,null,null,null,null,null,"Dates of Employment"]
[null,"Employer",null,null,null,null,"Subject(s) Taught or Position Held",null,null,null,null,"Month/Year",null,"Month/Year"]
[null,"Employer name, city, & state",null,null,null,null,"(include supervisory experience)",null,null,null,null,"From",null,"To"]
[]
[]
[]
[]
[]
[]
[]
[]
[]
[]
[]
[]
[]
[]
[]
[]
[]
["Instructor's Verification of Qualifications:",null,null,null,null,null,null,null,null,null,null,null,null,null,null,null,null,{"$f":"'PDE3003 Instructor List'!C29","v":{"$error":"#N/A"}}]
[]
[null," The Board's regulations require instructors to have at least one of the qualifications listed below (22 Pa. Code Section 73.104).  "]
[null," Check all of the qualifications that apply, then attach the documentation needed for at least one of the qualifications you checked."]
[]
[null,"Baccalaureate degree or higher in the intended field of instruction.  (Embed copy of degree and/or transcript.)"]
[]
[null,"Two or more years' work experience in the intended field of instruction which is acceptable to the School Director."]
[null,"(Embed resume and/or letters from former employers describing the nature of the instructor's former duties.)"]
[]
[null,"Two or more years' teaching experience in the intended field of instruction.  "]
[null,"(Embed resume and/or letters from former employers that verify teaching experience and qualification in the field.)"]
[]
[null,"Journeyman's license relevant to the intended field of instruction.  (Embed copy of license.)"]
[]
[null,"Demonstrated competency in the intended field of instruction. "]
[null,"(Embed documentation of competency.  Such documentation would include a copy of a widely accepted license or certificate such "]
[null,"as a CDL, a MCSE certificate, or a \"Train the Trainer\" certificate.)"]
[]
[null,"State certification as a Vocational Educator in the intended field of instruction.  (Embed copy of certificate.)"]
[]
[null,"Embed evidence to verify the instructor's qualifications:"]
[]
[]
[]
[]
[]
[]
[]
[null,null,"Qualifications of Instructor:",{"$f":"'PDE3003 Instructor List'!C30","v":{"$error":"#N/A"}},null,null,null,null,null,null,null,null,null,null,null,null,null,{"$f":"'PDE3003 Instructor List'!C30","v":{"$error":"#N/A"}}]
[]
[null,null,"Instructor's Home Address:"]
[]
[]
[]
[]
[null,null,null,"City, State and Zip Code"]
[]
[null,null,null,null,"Is this instructor currently employed by the school? "]
[]
[null,null,"School Director:"]
[null,null,null,"By placing my name above, I certify that, to the best of my knowledge, the information reported herein is true and accurate."]
[]
[null,null,"Date of Certification:"]
[]
["Names of courses to be taught by this instructor in the proposed new program:"]
[]
["Courses:"]
[]
[]
[]
[]
[]
[]
[]
[]
[]
["Courses taught by this instructor in OTHER programs at the school:",null,null,null,null,null,null,null,null,null,null,null,null,null,null,null,null,{"$f":"'PDE3003 Instructor List'!C30","v":{"$error":"#N/A"}}]
[]
["Courses:"]
[]
[]
[]
[]
[]
[]
[]
[]
[]
[]
[]
["Instructor's Education:"]
[null,null,null,null,null,null,null,null,"Award Received and Field of Study",null,null,null,null,"Dates Attended"]
[null,"Institution Attended",null,null,null,null,null,null,"(Examples: BS-Computer Science or ",null,null,null,null,"Month/Year",null,"Month/Year"]
[null,"School name, city, & state",null,null,null,null,"Graduated",null,"Diploma-Carpentry or Certificate-Word Processing)",null,null,null,null,"From",null,"To"]
[]
["College:"]
[]
["College:"]
[]
["Other:"]
[]
["Other:"]
[]
["High School:"]
[]
["Instructor's Program-Specific Teaching and/or Work Experience (list chronologically starting with the most recent employer, including this school):",null,null,null,null,null,null,null,null,null,null,null,null,null,null,null,null,{"$f":"'PDE3003 Instructor List'!C30","v":{"$error":"#N/A"}}]
[]
[null,null,null,null,null,null,null,null,null,null,null,"Dates of Employment"]
[null,"Employer",null,null,null,null,"Subject(s) Taught or Position Held",null,null,null,null,"Month/Year",null,"Month/Year"]
[null,"Employer name, city, & state",null,null,null,null,"(include supervisory experience)",null,null,null,null,"From",null,"To"]
[]
[]
[]
[]
[]
[]
[]
[]
[]
[]
[]
[]
[]
[]
[]
[]
[]
["Instructor's Verification of Qualifications:",null,null,null,null,null,null,null,null,null,null,null,null,null,null,null,null,{"$f":"'PDE3003 Instructor List'!C30","v":{"$error":"#N/A"}}]
[]
[null," The Board's regulations require instructors to have at least one of the qualifications listed below (22 Pa. Code Section 73.104).  "]
[null," Check all of the qualifications that apply, then attach the documentation needed for at least one of the qualifications you checked."]
[]
[null,"Baccalaureate degree or higher in the intended field of instruction.  (Embed copy of degree and/or transcript.)"]
[]
[null,"Two or more years' work experience in the intended field of instruction which is acceptable to the School Director."]
[null,"(Embed resume and/or letters from former employers describing the nature of the instructor's former duties.)"]
[]
[null,"Two or more years' teaching experience in the intended field of instruction.  "]
[null,"(Embed resume and/or letters from former employers that verify teaching experience and qualification in the field.)"]
[]
[null,"Journeyman's license relevant to the intended field of instruction.  (Embed copy of license.)"]
[]
[null,"Demonstrated competency in the intended field of instruction. "]
[null,"(Embed documentation of competency.  Such documentation would include a copy of a widely accepted license or certificate such "]
[null,"as a CDL, a MCSE certificate, or a \"Train the Trainer\" certificate.)"]
[]
[null,"State certification as a Vocational Educator in the intended field of instruction.  (Embed copy of certificate.)"]
[]
[null,"Embed evidence to verify the instructor's qualifications:"]
[]
[]
[]
[]
[]
[]
[]
[null,null,"Qualifications of Instructor:",{"$f":"'PDE3003 Instructor List'!C31","v":{"$error":"#N/A"}},null,null,null,null,null,null,null,null,null,null,null,null,null,{"$f":"'PDE3003 Instructor List'!C31","v":{"$error":"#N/A"}}]
[]
[null,null,"Instructor's Home Address:"]
[]
[]
[]
[]
[null,null,null,"City, State and Zip Code"]
[]
[null,null,null,null,"Is this instructor currently employed by the school? "]
[]
[null,null,"School Director:"]
[null,null,null,"By placing my name above, I certify that, to the best of my knowledge, the information reported herein is true and accurate."]
[]
[null,null,"Date of Certification:"]
[]
["Names of courses to be taught by this instructor in the proposed new program:"]
[]
["Courses:"]
[]
[]
[]
[]
[]
[]
[]
[]
[]
["Courses taught by this instructor in OTHER programs at the school:",null,null,null,null,null,null,null,null,null,null,null,null,null,null,null,null,{"$f":"'PDE3003 Instructor List'!C31","v":{"$error":"#N/A"}}]
[]
["Courses:"]
[]
[]
[]
[]
[]
[]
[]
[]
[]
[]
[]
["Instructor's Education:"]
[null,null,null,null,null,null,null,null,"Award Received and Field of Study",null,null,null,null,"Dates Attended"]
[null,"Institution Attended",null,null,null,null,null,null,"(Examples: BS-Computer Science or ",null,null,null,null,"Month/Year",null,"Month/Year"]
[null,"School name, city, & state",null,null,null,null,"Graduated",null,"Diploma-Carpentry or Certificate-Word Processing)",null,null,null,null,"From",null,"To"]
[]
["College:"]
[]
["College:"]
[]
["Other:"]
[]
["Other:"]
[]
["High School:"]
[]
["Instructor's Program-Specific Teaching and/or Work Experience (list chronologically starting with the most recent employer, including this school):",null,null,null,null,null,null,null,null,null,null,null,null,null,null,null,null,{"$f":"'PDE3003 Instructor List'!C31","v":{"$error":"#N/A"}}]
[]
[null,null,null,null,null,null,null,null,null,null,null,"Dates of Employment"]
[null,"Employer",null,null,null,null,"Subject(s) Taught or Position Held",null,null,null,null,"Month/Year",null,"Month/Year"]
[null,"Employer name, city, & state",null,null,null,null,"(include supervisory experience)",null,null,null,null,"From",null,"To"]
[]
[]
[]
[]
[]
[]
[]
[]
[]
[]
[]
[]
[]
[]
[]
[]
[]
["Instructor's Verification of Qualifications:",null,null,null,null,null,null,null,null,null,null,null,null,null,null,null,null,{"$f":"'PDE3003 Instructor List'!C31","v":{"$error":"#N/A"}}]
[]
[null," The Board's regulations require instructors to have at least one of the qualifications listed below (22 Pa. Code Section 73.104).  "]
[null," Check all of the qualifications that apply, then attach the documentation needed for at least one of the qualifications you checked."]
[]
[null,"Baccalaureate degree or higher in the intended field of instruction.  (Embed copy of degree and/or transcript.)"]
[]
[null,"Two or more years' work experience in the intended field of instruction which is acceptable to the School Director."]
[null,"(Embed resume and/or letters from former employers describing the nature of the instructor's former duties.)"]
[]
[null,"Two or more years' teaching experience in the intended field of instruction.  "]
[null,"(Embed resume and/or letters from former employers that verify teaching experience and qualification in the field.)"]
[]
[null,"Journeyman's license relevant to the intended field of instruction.  (Embed copy of license.)"]
[]
[null,"Demonstrated competency in the intended field of instruction. "]
[null,"(Embed documentation of competency.  Such documentation would include a copy of a widely accepted license or certificate such "]
[null,"as a CDL, a MCSE certificate, or a \"Train the Trainer\" certificate.)"]
[]
[null,"State certification as a Vocational Educator in the intended field of instruction.  (Embed copy of certificate.)"]
[]
[null,"Embed evidence to verify the instructor's qualifications:"]
[]
[]
[]
[]
[]
[]
[]
[null,null,"Qualifications of Instructor:",{"$f":"'PDE3003 Instructor List'!C32","v":{"$error":"#N/A"}},null,null,null,null,null,null,null,null,null,null,null,null,null,{"$f":"'PDE3003 Instructor List'!C32","v":{"$error":"#N/A"}}]
[]
[null,null,"Instructor's Home Address:"]
[]
[]
[]
[]
[null,null,null,"City, State and Zip Code"]
[]
[null,null,null,null,"Is this instructor currently employed by the school? "]
[]
[null,null,"School Director:"]
[null,null,null,"By placing my name above, I certify that, to the best of my knowledge, the information reported herein is true and accurate."]
[]
[null,null,"Date of Certification:"]
[]
["Names of courses to be taught by this instructor in the proposed new program:"]
[]
["Courses:"]
[]
[]
[]
[]
[]
[]
[]
[]
[]
["Courses taught by this instructor in OTHER programs at the school:",null,null,null,null,null,null,null,null,null,null,null,null,null,null,null,null,{"$f":"'PDE3003 Instructor List'!C32","v":{"$error":"#N/A"}}]
[]
["Courses:"]
[]
[]
[]
[]
[]
[]
[]
[]
[]
[]
[]
["Instructor's Education:"]
[null,null,null,null,null,null,null,null,"Award Received and Field of Study",null,null,null,null,"Dates Attended"]
[null,"Institution Attended",null,null,null,null,null,null,"(Examples: BS-Computer Science or ",null,null,null,null,"Month/Year",null,"Month/Year"]
[null,"School name, city, & state",null,null,null,null,"Graduated",null,"Diploma-Carpentry or Certificate-Word Processing)",null,null,null,null,"From",null,"To"]
[]
["College:"]
[]
["College:"]
[]
["Other:"]
[]
["Other:"]
[]
["High School:"]
[]
["Instructor's Program-Specific Teaching and/or Work Experience (list chronologically starting with the most recent employer, including this school):",null,null,null,null,null,null,null,null,null,null,null,null,null,null,null,null,{"$f":"'PDE3003 Instructor List'!C32","v":{"$error":"#N/A"}}]
[]
[null,null,null,null,null,null,null,null,null,null,null,"Dates of Employment"]
[null,"Employer",null,null,null,null,"Subject(s) Taught or Position Held",null,null,null,null,"Month/Year",null,"Month/Year"]
[null,"Employer name, city, & state",null,null,null,null,"(include supervisory experience)",null,null,null,null,"From",null,"To"]
[]
[]
[]
[]
[]
[]
[]
[]
[]
[]
[]
[]
[]
[]
[]
[]
[]
["Instructor's Verification of Qualifications:",null,null,null,null,null,null,null,null,null,null,null,null,null,null,null,null,{"$f":"'PDE3003 Instructor List'!C32","v":{"$error":"#N/A"}}]
[]
[null," The Board's regulations require instructors to have at least one of the qualifications listed below (22 Pa. Code Section 73.104).  "]
[null," Check all of the qualifications that apply, then attach the documentation needed for at least one of the qualifications you checked."]
[]
[null,"Baccalaureate degree or higher in the intended field of instruction.  (Embed copy of degree and/or transcript.)"]
[]
[null,"Two or more years' work experience in the intended field of instruction which is acceptable to the School Director."]
[null,"(Embed resume and/or letters from former employers describing the nature of the instructor's former duties.)"]
[]
[null,"Two or more years' teaching experience in the intended field of instruction.  "]
[null,"(Embed resume and/or letters from former employers that verify teaching experience and qualification in the field.)"]
[]
[null,"Journeyman's license relevant to the intended field of instruction.  (Embed copy of license.)"]
[]
[null,"Demonstrated competency in the intended field of instruction. "]
[null,"(Embed documentation of competency.  Such documentation would include a copy of a widely accepted license or certificate such "]
[null,"as a CDL, a MCSE certificate, or a \"Train the Trainer\" certificate.)"]
[]
[null,"State certification as a Vocational Educator in the intended field of instruction.  (Embed copy of certificate.)"]
[]
[null,"Embed evidence to verify the instructor's qualifications:"]
[]
[]
[]
[]
[]
[]
[]
[null,null,"Qualifications of Instructor:",{"$f":"'PDE3003 Instructor List'!C33","v":{"$error":"#N/A"}},null,null,null,null,null,null,null,null,null,null,null,null,null,{"$f":"'PDE3003 Instructor List'!C33","v":{"$error":"#N/A"}}]
[]
[null,null,"Instructor's Home Address:"]
[]
[]
[]
[]
[null,null,null,"City, State and Zip Code"]
[]
[null,null,null,null,"Is this instructor currently employed by the school? "]
[]
[null,null,"School Director:"]
[null,null,null,"By placing my name above, I certify that, to the best of my knowledge, the information reported herein is true and accurate."]
[]
[null,null,"Date of Certification:"]
[]
["Names of courses to be taught by this instructor in the proposed new program:"]
[]
["Courses:"]
[]
[]
[]
[]
[]
[]
[]
[]
[]
["Courses taught by this instructor in OTHER programs at the school:",null,null,null,null,null,null,null,null,null,null,null,null,null,null,null,null,{"$f":"'PDE3003 Instructor List'!C33","v":{"$error":"#N/A"}}]
[]
["Courses:"]
[]
[]
[]
[]
[]
[]
[]
[]
[]
[]
[]
["Instructor's Education:"]
[null,null,null,null,null,null,null,null,"Award Received and Field of Study",null,null,null,null,"Dates Attended"]
[null,"Institution Attended",null,null,null,null,null,null,"(Examples: BS-Computer Science or ",null,null,null,null,"Month/Year",null,"Month/Year"]
[null,"School name, city, & state",null,null,null,null,"Graduated",null,"Diploma-Carpentry or Certificate-Word Processing)",null,null,null,null,"From",null,"To"]
[]
["College:"]
[]
["College:"]
[]
["Other:"]
[]
["Other:"]
[]
["High School:"]
[]
["Instructor's Program-Specific Teaching and/or Work Experience (list chronologically starting with the most recent employer, including this school):",null,null,null,null,null,null,null,null,null,null,null,null,null,null,null,null,{"$f":"'PDE3003 Instructor List'!C33","v":{"$error":"#N/A"}}]
[]
[null,null,null,null,null,null,null,null,null,null,null,"Dates of Employment"]
[null,"Employer",null,null,null,null,"Subject(s) Taught or Position Held",null,null,null,null,"Month/Year",null,"Month/Year"]
[null,"Employer name, city, & state",null,null,null,null,"(include supervisory experience)",null,null,null,null,"From",null,"To"]
[]
[]
[]
[]
[]
[]
[]
[]
[]
[]
[]
[]
[]
[]
[]
[]
[]
["Instructor's Verification of Qualifications:",null,null,null,null,null,null,null,null,null,null,null,null,null,null,null,null,{"$f":"'PDE3003 Instructor List'!C33","v":{"$error":"#N/A"}}]
[]
[null," The Board's regulations require instructors to have at least one of the qualifications listed below (22 Pa. Code Section 73.104).  "]
[null," Check all of the qualifications that apply, then attach the documentation needed for at least one of the qualifications you checked."]
[]
[null,"Baccalaureate degree or higher in the intended field of instruction.  (Embed copy of degree and/or transcript.)"]
[]
[null,"Two or more years' work experience in the intended field of instruction which is acceptable to the School Director."]
[null,"(Embed resume and/or letters from former employers describing the nature of the instructor's former duties.)"]
[]
[null,"Two or more years' teaching experience in the intended field of instruction.  "]
[null,"(Embed resume and/or letters from former employers that verify teaching experience and qualification in the field.)"]
[]
[null,"Journeyman's license relevant to the intended field of instruction.  (Embed copy of license.)"]
[]
[null,"Demonstrated competency in the intended field of instruction. "]
[null,"(Embed documentation of competency.  Such documentation would include a copy of a widely accepted license or certificate such "]
[null,"as a CDL, a MCSE certificate, or a \"Train the Trainer\" certificate.)"]
[]
[null,"State certification as a Vocational Educator in the intended field of instruction.  (Embed copy of certificate.)"]
[]
[null,"Embed evidence to verify the instructor's qualifications:"]
[]
[]
[]
[]
[]
[]
[]
[null,null,"Qualifications of Instructor:",{"$f":"'PDE3003 Instructor List'!C34","v":{"$error":"#N/A"}},null,null,null,null,null,null,null,null,null,null,null,null,null,{"$f":"'PDE3003 Instructor List'!C34","v":{"$error":"#N/A"}}]
[]
[null,null,"Instructor's Home Address:"]
[]
[]
[]
[]
[null,null,null,"City, State and Zip Code"]
[]
[null,null,null,null,"Is this instructor currently employed by the school? "]
[]
[null,null,"School Director:"]
[null,null,null,"By placing my name above, I certify that, to the best of my knowledge, the information reported herein is true and accurate."]
[]
[null,null,"Date of Certification:"]
[]
["Names of courses to be taught by this instructor in the proposed new program:"]
[]
["Courses:"]
[]
[]
[]
[]
[]
[]
[]
[]
[]
["Courses taught by this instructor in OTHER programs at the school:",null,null,null,null,null,null,null,null,null,null,null,null,null,null,null,null,{"$f":"'PDE3003 Instructor List'!C34","v":{"$error":"#N/A"}}]
[]
["Courses:"]
[]
[]
[]
[]
[]
[]
[]
[]
[]
[]
[]
["Instructor's Education:"]
[null,null,null,null,null,null,null,null,"Award Received and Field of Study",null,null,null,null,"Dates Attended"]
[null,"Institution Attended",null,null,null,null,null,null,"(Examples: BS-Computer Science or ",null,null,null,null,"Month/Year",null,"Month/Year"]
[null,"School name, city, & state",null,null,null,null,"Graduated",null,"Diploma-Carpentry or Certificate-Word Processing)",null,null,null,null,"From",null,"To"]
[]
["College:"]
[]
["College:"]
[]
["Other:"]
[]
["Other:"]
[]
["High School:"]
[]
["Instructor's Program-Specific Teaching and/or Work Experience (list chronologically starting with the most recent employer, including this school):",null,null,null,null,null,null,null,null,null,null,null,null,null,null,null,null,{"$f":"'PDE3003 Instructor List'!C34","v":{"$error":"#N/A"}}]
[]
[null,null,null,null,null,null,null,null,null,null,null,"Dates of Employment"]
[null,"Employer",null,null,null,null,"Subject(s) Taught or Position Held",null,null,null,null,"Month/Year",null,"Month/Year"]
[null,"Employer name, city, & state",null,null,null,null,"(include supervisory experience)",null,null,null,null,"From",null,"To"]
[]
[]
[]
[]
[]
[]
[]
[]
[]
[]
[]
[]
[]
[]
[]
[]
[]
["Instructor's Verification of Qualifications:",null,null,null,null,null,null,null,null,null,null,null,null,null,null,null,null,{"$f":"'PDE3003 Instructor List'!C34","v":{"$error":"#N/A"}}]
[]
[null," The Board's regulations require instructors to have at least one of the qualifications listed below (22 Pa. Code Section 73.104).  "]
[null," Check all of the qualifications that apply, then attach the documentation needed for at least one of the qualifications you checked."]
[]
[null,"Baccalaureate degree or higher in the intended field of instruction.  (Embed copy of degree and/or transcript.)"]
[]
[null,"Two or more years' work experience in the intended field of instruction which is acceptable to the School Director."]
[null,"(Embed resume and/or letters from former employers describing the nature of the instructor's former duties.)"]
[]
[null,"Two or more years' teaching experience in the intended field of instruction.  "]
[null,"(Embed resume and/or letters from former employers that verify teaching experience and qualification in the field.)"]
[]
[null,"Journeyman's license relevant to the intended field of instruction.  (Embed copy of license.)"]
[]
[null,"Demonstrated competency in the intended field of instruction. "]
[null,"(Embed documentation of competency.  Such documentation would include a copy of a widely accepted license or certificate such "]
[null,"as a CDL, a MCSE certificate, or a \"Train the Trainer\" certificate.)"]
[]
[null,"State certification as a Vocational Educator in the intended field of instruction.  (Embed copy of certificate.)"]
[]
[null,"Embed evidence to verify the instructor's qualifications:"]
[]
[]
[]
[]
[]
[]
[]
[null,null,"Qualifications of Instructor:",{"$f":"'PDE3003 Instructor List'!C35","v":{"$error":"#N/A"}},null,null,null,null,null,null,null,null,null,null,null,null,null,{"$f":"'PDE3003 Instructor List'!C35","v":{"$error":"#N/A"}}]
[]
[null,null,"Instructor's Home Address:"]
[]
[]
[]
[]
[null,null,null,"City, State and Zip Code"]
[]
[null,null,null,null,"Is this instructor currently employed by the school? "]
[]
[null,null,"School Director:"]
[null,null,null,"By placing my name above, I certify that, to the best of my knowledge, the information reported herein is true and accurate."]
[]
[null,null,"Date of Certification:"]
[]
["Names of courses to be taught by this instructor in the proposed new program:"]
[]
["Courses:"]
[]
[]
[]
[]
[]
[]
[]
[]
[]
["Courses taught by this instructor in OTHER programs at the school:",null,null,null,null,null,null,null,null,null,null,null,null,null,null,null,null,{"$f":"'PDE3003 Instructor List'!C35","v":{"$error":"#N/A"}}]
[]
["Courses:"]
[]
[]
[]
[]
[]
[]
[]
[]
[]
[]
[]
["Instructor's Education:"]
[null,null,null,null,null,null,null,null,"Award Received and Field of Study",null,null,null,null,"Dates Attended"]
[null,"Institution Attended",null,null,null,null,null,null,"(Examples: BS-Computer Science or ",null,null,null,null,"Month/Year",null,"Month/Year"]
[null,"School name, city, & state",null,null,null,null,"Graduated",null,"Diploma-Carpentry or Certificate-Word Processing)",null,null,null,null,"From",null,"To"]
[]
["College:"]
[]
["College:"]
[]
["Other:"]
[]
["Other:"]
[]
["High School:"]
[]
["Instructor's Program-Specific Teaching and/or Work Experience (list chronologically starting with the most recent employer, including this school):",null,null,null,null,null,null,null,null,null,null,null,null,null,null,null,null,{"$f":"'PDE3003 Instructor List'!C35","v":{"$error":"#N/A"}}]
[]
[null,null,null,null,null,null,null,null,null,null,null,"Dates of Employment"]
[null,"Employer",null,null,null,null,"Subject(s) Taught or Position Held",null,null,null,null,"Month/Year",null,"Month/Year"]
[null,"Employer name, city, & state",null,null,null,null,"(include supervisory experience)",null,null,null,null,"From",null,"To"]
[]
[]
[]
[]
[]
[]
[]
[]
[]
[]
[]
[]
[]
[]
[]
[]
[]
["Instructor's Verification of Qualifications:",null,null,null,null,null,null,null,null,null,null,null,null,null,null,null,null,{"$f":"'PDE3003 Instructor List'!C35","v":{"$error":"#N/A"}}]
[]
[null," The Board's regulations require instructors to have at least one of the qualifications listed below (22 Pa. Code Section 73.104).  "]
[null," Check all of the qualifications that apply, then attach the documentation needed for at least one of the qualifications you checked."]
[]
[null,"Baccalaureate degree or higher in the intended field of instruction.  (Embed copy of degree and/or transcript.)"]
[]
[null,"Two or more years' work experience in the intended field of instruction which is acceptable to the School Director."]
[null,"(Embed resume and/or letters from former employers describing the nature of the instructor's former duties.)"]
[]
[null,"Two or more years' teaching experience in the intended field of instruction.  "]
[null,"(Embed resume and/or letters from former employers that verify teaching experience and qualification in the field.)"]
[]
[null,"Journeyman's license relevant to the intended field of instruction.  (Embed copy of license.)"]
[]
[null,"Demonstrated competency in the intended field of instruction. "]
[null,"(Embed documentation of competency.  Such documentation would include a copy of a widely accepted license or certificate such "]
[null,"as a CDL, a MCSE certificate, or a \"Train the Trainer\" certificate.)"]
[]
[null,"State certification as a Vocational Educator in the intended field of instruction.  (Embed copy of certificate.)"]
[]
[null,"Embed evidence to verify the instructor's qualifications:"]
[]
[]
[]
[]
[]
[]
[]
[]
[null,null,"Qualifications of Instructor:",{"$f":"'PDE3003 Instructor List'!C36","v":{"$error":"#N/A"}},null,null,null,null,null,null,null,null,null,null,null,null,null,{"$f":"'PDE3003 Instructor List'!C36","v":{"$error":"#N/A"}}]
[]
[null,null,"Instructor's Home Address:"]
[]
[]
[]
[]
[null,null,null,"City, State and Zip Code"]
[]
[null,null,null,null,"Is this instructor currently employed by the school? "]
[]
[null,null,"School Director:"]
[null,null,null,"By placing my name above, I certify that, to the best of my knowledge, the information reported herein is true and accurate."]
[]
[null,null,"Date of Certification:"]
[]
["Names of courses to be taught by this instructor in the proposed new program:"]
[]
["Courses:"]
[]
[]
[]
[]
[]
[]
[]
[]
[]
["Courses taught by this instructor in OTHER programs at the school:",null,null,null,null,null,null,null,null,null,null,null,null,null,null,null,null,{"$f":"'PDE3003 Instructor List'!C36","v":{"$error":"#N/A"}}]
[]
["Courses:"]
[]
[]
[]
[]
[]
[]
[]
[]
[]
[]
[]
["Instructor's Education:"]
[null,null,null,null,null,null,null,null,"Award Received and Field of Study",null,null,null,null,"Dates Attended"]
[null,"Institution Attended",null,null,null,null,null,null,"(Examples: BS-Computer Science or ",null,null,null,null,"Month/Year",null,"Month/Year"]
[null,"School name, city, & state",null,null,null,null,"Graduated",null,"Diploma-Carpentry or Certificate-Word Processing)",null,null,null,null,"From",null,"To"]
[]
["College:"]
[]
["College:"]
[]
["Other:"]
[]
["Other:"]
[]
["High School:"]
[]
["Instructor's Program-Specific Teaching and/or Work Experience (list chronologically starting with the most recent employer, including this school):",null,null,null,null,null,null,null,null,null,null,null,null,null,null,null,null,{"$f":"'PDE3003 Instructor List'!C36","v":{"$error":"#N/A"}}]
[]
[null,null,null,null,null,null,null,null,null,null,null,"Dates of Employment"]
[null,"Employer",null,null,null,null,"Subject(s) Taught or Position Held",null,null,null,null,"Month/Year",null,"Month/Year"]
[null,"Employer name, city, & state",null,null,null,null,"(include supervisory experience)",null,null,null,null,"From",null,"To"]
[]
[]
[]
[]
[]
[]
[]
[]
[]
[]
[]
[]
[]
[]
[]
[]
[]
["Instructor's Verification of Qualifications:",null,null,null,null,null,null,null,null,null,null,null,null,null,null,null,null,{"$f":"'PDE3003 Instructor List'!C36","v":{"$error":"#N/A"}}]
[]
[null," The Board's regulations require instructors to have at least one of the qualifications listed below (22 Pa. Code Section 73.104).  "]
[null," Check all of the qualifications that apply, then attach the documentation needed for at least one of the qualifications you checked."]
[]
[null,"Baccalaureate degree or higher in the intended field of instruction.  (Embed copy of degree and/or transcript.)"]
[]
[null,"Two or more years' work experience in the intended field of instruction which is acceptable to the School Director."]
[null,"(Embed resume and/or letters from former employers describing the nature of the instructor's former duties.)"]
[]
[null,"Two or more years' teaching experience in the intended field of instruction.  "]
[null,"(Embed resume and/or letters from former employers that verify teaching experience and qualification in the field.)"]
[]
[null,"Journeyman's license relevant to the intended field of instruction.  (Embed copy of license.)"]
[]
[null,"Demonstrated competency in the intended field of instruction. "]
[null,"(Embed documentation of competency.  Such documentation would include a copy of a widely accepted license or certificate such "]
[null,"as a CDL, a MCSE certificate, or a \"Train the Trainer\" certificate.)"]
[]
[null,"State certification as a Vocational Educator in the intended field of instruction.  (Embed copy of certificate.)"]
[]
[null,"Embed evidence to verify the instructor's qualifications:"]
[]
[]
[]
[]
[]
[]
[]
[null,null,"Qualifications of Instructor:",{"$f":"'PDE3003 Instructor List'!C37","v":{"$error":"#N/A"}},null,null,null,null,null,null,null,null,null,null,null,null,null,{"$f":"'PDE3003 Instructor List'!C37","v":{"$error":"#N/A"}}]
[]
[null,null,"Instructor's Home Address:"]
[]
[]
[]
[]
[null,null,null,"City, State and Zip Code"]
[]
[null,null,null,null,"Is this instructor currently employed by the school? "]
[]
[null,null,"School Director:"]
[null,null,null,"By placing my name above, I certify that, to the best of my knowledge, the information reported herein is true and accurate."]
[]
[null,null,"Date of Certification:"]
[]
["Names of courses to be taught by this instructor in the proposed new program:"]
[]
["Courses:"]
[]
[]
[]
[]
[]
[]
[]
[]
[]
["Courses taught by this instructor in OTHER programs at the school:",null,null,null,null,null,null,null,null,null,null,null,null,null,null,null,null,{"$f":"'PDE3003 Instructor List'!C37","v":{"$error":"#N/A"}}]
[]
["Courses:"]
[]
[]
[]
[]
[]
[]
[]
[]
[]
[]
[]
["Instructor's Education:"]
[null,null,null,null,null,null,null,null,"Award Received and Field of Study",null,null,null,null,"Dates Attended"]
[null,"Institution Attended",null,null,null,null,null,null,"(Examples: BS-Computer Science or ",null,null,null,null,"Month/Year",null,"Month/Year"]
[null,"School name, city, & state",null,null,null,null,"Graduated",null,"Diploma-Carpentry or Certificate-Word Processing)",null,null,null,null,"From",null,"To"]
[]
["College:"]
[]
["College:"]
[]
["Other:"]
[]
["Other:"]
[]
["High School:"]
[]
["Instructor's Program-Specific Teaching and/or Work Experience (list chronologically starting with the most recent employer, including this school):",null,null,null,null,null,null,null,null,null,null,null,null,null,null,null,null,{"$f":"'PDE3003 Instructor List'!C37","v":{"$error":"#N/A"}}]
[]
[null,null,null,null,null,null,null,null,null,null,null,"Dates of Employment"]
[null,"Employer",null,null,null,null,"Subject(s) Taught or Position Held",null,null,null,null,"Month/Year",null,"Month/Year"]
[null,"Employer name, city, & state",null,null,null,null,"(include supervisory experience)",null,null,null,null,"From",null,"To"]
[]
[]
[]
[]
[]
[]
[]
[]
[]
[]
[]
[]
[]
[]
[]
[]
[]
["Instructor's Verification of Qualifications:",null,null,null,null,null,null,null,null,null,null,null,null,null,null,null,null,{"$f":"'PDE3003 Instructor List'!C37","v":{"$error":"#N/A"}}]
[]
[null," The Board's regulations require instructors to have at least one of the qualifications listed below (22 Pa. Code Section 73.104).  "]
[null," Check all of the qualifications that apply, then attach the documentation needed for at least one of the qualifications you checked."]
[]
[null,"Baccalaureate degree or higher in the intended field of instruction.  (Embed copy of degree and/or transcript.)"]
[]
[null,"Two or more years' work experience in the intended field of instruction which is acceptable to the School Director."]
[null,"(Embed resume and/or letters from former employers describing the nature of the instructor's former duties.)"]
[]
[null,"Two or more years' teaching experience in the intended field of instruction.  "]
[null,"(Embed resume and/or letters from former employers that verify teaching experience and qualification in the field.)"]
[]
[null,"Journeyman's license relevant to the intended field of instruction.  (Embed copy of license.)"]
[]
[null,"Demonstrated competency in the intended field of instruction. "]
[null,"(Embed documentation of competency.  Such documentation would include a copy of a widely accepted license or certificate such "]
[null,"as a CDL, a MCSE certificate, or a \"Train the Trainer\" certificate.)"]
[]
[null,"State certification as a Vocational Educator in the intended field of instruction.  (Embed copy of certificate.)"]
[]
[null,"Embed evidence to verify the instructor's qualifications:"]
[]
[]
[]
[]
[]
[]
[]
[null,null,"Qualifications of Instructor:",{"$f":"'PDE3003 Instructor List'!C38","v":{"$error":"#N/A"}},null,null,null,null,null,null,null,null,null,null,null,null,null,{"$f":"'PDE3003 Instructor List'!C38","v":{"$error":"#N/A"}}]
[]
[null,null,"Instructor's Home Address:"]
[]
[]
[]
[]
[null,null,null,"City, State and Zip Code"]
[]
[null,null,null,null,"Is this instructor currently employed by the school? "]
[]
[null,null,"School Director:"]
[null,null,null,"By placing my name above, I certify that, to the best of my knowledge, the information reported herein is true and accurate."]
[]
[null,null,"Date of Certification:"]
[]
["Names of courses to be taught by this instructor in the proposed new program:"]
[]
["Courses:"]
[]
[]
[]
[]
[]
[]
[]
[]
[]
["Courses taught by this instructor in OTHER programs at the school:",null,null,null,null,null,null,null,null,null,null,null,null,null,null,null,null,{"$f":"'PDE3003 Instructor List'!C38","v":{"$error":"#N/A"}}]
[]
["Courses:"]
[]
[]
[]
[]
[]
[]
[]
[]
[]
[]
[]
["Instructor's Education:"]
[null,null,null,null,null,null,null,null,"Award Received and Field of Study",null,null,null,null,"Dates Attended"]
[null,"Institution Attended",null,null,null,null,null,null,"(Examples: BS-Computer Science or ",null,null,null,null,"Month/Year",null,"Month/Year"]
[null,"School name, city, & state",null,null,null,null,"Graduated",null,"Diploma-Carpentry or Certificate-Word Processing)",null,null,null,null,"From",null,"To"]
[]
["College:"]
[]
["College:"]
[]
["Other:"]
[]
["Other:"]
[]
["High School:"]
[]
["Instructor's Program-Specific Teaching and/or Work Experience (list chronologically starting with the most recent employer, including this school):",null,null,null,null,null,null,null,null,null,null,null,null,null,null,null,null,{"$f":"'PDE3003 Instructor List'!C38","v":{"$error":"#N/A"}}]
[]
[null,null,null,null,null,null,null,null,null,null,null,"Dates of Employment"]
[null,"Employer",null,null,null,null,"Subject(s) Taught or Position Held",null,null,null,null,"Month/Year",null,"Month/Year"]
[null,"Employer name, city, & state",null,null,null,null,"(include supervisory experience)",null,null,null,null,"From",null,"To"]
[]
[]
[]
[]
[]
[]
[]
[]
[]
[]
[]
[]
[]
[]
[]
[]
[]
["Instructor's Verification of Qualifications:",null,null,null,null,null,null,null,null,null,null,null,null,null,null,null,null,{"$f":"'PDE3003 Instructor List'!C38","v":{"$error":"#N/A"}}]
[]
[null," The Board's regulations require instructors to have at least one of the qualifications listed below (22 Pa. Code Section 73.104).  "]
[null," Check all of the qualifications that apply, then attach the documentation needed for at least one of the qualifications you checked."]
[]
[null,"Baccalaureate degree or higher in the intended field of instruction.  (Embed copy of degree and/or transcript.)"]
[]
[null,"Two or more years' work experience in the intended field of instruction which is acceptable to the School Director."]
[null,"(Embed resume and/or letters from former employers describing the nature of the instructor's former duties.)"]
[]
[null,"Two or more years' teaching experience in the intended field of instruction.  "]
[null,"(Embed resume and/or letters from former employers that verify teaching experience and qualification in the field.)"]
[]
[null,"Journeyman's license relevant to the intended field of instruction.  (Embed copy of license.)"]
[]
[null,"Demonstrated competency in the intended field of instruction. "]
[null,"(Embed documentation of competency.  Such documentation would include a copy of a widely accepted license or certificate such "]
[null,"as a CDL, a MCSE certificate, or a \"Train the Trainer\" certificate.)"]
[]
[null,"State certification as a Vocational Educator in the intended field of instruction.  (Embed copy of certificate.)"]
[]
[null,"Embed evidence to verify the instructor's qualifications:"]
[]
[]
[]
[]
[]
[]
[]
[null,null,"Qualifications of Instructor:",{"$f":"'PDE3003 Instructor List'!C39","v":{"$error":"#N/A"}},null,null,null,null,null,null,null,null,null,null,null,null,null,{"$f":"'PDE3003 Instructor List'!C39","v":{"$error":"#N/A"}}]
[]
[null,null,"Instructor's Home Address:"]
[]
[]
[]
[]
[null,null,null,"City, State and Zip Code"]
[]
[null,null,null,null,"Is this instructor currently employed by the school? "]
[]
[null,null,"School Director:"]
[null,null,null,"By placing my name above, I certify that, to the best of my knowledge, the information reported herein is true and accurate."]
[]
[null,null,"Date of Certification:"]
[]
["Names of courses to be taught by this instructor in the proposed new program:"]
[]
["Courses:"]
[]
[]
[]
[]
[]
[]
[]
[]
[]
["Courses taught by this instructor in OTHER programs at the school:",null,null,null,null,null,null,null,null,null,null,null,null,null,null,null,null,{"$f":"'PDE3003 Instructor List'!C39","v":{"$error":"#N/A"}}]
[]
["Courses:"]
[]
[]
[]
[]
[]
[]
[]
[]
[]
[]
[]
["Instructor's Education:"]
[null,null,null,null,null,null,null,null,"Award Received and Field of Study",null,null,null,null,"Dates Attended"]
[null,"Institution Attended",null,null,null,null,null,null,"(Examples: BS-Computer Science or ",null,null,null,null,"Month/Year",null,"Month/Year"]
[null,"School name, city, & state",null,null,null,null,"Graduated",null,"Diploma-Carpentry or Certificate-Word Processing)",null,null,null,null,"From",null,"To"]
[]
["College:"]
[]
["College:"]
[]
["Other:"]
[]
["Other:"]
[]
["High School:"]
[]
["Instructor's Program-Specific Teaching and/or Work Experience (list chronologically starting with the most recent employer, including this school):",null,null,null,null,null,null,null,null,null,null,null,null,null,null,null,null,{"$f":"'PDE3003 Instructor List'!C39","v":{"$error":"#N/A"}}]
[]
[null,null,null,null,null,null,null,null,null,null,null,"Dates of Employment"]
[null,"Employer",null,null,null,null,"Subject(s) Taught or Position Held",null,null,null,null,"Month/Year",null,"Month/Year"]
[null,"Employer name, city, & state",null,null,null,null,"(include supervisory experience)",null,null,null,null,"From",null,"To"]
[]
[]
[]
[]
[]
[]
[]
[]
[]
[]
[]
[]
[]
[]
[]
[]
[]
["Instructor's Verification of Qualifications:",null,null,null,null,null,null,null,null,null,null,null,null,null,null,null,null,{"$f":"'PDE3003 Instructor List'!C39","v":{"$error":"#N/A"}}]
[]
[null," The Board's regulations require instructors to have at least one of the qualifications listed below (22 Pa. Code Section 73.104).  "]
[null," Check all of the qualifications that apply, then attach the documentation needed for at least one of the qualifications you checked."]
[]
[null,"Baccalaureate degree or higher in the intended field of instruction.  (Embed copy of degree and/or transcript.)"]
[]
[null,"Two or more years' work experience in the intended field of instruction which is acceptable to the School Director."]
[null,"(Embed resume and/or letters from former employers describing the nature of the instructor's former duties.)"]
[]
[null,"Two or more years' teaching experience in the intended field of instruction.  "]
[null,"(Embed resume and/or letters from former employers that verify teaching experience and qualification in the field.)"]
[]
[null,"Journeyman's license relevant to the intended field of instruction.  (Embed copy of license.)"]
[]
[null,"Demonstrated competency in the intended field of instruction. "]
[null,"(Embed documentation of competency.  Such documentation would include a copy of a widely accepted license or certificate such "]
[null,"as a CDL, a MCSE certificate, or a \"Train the Trainer\" certificate.)"]
[]
[null,"State certification as a Vocational Educator in the intended field of instruction.  (Embed copy of certificate.)"]
[]
[null,"Embed evidence to verify the instructor's qualifications:"]
[]
[]
[]
[]
[]
[]
[]
[null,null,"Qualifications of Instructor:",{"$f":"'PDE3003 Instructor List'!C40","v":{"$error":"#N/A"}},null,null,null,null,null,null,null,null,null,null,null,null,null,{"$f":"'PDE3003 Instructor List'!C40","v":{"$error":"#N/A"}}]
[]
[null,null,"Instructor's Home Address:"]
[]
[]
[]
[]
[null,null,null,"City, State and Zip Code"]
[]
[null,null,null,null,"Is this instructor currently employed by the school? "]
[]
[null,null,"School Director:"]
[null,null,null,"By placing my name above, I certify that, to the best of my knowledge, the information reported herein is true and accurate."]
[]
[null,null,"Date of Certification:"]
[]
["Names of courses to be taught by this instructor in the proposed new program:"]
[]
["Courses:"]
[]
[]
[]
[]
[]
[]
[]
[]
[]
["Courses taught by this instructor in OTHER programs at the school:",null,null,null,null,null,null,null,null,null,null,null,null,null,null,null,null,{"$f":"'PDE3003 Instructor List'!C40","v":{"$error":"#N/A"}}]
[]
["Courses:"]
[]
[]
[]
[]
[]
[]
[]
[]
[]
[]
[]
["Instructor's Education:"]
[null,null,null,null,null,null,null,null,"Award Received and Field of Study",null,null,null,null,"Dates Attended"]
[null,"Institution Attended",null,null,null,null,null,null,"(Examples: BS-Computer Science or ",null,null,null,null,"Month/Year",null,"Month/Year"]
[null,"School name, city, & state",null,null,null,null,"Graduated",null,"Diploma-Carpentry or Certificate-Word Processing)",null,null,null,null,"From",null,"To"]
[]
["College:"]
[]
["College:"]
[]
["Other:"]
[]
["Other:"]
[]
["High School:"]
[]
["Instructor's Program-Specific Teaching and/or Work Experience (list chronologically starting with the most recent employer, including this school):",null,null,null,null,null,null,null,null,null,null,null,null,null,null,null,null,{"$f":"'PDE3003 Instructor List'!C40","v":{"$error":"#N/A"}}]
[]
[null,null,null,null,null,null,null,null,null,null,null,"Dates of Employment"]
[null,"Employer",null,null,null,null,"Subject(s) Taught or Position Held",null,null,null,null,"Month/Year",null,"Month/Year"]
[null,"Employer name, city, & state",null,null,null,null,"(include supervisory experience)",null,null,null,null,"From",null,"To"]
[]
[]
[]
[]
[]
[]
[]
[]
[]
[]
[]
[]
[]
[]
[]
[]
[]
["Instructor's Verification of Qualifications:",null,null,null,null,null,null,null,null,null,null,null,null,null,null,null,null,{"$f":"'PDE3003 Instructor List'!C40","v":{"$error":"#N/A"}}]
[]
[null," The Board's regulations require instructors to have at least one of the qualifications listed below (22 Pa. Code Section 73.104).  "]
[null," Check all of the qualifications that apply, then attach the documentation needed for at least one of the qualifications you checked."]
[]
[null,"Baccalaureate degree or higher in the intended field of instruction.  (Embed copy of degree and/or transcript.)"]
[]
[null,"Two or more years' work experience in the intended field of instruction which is acceptable to the School Director."]
[null,"(Embed resume and/or letters from former employers describing the nature of the instructor's former duties.)"]
[]
[null,"Two or more years' teaching experience in the intended field of instruction.  "]
[null,"(Embed resume and/or letters from former employers that verify teaching experience and qualification in the field.)"]
[]
[null,"Journeyman's license relevant to the intended field of instruction.  (Embed copy of license.)"]
[]
[null,"Demonstrated competency in the intended field of instruction. "]
[null,"(Embed documentation of competency.  Such documentation would include a copy of a widely accepted license or certificate such "]
[null,"as a CDL, a MCSE certificate, or a \"Train the Trainer\" certificate.)"]
[]
[null,"State certification as a Vocational Educator in the intended field of instruction.  (Embed copy of certificate.)"]
[]
[null,"Embed evidence to verify the instructor's qualifications:"]
[]
[]
[]
[]
[]
[]
[]
[null,null,"Qualifications of Instructor:",{"$f":"'PDE3003 Instructor List'!C41","v":{"$error":"#N/A"}},null,null,null,null,null,null,null,null,null,null,null,null,null,{"$f":"'PDE3003 Instructor List'!C41","v":{"$error":"#N/A"}}]
[]
[null,null,"Instructor's Home Address:"]
[]
[]
[]
[]
[null,null,null,"City, State and Zip Code"]
[]
[null,null,null,null,"Is this instructor currently employed by the school? "]
[]
[null,null,"School Director:"]
[null,null,null,"By placing my name above, I certify that, to the best of my knowledge, the information reported herein is true and accurate."]
[]
[null,null,"Date of Certification:"]
[]
["Names of courses to be taught by this instructor in the proposed new program:"]
[]
["Courses:"]
[]
[]
[]
[]
[]
[]
[]
[]
[]
["Courses taught by this instructor in OTHER programs at the school:",null,null,null,null,null,null,null,null,null,null,null,null,null,null,null,null,{"$f":"'PDE3003 Instructor List'!C41","v":{"$error":"#N/A"}}]
[]
["Courses:"]
[]
[]
[]
[]
[]
[]
[]
[]
[]
[]
[]
["Instructor's Education:"]
[null,null,null,null,null,null,null,null,"Award Received and Field of Study",null,null,null,null,"Dates Attended"]
[null,"Institution Attended",null,null,null,null,null,null,"(Examples: BS-Computer Science or ",null,null,null,null,"Month/Year",null,"Month/Year"]
[null,"School name, city, & state",null,null,null,null,"Graduated",null,"Diploma-Carpentry or Certificate-Word Processing)",null,null,null,null,"From",null,"To"]
[]
["College:"]
[]
["College:"]
[]
["Other:"]
[]
["Other:"]
[]
["High School:"]
[]
["Instructor's Program-Specific Teaching and/or Work Experience (list chronologically starting with the most recent employer, including this school):",null,null,null,null,null,null,null,null,null,null,null,null,null,null,null,null,{"$f":"'PDE3003 Instructor List'!C41","v":{"$error":"#N/A"}}]
[]
[null,null,null,null,null,null,null,null,null,null,null,"Dates of Employment"]
[null,"Employer",null,null,null,null,"Subject(s) Taught or Position Held",null,null,null,null,"Month/Year",null,"Month/Year"]
[null,"Employer name, city, & state",null,null,null,null,"(include supervisory experience)",null,null,null,null,"From",null,"To"]
[]
[]
[]
[]
[]
[]
[]
[]
[]
[]
[]
[]
[]
[]
[]
[]
[]
["Instructor's Verification of Qualifications:",null,null,null,null,null,null,null,null,null,null,null,null,null,null,null,null,{"$f":"'PDE3003 Instructor List'!C41","v":{"$error":"#N/A"}}]
[]
[null," The Board's regulations require instructors to have at least one of the qualifications listed below (22 Pa. Code Section 73.104).  "]
[null," Check all of the qualifications that apply, then attach the documentation needed for at least one of the qualifications you checked."]
[]
[null,"Baccalaureate degree or higher in the intended field of instruction.  (Embed copy of degree and/or transcript.)"]
[]
[null,"Two or more years' work experience in the intended field of instruction which is acceptable to the School Director."]
[null,"(Embed resume and/or letters from former employers describing the nature of the instructor's former duties.)"]
[]
[null,"Two or more years' teaching experience in the intended field of instruction.  "]
[null,"(Embed resume and/or letters from former employers that verify teaching experience and qualification in the field.)"]
[]
[null,"Journeyman's license relevant to the intended field of instruction.  (Embed copy of license.)"]
[]
[null,"Demonstrated competency in the intended field of instruction. "]
[null,"(Embed documentation of competency.  Such documentation would include a copy of a widely accepted license or certificate such "]
[null,"as a CDL, a MCSE certificate, or a \"Train the Trainer\" certificate.)"]
[]
[null,"State certification as a Vocational Educator in the intended field of instruction.  (Embed copy of certificate.)"]
[]
[null,"Embed evidence to verify the instructor's qualifications:"]
[]
[]
[]
[]
[]
[]
[]
[null,null,"Qualifications of Instructor:",{"$f":"'PDE3003 Instructor List'!C42","v":{"$error":"#N/A"}},null,null,null,null,null,null,null,null,null,null,null,null,null,{"$f":"'PDE3003 Instructor List'!C42","v":{"$error":"#N/A"}}]
[]
[null,null,"Instructor's Home Address:"]
[]
[]
[]
[]
[null,null,null,"City, State and Zip Code"]
[]
[null,null,null,null,"Is this instructor currently employed by the school? "]
[]
[null,null,"School Director:"]
[null,null,null,"By placing my name above, I certify that, to the best of my knowledge, the information reported herein is true and accurate."]
[]
[null,null,"Date of Certification:"]
[]
["Names of courses to be taught by this instructor in the proposed new program:"]
[]
["Courses:"]
[]
[]
[]
[]
[]
[]
[]
[]
[]
["Courses taught by this instructor in OTHER programs at the school:",null,null,null,null,null,null,null,null,null,null,null,null,null,null,null,null,{"$f":"'PDE3003 Instructor List'!C42","v":{"$error":"#N/A"}}]
[]
["Courses:"]
[]
[]
[]
[]
[]
[]
[]
[]
[]
[]
[]
["Instructor's Education:"]
[null,null,null,null,null,null,null,null,"Award Received and Field of Study",null,null,null,null,"Dates Attended"]
[null,"Institution Attended",null,null,null,null,null,null,"(Examples: BS-Computer Science or ",null,null,null,null,"Month/Year",null,"Month/Year"]
[null,"School name, city, & state",null,null,null,null,"Graduated",null,"Diploma-Carpentry or Certificate-Word Processing)",null,null,null,null,"From",null,"To"]
[]
["College:"]
[]
["College:"]
[]
["Other:"]
[]
["Other:"]
[]
["High School:"]
[]
["Instructor's Program-Specific Teaching and/or Work Experience (list chronologically starting with the most recent employer, including this school):",null,null,null,null,null,null,null,null,null,null,null,null,null,null,null,null,{"$f":"'PDE3003 Instructor List'!C42","v":{"$error":"#N/A"}}]
[]
[null,null,null,null,null,null,null,null,null,null,null,"Dates of Employment"]
[null,"Employer",null,null,null,null,"Subject(s) Taught or Position Held",null,null,null,null,"Month/Year",null,"Month/Year"]
[null,"Employer name, city, & state",null,null,null,null,"(include supervisory experience)",null,null,null,null,"From",null,"To"]
[]
[]
[]
[]
[]
[]
[]
[]
[]
[]
[]
[]
[]
[]
[]
[]
[]
["Instructor's Verification of Qualifications:",null,null,null,null,null,null,null,null,null,null,null,null,null,null,null,null,{"$f":"'PDE3003 Instructor List'!C42","v":{"$error":"#N/A"}}]
[]
[null," The Board's regulations require instructors to have at least one of the qualifications listed below (22 Pa. Code Section 73.104).  "]
[null," Check all of the qualifications that apply, then attach the documentation needed for at least one of the qualifications you checked."]
[]
[null,"Baccalaureate degree or higher in the intended field of instruction.  (Embed copy of degree and/or transcript.)"]
[]
[null,"Two or more years' work experience in the intended field of instruction which is acceptable to the School Director."]
[null,"(Embed resume and/or letters from former employers describing the nature of the instructor's former duties.)"]
[]
[null,"Two or more years' teaching experience in the intended field of instruction.  "]
[null,"(Embed resume and/or letters from former employers that verify teaching experience and qualification in the field.)"]
[]
[null,"Journeyman's license relevant to the intended field of instruction.  (Embed copy of license.)"]
[]
[null,"Demonstrated competency in the intended field of instruction. "]
[null,"(Embed documentation of competency.  Such documentation would include a copy of a widely accepted license or certificate such "]
[null,"as a CDL, a MCSE certificate, or a \"Train the Trainer\" certificate.)"]
[]
[null,"State certification as a Vocational Educator in the intended field of instruction.  (Embed copy of certificate.)"]
[]
[null,"Embed evidence to verify the instructor's qualifications:"]
[]
[]
[]
[]
[]
[]
[]
[null,null,"Qualifications of Instructor:",{"$f":"'PDE3003 Instructor List'!C43","v":{"$error":"#N/A"}},null,null,null,null,null,null,null,null,null,null,null,null,null,{"$f":"'PDE3003 Instructor List'!C43","v":{"$error":"#N/A"}}]
[]
[null,null,"Instructor's Home Address:"]
[]
[]
[]
[]
[null,null,null,"City, State and Zip Code"]
[]
[null,null,null,null,"Is this instructor currently employed by the school? "]
[]
[null,null,"School Director:"]
[null,null,null,"By placing my name above, I certify that, to the best of my knowledge, the information reported herein is true and accurate."]
[]
[null,null,"Date of Certification:"]
[]
["Names of courses to be taught by this instructor in the proposed new program:"]
[]
["Courses:"]
[]
[]
[]
[]
[]
[]
[]
[]
[]
["Courses taught by this instructor in OTHER programs at the school:",null,null,null,null,null,null,null,null,null,null,null,null,null,null,null,null,{"$f":"'PDE3003 Instructor List'!C43","v":{"$error":"#N/A"}}]
[]
["Courses:"]
[]
[]
[]
[]
[]
[]
[]
[]
[]
[]
[]
["Instructor's Education:"]
[null,null,null,null,null,null,null,null,"Award Received and Field of Study",null,null,null,null,"Dates Attended"]
[null,"Institution Attended",null,null,null,null,null,null,"(Examples: BS-Computer Science or ",null,null,null,null,"Month/Year",null,"Month/Year"]
[null,"School name, city, & state",null,null,null,null,"Graduated",null,"Diploma-Carpentry or Certificate-Word Processing)",null,null,null,null,"From",null,"To"]
[]
["College:"]
[]
["College:"]
[]
["Other:"]
[]
["Other:"]
[]
["High School:"]
[]
["Instructor's Program-Specific Teaching and/or Work Experience (list chronologically starting with the most recent employer, including this school):",null,null,null,null,null,null,null,null,null,null,null,null,null,null,null,null,{"$f":"'PDE3003 Instructor List'!C43","v":{"$error":"#N/A"}}]
[]
[null,null,null,null,null,null,null,null,null,null,null,"Dates of Employment"]
[null,"Employer",null,null,null,null,"Subject(s) Taught or Position Held",null,null,null,null,"Month/Year",null,"Month/Year"]
[null,"Employer name, city, & state",null,null,null,null,"(include supervisory experience)",null,null,null,null,"From",null,"To"]
[]
[]
[]
[]
[]
[]
[]
[]
[]
[]
[]
[]
[]
[]
[]
[]
[]
["Instructor's Verification of Qualifications:",null,null,null,null,null,null,null,null,null,null,null,null,null,null,null,null,{"$f":"'PDE3003 Instructor List'!C43","v":{"$error":"#N/A"}}]
[]
[null," The Board's regulations require instructors to have at least one of the qualifications listed below (22 Pa. Code Section 73.104).  "]
[null," Check all of the qualifications that apply, then attach the documentation needed for at least one of the qualifications you checked."]
[]
[null,"Baccalaureate degree or higher in the intended field of instruction.  (Embed copy of degree and/or transcript.)"]
[]
[null,"Two or more years' work experience in the intended field of instruction which is acceptable to the School Director."]
[null,"(Embed resume and/or letters from former employers describing the nature of the instructor's former duties.)"]
[]
[null,"Two or more years' teaching experience in the intended field of instruction.  "]
[null,"(Embed resume and/or letters from former employers that verify teaching experience and qualification in the field.)"]
[]
[null,"Journeyman's license relevant to the intended field of instruction.  (Embed copy of license.)"]
[]
[null,"Demonstrated competency in the intended field of instruction. "]
[null,"(Embed documentation of competency.  Such documentation would include a copy of a widely accepted license or certificate such "]
[null,"as a CDL, a MCSE certificate, or a \"Train the Trainer\" certificate.)"]
[]
[null,"State certification as a Vocational Educator in the intended field of instruction.  (Embed copy of certificate.)"]
[]
[null,"Embed evidence to verify the instructor's qualifications:"]
[]
[]
[]
[]
[]
[]
[]
[null,null,"Qualifications of Instructor:",{"$f":"'PDE3003 Instructor List'!C44","v":{"$error":"#N/A"}},null,null,null,null,null,null,null,null,null,null,null,null,null,{"$f":"'PDE3003 Instructor List'!C44","v":{"$error":"#N/A"}}]
[]
[null,null,"Instructor's Home Address:"]
[]
[]
[]
[]
[null,null,null,"City, State and Zip Code"]
[]
[null,null,null,null,"Is this instructor currently employed by the school? "]
[]
[null,null,"School Director:"]
[null,null,null,"By placing my name above, I certify that, to the best of my knowledge, the information reported herein is true and accurate."]
[]
[null,null,"Date of Certification:"]
[]
["Names of courses to be taught by this instructor in the proposed new program:"]
[]
["Courses:"]
[]
[]
[]
[]
[]
[]
[]
[]
[]
["Courses taught by this instructor in OTHER programs at the school:",null,null,null,null,null,null,null,null,null,null,null,null,null,null,null,null,{"$f":"'PDE3003 Instructor List'!C44","v":{"$error":"#N/A"}}]
[]
["Courses:"]
[]
[]
[]
[]
[]
[]
[]
[]
[]
[]
[]
["Instructor's Education:"]
[null,null,null,null,null,null,null,null,"Award Received and Field of Study",null,null,null,null,"Dates Attended"]
[null,"Institution Attended",null,null,null,null,null,null,"(Examples: BS-Computer Science or ",null,null,null,null,"Month/Year",null,"Month/Year"]
[null,"School name, city, & state",null,null,null,null,"Graduated",null,"Diploma-Carpentry or Certificate-Word Processing)",null,null,null,null,"From",null,"To"]
[]
["College:"]
[]
["College:"]
[]
["Other:"]
[]
["Other:"]
[]
["High School:"]
[]
["Instructor's Program-Specific Teaching and/or Work Experience (list chronologically starting with the most recent employer, including this school):",null,null,null,null,null,null,null,null,null,null,null,null,null,null,null,null,{"$f":"'PDE3003 Instructor List'!C44","v":{"$error":"#N/A"}}]
[]
[null,null,null,null,null,null,null,null,null,null,null,"Dates of Employment"]
[null,"Employer",null,null,null,null,"Subject(s) Taught or Position Held",null,null,null,null,"Month/Year",null,"Month/Year"]
[null,"Employer name, city, & state",null,null,null,null,"(include supervisory experience)",null,null,null,null,"From",null,"To"]
[]
[]
[]
[]
[]
[]
[]
[]
[]
[]
[]
[]
[]
[]
[]
[]
[]
["Instructor's Verification of Qualifications:",null,null,null,null,null,null,null,null,null,null,null,null,null,null,null,null,{"$f":"'PDE3003 Instructor List'!C44","v":{"$error":"#N/A"}}]
[]
[null," The Board's regulations require instructors to have at least one of the qualifications listed below (22 Pa. Code Section 73.104).  "]
[null," Check all of the qualifications that apply, then attach the documentation needed for at least one of the qualifications you checked."]
[]
[null,"Baccalaureate degree or higher in the intended field of instruction.  (Embed copy of degree and/or transcript.)"]
[]
[null,"Two or more years' work experience in the intended field of instruction which is acceptable to the School Director."]
[null,"(Embed resume and/or letters from former employers describing the nature of the instructor's former duties.)"]
[]
[null,"Two or more years' teaching experience in the intended field of instruction.  "]
[null,"(Embed resume and/or letters from former employers that verify teaching experience and qualification in the field.)"]
[]
[null,"Journeyman's license relevant to the intended field of instruction.  (Embed copy of license.)"]
[]
[null,"Demonstrated competency in the intended field of instruction. "]
[null,"(Embed documentation of competency.  Such documentation would include a copy of a widely accepted license or certificate such "]
[null,"as a CDL, a MCSE certificate, or a \"Train the Trainer\" certificate.)"]
[]
[null,"State certification as a Vocational Educator in the intended field of instruction.  (Embed copy of certificate.)"]
[]
[null,"Embed evidence to verify the instructor's qualifications:"]
[]
[]
[]
[]
[]
[]
[]
[null,null,"Qualifications of Instructor:",{"$f":"'PDE3003 Instructor List'!C45","v":{"$error":"#N/A"}},null,null,null,null,null,null,null,null,null,null,null,null,null,{"$f":"'PDE3003 Instructor List'!C45","v":{"$error":"#N/A"}}]
[]
[null,null,"Instructor's Home Address:"]
[]
[]
[]
[]
[null,null,null,"City, State and Zip Code"]
[]
[null,null,null,null,"Is this instructor currently employed by the school? "]
[]
[null,null,"School Director:"]
[null,null,null,"By placing my name above, I certify that, to the best of my knowledge, the information reported herein is true and accurate."]
[]
[null,null,"Date of Certification:"]
[]
["Names of courses to be taught by this instructor in the proposed new program:"]
[]
["Courses:"]
[]
[]
[]
[]
[]
[]
[]
[]
[]
["Courses taught by this instructor in OTHER programs at the school:",null,null,null,null,null,null,null,null,null,null,null,null,null,null,null,null,{"$f":"'PDE3003 Instructor List'!C45","v":{"$error":"#N/A"}}]
[]
["Courses:"]
[]
[]
[]
[]
[]
[]
[]
[]
[]
[]
[]
["Instructor's Education:"]
[null,null,null,null,null,null,null,null,"Award Received and Field of Study",null,null,null,null,"Dates Attended"]
[null,"Institution Attended",null,null,null,null,null,null,"(Examples: BS-Computer Science or ",null,null,null,null,"Month/Year",null,"Month/Year"]
[null,"School name, city, & state",null,null,null,null,"Graduated",null,"Diploma-Carpentry or Certificate-Word Processing)",null,null,null,null,"From",null,"To"]
[]
["College:"]
[]
["College:"]
[]
["Other:"]
[]
["Other:"]
[]
["High School:"]
[]
["Instructor's Program-Specific Teaching and/or Work Experience (list chronologically starting with the most recent employer, including this school):",null,null,null,null,null,null,null,null,null,null,null,null,null,null,null,null,{"$f":"'PDE3003 Instructor List'!C45","v":{"$error":"#N/A"}}]
[]
[null,null,null,null,null,null,null,null,null,null,null,"Dates of Employment"]
[null,"Employer",null,null,null,null,"Subject(s) Taught or Position Held",null,null,null,null,"Month/Year",null,"Month/Year"]
[null,"Employer name, city, & state",null,null,null,null,"(include supervisory experience)",null,null,null,null,"From",null,"To"]
[]
[]
[]
[]
[]
[]
[]
[]
[]
[]
[]
[]
[]
[]
[]
[]
[]
["Instructor's Verification of Qualifications:",null,null,null,null,null,null,null,null,null,null,null,null,null,null,null,null,{"$f":"'PDE3003 Instructor List'!C45","v":{"$error":"#N/A"}}]
[]
[null," The Board's regulations require instructors to have at least one of the qualifications listed below (22 Pa. Code Section 73.104).  "]
[null," Check all of the qualifications that apply, then attach the documentation needed for at least one of the qualifications you checked."]
[]
[null,"Baccalaureate degree or higher in the intended field of instruction.  (Embed copy of degree and/or transcript.)"]
[]
[null,"Two or more years' work experience in the intended field of instruction which is acceptable to the School Director."]
[null,"(Embed resume and/or letters from former employers describing the nature of the instructor's former duties.)"]
[]
[null,"Two or more years' teaching experience in the intended field of instruction.  "]
[null,"(Embed resume and/or letters from former employers that verify teaching experience and qualification in the field.)"]
[]
[null,"Journeyman's license relevant to the intended field of instruction.  (Embed copy of license.)"]
[]
[null,"Demonstrated competency in the intended field of instruction. "]
[null,"(Embed documentation of competency.  Such documentation would include a copy of a widely accepted license or certificate such "]
[null,"as a CDL, a MCSE certificate, or a \"Train the Trainer\" certificate.)"]
[]
[null,"State certification as a Vocational Educator in the intended field of instruction.  (Embed copy of certificate.)"]
[]
[null,"Embed evidence to verify the instructor's qualifications:"]
[]
[]
[]
[]
[]
[]
[]
[]
[null,null,"Qualifications of Instructor:",{"$f":"'PDE3003 Instructor List'!C46","v":{"$error":"#N/A"}},null,null,null,null,null,null,null,null,null,null,null,null,null,{"$f":"'PDE3003 Instructor List'!C46","v":{"$error":"#N/A"}}]
[]
[null,null,"Instructor's Home Address:"]
[]
[]
[]
[]
[null,null,null,"City, State and Zip Code"]
[]
[null,null,null,null,"Is this instructor currently employed by the school? "]
[]
[null,null,"School Director:"]
[null,null,null,"By placing my name above, I certify that, to the best of my knowledge, the information reported herein is true and accurate."]
[]
[null,null,"Date of Certification:"]
[]
["Names of courses to be taught by this instructor in the proposed new program:"]
[]
["Courses:"]
[]
[]
[]
[]
[]
[]
[]
[]
[]
["Courses taught by this instructor in OTHER programs at the school:",null,null,null,null,null,null,null,null,null,null,null,null,null,null,null,null,{"$f":"'PDE3003 Instructor List'!C46","v":{"$error":"#N/A"}}]
[]
["Courses:"]
[]
[]
[]
[]
[]
[]
[]
[]
[]
[]
[]
["Instructor's Education:"]
[null,null,null,null,null,null,null,null,"Award Received and Field of Study",null,null,null,null,"Dates Attended"]
[null,"Institution Attended",null,null,null,null,null,null,"(Examples: BS-Computer Science or ",null,null,null,null,"Month/Year",null,"Month/Year"]
[null,"School name, city, & state",null,null,null,null,"Graduated",null,"Diploma-Carpentry or Certificate-Word Processing)",null,null,null,null,"From",null,"To"]
[]
["College:"]
[]
["College:"]
[]
["Other:"]
[]
["Other:"]
[]
["High School:"]
[]
["Instructor's Program-Specific Teaching and/or Work Experience (list chronologically starting with the most recent employer, including this school):",null,null,null,null,null,null,null,null,null,null,null,null,null,null,null,null,{"$f":"'PDE3003 Instructor List'!C46","v":{"$error":"#N/A"}}]
[]
[null,null,null,null,null,null,null,null,null,null,null,"Dates of Employment"]
[null,"Employer",null,null,null,null,"Subject(s) Taught or Position Held",null,null,null,null,"Month/Year",null,"Month/Year"]
[null,"Employer name, city, & state",null,null,null,null,"(include supervisory experience)",null,null,null,null,"From",null,"To"]
[]
[]
[]
[]
[]
[]
[]
[]
[]
[]
[]
[]
[]
[]
[]
[]
[]
["Instructor's Verification of Qualifications:",null,null,null,null,null,null,null,null,null,null,null,null,null,null,null,null,{"$f":"'PDE3003 Instructor List'!C46","v":{"$error":"#N/A"}}]
[]
[null," The Board's regulations require instructors to have at least one of the qualifications listed below (22 Pa. Code Section 73.104).  "]
[null," Check all of the qualifications that apply, then attach the documentation needed for at least one of the qualifications you checked."]
[]
[null,"Baccalaureate degree or higher in the intended field of instruction.  (Embed copy of degree and/or transcript.)"]
[]
[null,"Two or more years' work experience in the intended field of instruction which is acceptable to the School Director."]
[null,"(Embed resume and/or letters from former employers describing the nature of the instructor's former duties.)"]
[]
[null,"Two or more years' teaching experience in the intended field of instruction.  "]
[null,"(Embed resume and/or letters from former employers that verify teaching experience and qualification in the field.)"]
[]
[null,"Journeyman's license relevant to the intended field of instruction.  (Embed copy of license.)"]
[]
[null,"Demonstrated competency in the intended field of instruction. "]
[null,"(Embed documentation of competency.  Such documentation would include a copy of a widely accepted license or certificate such "]
[null,"as a CDL, a MCSE certificate, or a \"Train the Trainer\" certificate.)"]
[]
[null,"State certification as a Vocational Educator in the intended field of instruction.  (Embed copy of certificate.)"]
[]
[null,"Embed evidence to verify the instructor's qualifications:"]
[]
[]
[]
[]
[]
[]
[]
[null,null,"Qualifications of Instructor:",{"$f":"'PDE3003 Instructor List'!C47","v":{"$error":"#N/A"}},null,null,null,null,null,null,null,null,null,null,null,null,null,{"$f":"'PDE3003 Instructor List'!C583","v":0}]
[]
[null,null,"Instructor's Home Address:"]
[]
[]
[]
[]
[null,null,null,"City, State and Zip Code"]
[]
[null,null,null,null,"Is this instructor currently employed by the school? "]
[]
[null,null,"School Director:"]
[null,null,null,"By placing my name above, I certify that, to the best of my knowledge, the information reported herein is true and accurate."]
[]
[null,null,"Date of Certification:"]
[]
["Names of courses to be taught by this instructor in the proposed new program:"]
[]
["Courses:"]
[]
[]
[]
[]
[]
[]
[]
[]
[]
["Courses taught by this instructor in OTHER programs at the school:",null,null,null,null,null,null,null,null,null,null,null,null,null,null,null,null,{"$f":"'PDE3003 Instructor List'!C583","v":0}]
[]
["Courses:"]
[]
[]
[]
[]
[]
[]
[]
[]
[]
[]
[]
["Instructor's Education:"]
[null,null,null,null,null,null,null,null,"Award Received and Field of Study",null,null,null,null,"Dates Attended"]
[null,"Institution Attended",null,null,null,null,null,null,"(Examples: BS-Computer Science or ",null,null,null,null,"Month/Year",null,"Month/Year"]
[null,"School name, city, & state",null,null,null,null,"Graduated",null,"Diploma-Carpentry or Certificate-Word Processing)",null,null,null,null,"From",null,"To"]
[]
["College:"]
[]
["College:"]
[]
["Other:"]
[]
["Other:"]
[]
["High School:"]
[]
["Instructor's Program-Specific Teaching and/or Work Experience (list chronologically starting with the most recent employer, including this school):",null,null,null,null,null,null,null,null,null,null,null,null,null,null,null,null,{"$f":"'PDE3003 Instructor List'!C583","v":0}]
[]
[null,null,null,null,null,null,null,null,null,null,null,"Dates of Employment"]
[null,"Employer",null,null,null,null,"Subject(s) Taught or Position Held",null,null,null,null,"Month/Year",null,"Month/Year"]
[null,"Employer name, city, & state",null,null,null,null,"(include supervisory experience)",null,null,null,null,"From",null,"To"]
[]
[]
[]
[]
[]
[]
[]
[]
[]
[]
[]
[]
[]
[]
[]
[]
[]
["Instructor's Verification of Qualifications:",null,null,null,null,null,null,null,null,null,null,null,null,null,null,null,null,{"$f":"'PDE3003 Instructor List'!C583","v":0}]
[]
[null," The Board's regulations require instructors to have at least one of the qualifications listed below (22 Pa. Code Section 73.104).  "]
[null," Check all of the qualifications that apply, then attach the documentation needed for at least one of the qualifications you checked."]
[]
[null,"Baccalaureate degree or higher in the intended field of instruction.  (Embed copy of degree and/or transcript.)"]
[]
[null,"Two or more years' work experience in the intended field of instruction which is acceptable to the School Director."]
[null,"(Embed resume and/or letters from former employers describing the nature of the instructor's former duties.)"]
[]
[null,"Two or more years' teaching experience in the intended field of instruction.  "]
[null,"(Embed resume and/or letters from former employers that verify teaching experience and qualification in the field.)"]
[]
[null,"Journeyman's license relevant to the intended field of instruction.  (Embed copy of license.)"]
[]
[null,"Demonstrated competency in the intended field of instruction. "]
[null,"(Embed documentation of competency.  Such documentation would include a copy of a widely accepted license or certificate such "]
[null,"as a CDL, a MCSE certificate, or a \"Train the Trainer\" certificate.)"]
[]
[null,"State certification as a Vocational Educator in the intended field of instruction.  (Embed copy of certificate.)"]
[]
[null,"Embed evidence to verify the instructor's qualifications:"]
[]
[]
[]
[]
[]
[]
[]
[null,null,"Qualifications of Instructor:",{"$f":"'PDE3003 Instructor List'!C48","v":{"$error":"#N/A"}},null,null,null,null,null,null,null,null,null,null,null,null,null,{"$f":"'PDE3003 Instructor List'!C584","v":0}]
[]
[null,null,"Instructor's Home Address:"]
[]
[]
[]
[]
[null,null,null,"City, State and Zip Code"]
[]
[null,null,null,null,"Is this instructor currently employed by the school? "]
[]
[null,null,"School Director:"]
[null,null,null,"By placing my name above, I certify that, to the best of my knowledge, the information reported herein is true and accurate."]
[]
[null,null,"Date of Certification:"]
[]
["Names of courses to be taught by this instructor in the proposed new program:"]
[]
["Courses:"]
[]
[]
[]
[]
[]
[]
[]
[]
[]
["Courses taught by this instructor in OTHER programs at the school:",null,null,null,null,null,null,null,null,null,null,null,null,null,null,null,null,{"$f":"'PDE3003 Instructor List'!C584","v":0}]
[]
["Courses:"]
[]
[]
[]
[]
[]
[]
[]
[]
[]
[]
[]
["Instructor's Education:"]
[null,null,null,null,null,null,null,null,"Award Received and Field of Study",null,null,null,null,"Dates Attended"]
[null,"Institution Attended",null,null,null,null,null,null,"(Examples: BS-Computer Science or ",null,null,null,null,"Month/Year",null,"Month/Year"]
[null,"School name, city, & state",null,null,null,null,"Graduated",null,"Diploma-Carpentry or Certificate-Word Processing)",null,null,null,null,"From",null,"To"]
[]
["College:"]
[]
["College:"]
[]
["Other:"]
[]
["Other:"]
[]
["High School:"]
[]
["Instructor's Program-Specific Teaching and/or Work Experience (list chronologically starting with the most recent employer, including this school):",null,null,null,null,null,null,null,null,null,null,null,null,null,null,null,null,{"$f":"'PDE3003 Instructor List'!C584","v":0}]
[]
[null,null,null,null,null,null,null,null,null,null,null,"Dates of Employment"]
[null,"Employer",null,null,null,null,"Subject(s) Taught or Position Held",null,null,null,null,"Month/Year",null,"Month/Year"]
[null,"Employer name, city, & state",null,null,null,null,"(include supervisory experience)",null,null,null,null,"From",null,"To"]
[]
[]
[]
[]
[]
[]
[]
[]
[]
[]
[]
[]
[]
[]
[]
[]
[]
["Instructor's Verification of Qualifications:",null,null,null,null,null,null,null,null,null,null,null,null,null,null,null,null,{"$f":"'PDE3003 Instructor List'!C584","v":0}]
[]
[null," The Board's regulations require instructors to have at least one of the qualifications listed below (22 Pa. Code Section 73.104).  "]
[null," Check all of the qualifications that apply, then attach the documentation needed for at least one of the qualifications you checked."]
[]
[null,"Baccalaureate degree or higher in the intended field of instruction.  (Embed copy of degree and/or transcript.)"]
[]
[null,"Two or more years' work experience in the intended field of instruction which is acceptable to the School Director."]
[null,"(Embed resume and/or letters from former employers describing the nature of the instructor's former duties.)"]
[]
[null,"Two or more years' teaching experience in the intended field of instruction.  "]
[null,"(Embed resume and/or letters from former employers that verify teaching experience and qualification in the field.)"]
[]
[null,"Journeyman's license relevant to the intended field of instruction.  (Embed copy of license.)"]
[]
[null,"Demonstrated competency in the intended field of instruction. "]
[null,"(Embed documentation of competency.  Such documentation would include a copy of a widely accepted license or certificate such "]
[null,"as a CDL, a MCSE certificate, or a \"Train the Trainer\" certificate.)"]
[]
[null,"State certification as a Vocational Educator in the intended field of instruction.  (Embed copy of certificate.)"]
[]
[null,"Embed evidence to verify the instructor's qualifications:"]
[]
[]
[]
[]
[]
[]
[]
[null,null,"Qualifications of Instructor:",{"$f":"'PDE3003 Instructor List'!C49","v":{"$error":"#N/A"}},null,null,null,null,null,null,null,null,null,null,null,null,null,{"$f":"'PDE3003 Instructor List'!C585","v":0}]
[]
[null,null,"Instructor's Home Address:"]
[]
[]
[]
[]
[null,null,null,"City, State and Zip Code"]
[]
[null,null,null,null,"Is this instructor currently employed by the school? "]
[]
[null,null,"School Director:"]
[null,null,null,"By placing my name above, I certify that, to the best of my knowledge, the information reported herein is true and accurate."]
[]
[null,null,"Date of Certification:"]
[]
["Names of courses to be taught by this instructor in the proposed new program:"]
[]
["Courses:"]
[]
[]
[]
[]
[]
[]
[]
[]
[]
["Courses taught by this instructor in OTHER programs at the school:",null,null,null,null,null,null,null,null,null,null,null,null,null,null,null,null,{"$f":"'PDE3003 Instructor List'!C585","v":0}]
[]
["Courses:"]
[]
[]
[]
[]
[]
[]
[]
[]
[]
[]
[]
["Instructor's Education:"]
[null,null,null,null,null,null,null,null,"Award Received and Field of Study",null,null,null,null,"Dates Attended"]
[null,"Institution Attended",null,null,null,null,null,null,"(Examples: BS-Computer Science or ",null,null,null,null,"Month/Year",null,"Month/Year"]
[null,"School name, city, & state",null,null,null,null,"Graduated",null,"Diploma-Carpentry or Certificate-Word Processing)",null,null,null,null,"From",null,"To"]
[]
["College:"]
[]
["College:"]
[]
["Other:"]
[]
["Other:"]
[]
["High School:"]
[]
["Instructor's Program-Specific Teaching and/or Work Experience (list chronologically starting with the most recent employer, including this school):",null,null,null,null,null,null,null,null,null,null,null,null,null,null,null,null,{"$f":"'PDE3003 Instructor List'!C585","v":0}]
[]
[null,null,null,null,null,null,null,null,null,null,null,"Dates of Employment"]
[null,"Employer",null,null,null,null,"Subject(s) Taught or Position Held",null,null,null,null,"Month/Year",null,"Month/Year"]
[null,"Employer name, city, & state",null,null,null,null,"(include supervisory experience)",null,null,null,null,"From",null,"To"]
[]
[]
[]
[]
[]
[]
[]
[]
[]
[]
[]
[]
[]
[]
[]
[]
[]
["Instructor's Verification of Qualifications:",null,null,null,null,null,null,null,null,null,null,null,null,null,null,null,null,{"$f":"'PDE3003 Instructor List'!C585","v":0}]
[]
[null," The Board's regulations require instructors to have at least one of the qualifications listed below (22 Pa. Code Section 73.104).  "]
[null," Check all of the qualifications that apply, then attach the documentation needed for at least one of the qualifications you checked."]
[]
[null,"Baccalaureate degree or higher in the intended field of instruction.  (Embed copy of degree and/or transcript.)"]
[]
[null,"Two or more years' work experience in the intended field of instruction which is acceptable to the School Director."]
[null,"(Embed resume and/or letters from former employers describing the nature of the instructor's former duties.)"]
[]
[null,"Two or more years' teaching experience in the intended field of instruction.  "]
[null,"(Embed resume and/or letters from former employers that verify teaching experience and qualification in the field.)"]
[]
[null,"Journeyman's license relevant to the intended field of instruction.  (Embed copy of license.)"]
[]
[null,"Demonstrated competency in the intended field of instruction. "]
[null,"(Embed documentation of competency.  Such documentation would include a copy of a widely accepted license or certificate such "]
[null,"as a CDL, a MCSE certificate, or a \"Train the Trainer\" certificate.)"]
[]
[null,"State certification as a Vocational Educator in the intended field of instruction.  (Embed copy of certificate.)"]
[]
[null,"Embed evidence to verify the instructor's qualifications:"]
[]
[]
[]
[]
[]
[]
[]
[null,null,"Qualifications of Instructor:",{"$f":"'PDE3003 Instructor List'!C50","v":{"$error":"#N/A"}},null,null,null,null,null,null,null,null,null,null,null,null,null,{"$f":"'PDE3003 Instructor List'!C586","v":0}]
[]
[null,null,"Instructor's Home Address:"]
[]
[]
[]
[]
[null,null,null,"City, State and Zip Code"]
[]
[null,null,null,null,"Is this instructor currently employed by the school? "]
[]
[null,null,"School Director:"]
[null,null,null,"By placing my name above, I certify that, to the best of my knowledge, the information reported herein is true and accurate."]
[]
[null,null,"Date of Certification:"]
[]
["Names of courses to be taught by this instructor in the proposed new program:"]
[]
["Courses:"]
[]
[]
[]
[]
[]
[]
[]
[]
[]
["Courses taught by this instructor in OTHER programs at the school:",null,null,null,null,null,null,null,null,null,null,null,null,null,null,null,null,{"$f":"'PDE3003 Instructor List'!C586","v":0}]
[]
["Courses:"]
[]
[]
[]
[]
[]
[]
[]
[]
[]
[]
[]
["Instructor's Education:"]
[null,null,null,null,null,null,null,null,"Award Received and Field of Study",null,null,null,null,"Dates Attended"]
[null,"Institution Attended",null,null,null,null,null,null,"(Examples: BS-Computer Science or ",null,null,null,null,"Month/Year",null,"Month/Year"]
[null,"School name, city, & state",null,null,null,null,"Graduated",null,"Diploma-Carpentry or Certificate-Word Processing)",null,null,null,null,"From",null,"To"]
[]
["College:"]
[]
["College:"]
[]
["Other:"]
[]
["Other:"]
[]
["High School:"]
[]
["Instructor's Program-Specific Teaching and/or Work Experience (list chronologically starting with the most recent employer, including this school):",null,null,null,null,null,null,null,null,null,null,null,null,null,null,null,null,{"$f":"'PDE3003 Instructor List'!C586","v":0}]
[]
[null,null,null,null,null,null,null,null,null,null,null,"Dates of Employment"]
[null,"Employer",null,null,null,null,"Subject(s) Taught or Position Held",null,null,null,null,"Month/Year",null,"Month/Year"]
[null,"Employer name, city, & state",null,null,null,null,"(include supervisory experience)",null,null,null,null,"From",null,"To"]
[]
[]
[]
[]
[]
[]
[]
[]
[]
[]
[]
[]
[]
[]
[]
[]
[]
["Instructor's Verification of Qualifications:",null,null,null,null,null,null,null,null,null,null,null,null,null,null,null,null,{"$f":"'PDE3003 Instructor List'!C586","v":0}]
[]
[null," The Board's regulations require instructors to have at least one of the qualifications listed below (22 Pa. Code Section 73.104).  "]
[null," Check all of the qualifications that apply, then attach the documentation needed for at least one of the qualifications you checked."]
[]
[null,"Baccalaureate degree or higher in the intended field of instruction.  (Embed copy of degree and/or transcript.)"]
[]
[null,"Two or more years' work experience in the intended field of instruction which is acceptable to the School Director."]
[null,"(Embed resume and/or letters from former employers describing the nature of the instructor's former duties.)"]
[]
[null,"Two or more years' teaching experience in the intended field of instruction.  "]
[null,"(Embed resume and/or letters from former employers that verify teaching experience and qualification in the field.)"]
[]
[null,"Journeyman's license relevant to the intended field of instruction.  (Embed copy of license.)"]
[]
[null,"Demonstrated competency in the intended field of instruction. "]
[null,"(Embed documentation of competency.  Such documentation would include a copy of a widely accepted license or certificate such "]
[null,"as a CDL, a MCSE certificate, or a \"Train the Trainer\" certificate.)"]
[]
[null,"State certification as a Vocational Educator in the intended field of instruction.  (Embed copy of certificate.)"]
[]
[null,"Embed evidence to verify the instructor's qualifications:"]
[]
[]
[]
[]
[]
[]
[]
[]
[null,null,"Qualifications of Instructor:",{"$f":"'PDE3003 Instructor List'!C51","v":{"$error":"#N/A"}},null,null,null,null,null,null,null,null,null,null,null,null,null,{"$f":"'PDE3003 Instructor List'!C587","v":0}]
[]
[null,null,"Instructor's Home Address:"]
[]
[]
[]
[]
[null,null,null,"City, State and Zip Code"]
[]
[null,null,null,null,"Is this instructor currently employed by the school? "]
[]
[null,null,"School Director:"]
[null,null,null,"By placing my name above, I certify that, to the best of my knowledge, the information reported herein is true and accurate."]
[]
[null,null,"Date of Certification:"]
[]
["Names of courses to be taught by this instructor in the proposed new program:"]
[]
["Courses:"]
[]
[]
[]
[]
[]
[]
[]
[]
[]
["Courses taught by this instructor in OTHER programs at the school:",null,null,null,null,null,null,null,null,null,null,null,null,null,null,null,null,{"$f":"'PDE3003 Instructor List'!C587","v":0}]
[]
["Courses:"]
[]
[]
[]
[]
[]
[]
[]
[]
[]
[]
[]
["Instructor's Education:"]
[null,null,null,null,null,null,null,null,"Award Received and Field of Study",null,null,null,null,"Dates Attended"]
[null,"Institution Attended",null,null,null,null,null,null,"(Examples: BS-Computer Science or ",null,null,null,null,"Month/Year",null,"Month/Year"]
[null,"School name, city, & state",null,null,null,null,"Graduated",null,"Diploma-Carpentry or Certificate-Word Processing)",null,null,null,null,"From",null,"To"]
[]
["College:"]
[]
["College:"]
[]
["Other:"]
[]
["Other:"]
[]
["High School:"]
[]
["Instructor's Program-Specific Teaching and/or Work Experience (list chronologically starting with the most recent employer, including this school):",null,null,null,null,null,null,null,null,null,null,null,null,null,null,null,null,{"$f":"'PDE3003 Instructor List'!C587","v":0}]
[]
[null,null,null,null,null,null,null,null,null,null,null,"Dates of Employment"]
[null,"Employer",null,null,null,null,"Subject(s) Taught or Position Held",null,null,null,null,"Month/Year",null,"Month/Year"]
[null,"Employer name, city, & state",null,null,null,null,"(include supervisory experience)",null,null,null,null,"From",null,"To"]
[]
[]
[]
[]
[]
[]
[]
[]
[]
[]
[]
[]
[]
[]
[]
[]
[]
["Instructor's Verification of Qualifications:",null,null,null,null,null,null,null,null,null,null,null,null,null,null,null,null,{"$f":"'PDE3003 Instructor List'!C587","v":0}]
[]
[null," The Board's regulations require instructors to have at least one of the qualifications listed below (22 Pa. Code Section 73.104).  "]
[null," Check all of the qualifications that apply, then attach the documentation needed for at least one of the qualifications you checked."]
[]
[null,"Baccalaureate degree or higher in the intended field of instruction.  (Embed copy of degree and/or transcript.)"]
[]
[null,"Two or more years' work experience in the intended field of instruction which is acceptable to the School Director."]
[null,"(Embed resume and/or letters from former employers describing the nature of the instructor's former duties.)"]
[]
[null,"Two or more years' teaching experience in the intended field of instruction.  "]
[null,"(Embed resume and/or letters from former employers that verify teaching experience and qualification in the field.)"]
[]
[null,"Journeyman's license relevant to the intended field of instruction.  (Embed copy of license.)"]
[]
[null,"Demonstrated competency in the intended field of instruction. "]
[null,"(Embed documentation of competency.  Such documentation would include a copy of a widely accepted license or certificate such "]
[null,"as a CDL, a MCSE certificate, or a \"Train the Trainer\" certificate.)"]
[]
[null,"State certification as a Vocational Educator in the intended field of instruction.  (Embed copy of certificate.)"]
[]
[null,"Embed evidence to verify the instructor's qualifications:"]
[]
[]
[]
[]
[]
[]
[]
[null,null,"Qualifications of Instructor:",{"$f":"'PDE3003 Instructor List'!C52","v":{"$error":"#N/A"}},null,null,null,null,null,null,null,null,null,null,null,null,null,{"$f":"'PDE3003 Instructor List'!C1124","v":0}]
[]
[null,null,"Instructor's Home Address:"]
[]
[]
[]
[]
[null,null,null,"City, State and Zip Code"]
[]
[null,null,null,null,"Is this instructor currently employed by the school? "]
[]
[null,null,"School Director:"]
[null,null,null,"By placing my name above, I certify that, to the best of my knowledge, the information reported herein is true and accurate."]
[]
[null,null,"Date of Certification:"]
[]
["Names of courses to be taught by this instructor in the proposed new program:"]
[]
["Courses:"]
[]
[]
[]
[]
[]
[]
[]
[]
[]
["Courses taught by this instructor in OTHER programs at the school:",null,null,null,null,null,null,null,null,null,null,null,null,null,null,null,null,{"$f":"'PDE3003 Instructor List'!C1124","v":0}]
[]
["Courses:"]
[]
[]
[]
[]
[]
[]
[]
[]
[]
[]
[]
["Instructor's Education:"]
[null,null,null,null,null,null,null,null,"Award Received and Field of Study",null,null,null,null,"Dates Attended"]
[null,"Institution Attended",null,null,null,null,null,null,"(Examples: BS-Computer Science or ",null,null,null,null,"Month/Year",null,"Month/Year"]
[null,"School name, city, & state",null,null,null,null,"Graduated",null,"Diploma-Carpentry or Certificate-Word Processing)",null,null,null,null,"From",null,"To"]
[]
["College:"]
[]
["College:"]
[]
["Other:"]
[]
["Other:"]
[]
["High School:"]
[]
["Instructor's Program-Specific Teaching and/or Work Experience (list chronologically starting with the most recent employer, including this school):",null,null,null,null,null,null,null,null,null,null,null,null,null,null,null,null,{"$f":"'PDE3003 Instructor List'!C1124","v":0}]
[]
[null,null,null,null,null,null,null,null,null,null,null,"Dates of Employment"]
[null,"Employer",null,null,null,null,"Subject(s) Taught or Position Held",null,null,null,null,"Month/Year",null,"Month/Year"]
[null,"Employer name, city, & state",null,null,null,null,"(include supervisory experience)",null,null,null,null,"From",null,"To"]
[]
[]
[]
[]
[]
[]
[]
[]
[]
[]
[]
[]
[]
[]
[]
[]
[]
["Instructor's Verification of Qualifications:",null,null,null,null,null,null,null,null,null,null,null,null,null,null,null,null,{"$f":"'PDE3003 Instructor List'!C1124","v":0}]
[]
[null," The Board's regulations require instructors to have at least one of the qualifications listed below (22 Pa. Code Section 73.104).  "]
[null," Check all of the qualifications that apply, then attach the documentation needed for at least one of the qualifications you checked."]
[]
[null,"Baccalaureate degree or higher in the intended field of instruction.  (Embed copy of degree and/or transcript.)"]
[]
[null,"Two or more years' work experience in the intended field of instruction which is acceptable to the School Director."]
[null,"(Embed resume and/or letters from former employers describing the nature of the instructor's former duties.)"]
[]
[null,"Two or more years' teaching experience in the intended field of instruction.  "]
[null,"(Embed resume and/or letters from former employers that verify teaching experience and qualification in the field.)"]
[]
[null,"Journeyman's license relevant to the intended field of instruction.  (Embed copy of license.)"]
[]
[null,"Demonstrated competency in the intended field of instruction. "]
[null,"(Embed documentation of competency.  Such documentation would include a copy of a widely accepted license or certificate such "]
[null,"as a CDL, a MCSE certificate, or a \"Train the Trainer\" certificate.)"]
[]
[null,"State certification as a Vocational Educator in the intended field of instruction.  (Embed copy of certificate.)"]
[]
[null,"Embed evidence to verify the instructor's qualifications:"]
[]
[]
[]
[]
[]
[]
[]
[null,null,"Qualifications of Instructor:",{"$f":"'PDE3003 Instructor List'!C53","v":{"$error":"#N/A"}},null,null,null,null,null,null,null,null,null,null,null,null,null,{"$f":"'PDE3003 Instructor List'!C1125","v":0}]
[]
[null,null,"Instructor's Home Address:"]
[]
[]
[]
[]
[null,null,null,"City, State and Zip Code"]
[]
[null,null,null,null,"Is this instructor currently employed by the school? "]
[]
[null,null,"School Director:"]
[null,null,null,"By placing my name above, I certify that, to the best of my knowledge, the information reported herein is true and accurate."]
[]
[null,null,"Date of Certification:"]
[]
["Names of courses to be taught by this instructor in the proposed new program:"]
[]
["Courses:"]
[]
[]
[]
[]
[]
[]
[]
[]
[]
["Courses taught by this instructor in OTHER programs at the school:",null,null,null,null,null,null,null,null,null,null,null,null,null,null,null,null,{"$f":"'PDE3003 Instructor List'!C1125","v":0}]
[]
["Courses:"]
[]
[]
[]
[]
[]
[]
[]
[]
[]
[]
[]
["Instructor's Education:"]
[null,null,null,null,null,null,null,null,"Award Received and Field of Study",null,null,null,null,"Dates Attended"]
[null,"Institution Attended",null,null,null,null,null,null,"(Examples: BS-Computer Science or ",null,null,null,null,"Month/Year",null,"Month/Year"]
[null,"School name, city, & state",null,null,null,null,"Graduated",null,"Diploma-Carpentry or Certificate-Word Processing)",null,null,null,null,"From",null,"To"]
[]
["College:"]
[]
["College:"]
[]
["Other:"]
[]
["Other:"]
[]
["High School:"]
[]
["Instructor's Program-Specific Teaching and/or Work Experience (list chronologically starting with the most recent employer, including this school):",null,null,null,null,null,null,null,null,null,null,null,null,null,null,null,null,{"$f":"'PDE3003 Instructor List'!C1125","v":0}]
[]
[null,null,null,null,null,null,null,null,null,null,null,"Dates of Employment"]
[null,"Employer",null,null,null,null,"Subject(s) Taught or Position Held",null,null,null,null,"Month/Year",null,"Month/Year"]
[null,"Employer name, city, & state",null,null,null,null,"(include supervisory experience)",null,null,null,null,"From",null,"To"]
[]
[]
[]
[]
[]
[]
[]
[]
[]
[]
[]
[]
[]
[]
[]
[]
[]
["Instructor's Verification of Qualifications:",null,null,null,null,null,null,null,null,null,null,null,null,null,null,null,null,{"$f":"'PDE3003 Instructor List'!C1125","v":0}]
[]
[null," The Board's regulations require instructors to have at least one of the qualifications listed below (22 Pa. Code Section 73.104).  "]
[null," Check all of the qualifications that apply, then attach the documentation needed for at least one of the qualifications you checked."]
[]
[null,"Baccalaureate degree or higher in the intended field of instruction.  (Embed copy of degree and/or transcript.)"]
[]
[null,"Two or more years' work experience in the intended field of instruction which is acceptable to the School Director."]
[null,"(Embed resume and/or letters from former employers describing the nature of the instructor's former duties.)"]
[]
[null,"Two or more years' teaching experience in the intended field of instruction.  "]
[null,"(Embed resume and/or letters from former employers that verify teaching experience and qualification in the field.)"]
[]
[null,"Journeyman's license relevant to the intended field of instruction.  (Embed copy of license.)"]
[]
[null,"Demonstrated competency in the intended field of instruction. "]
[null,"(Embed documentation of competency.  Such documentation would include a copy of a widely accepted license or certificate such "]
[null,"as a CDL, a MCSE certificate, or a \"Train the Trainer\" certificate.)"]
[]
[null,"State certification as a Vocational Educator in the intended field of instruction.  (Embed copy of certificate.)"]
[]
[null,"Embed evidence to verify the instructor's qualifications:"]
[]
[]
[]
[]
[]
[]
[]
[null,null,"Qualifications of Instructor:",{"$f":"'PDE3003 Instructor List'!C54","v":{"$error":"#N/A"}},null,null,null,null,null,null,null,null,null,null,null,null,null,{"$f":"'PDE3003 Instructor List'!C1126","v":0}]
[]
[null,null,"Instructor's Home Address:"]
[]
[]
[]
[]
[null,null,null,"City, State and Zip Code"]
[]
[null,null,null,null,"Is this instructor currently employed by the school? "]
[]
[null,null,"School Director:"]
[null,null,null,"By placing my name above, I certify that, to the best of my knowledge, the information reported herein is true and accurate."]
[]
[null,null,"Date of Certification:"]
[]
["Names of courses to be taught by this instructor in the proposed new program:"]
[]
["Courses:"]
[]
[]
[]
[]
[]
[]
[]
[]
[]
["Courses taught by this instructor in OTHER programs at the school:",null,null,null,null,null,null,null,null,null,null,null,null,null,null,null,null,{"$f":"'PDE3003 Instructor List'!C1126","v":0}]
[]
["Courses:"]
[]
[]
[]
[]
[]
[]
[]
[]
[]
[]
[]
["Instructor's Education:"]
[null,null,null,null,null,null,null,null,"Award Received and Field of Study",null,null,null,null,"Dates Attended"]
[null,"Institution Attended",null,null,null,null,null,null,"(Examples: BS-Computer Science or ",null,null,null,null,"Month/Year",null,"Month/Year"]
[null,"School name, city, & state",null,null,null,null,"Graduated",null,"Diploma-Carpentry or Certificate-Word Processing)",null,null,null,null,"From",null,"To"]
[]
["College:"]
[]
["College:"]
[]
["Other:"]
[]
["Other:"]
[]
["High School:"]
[]
["Instructor's Program-Specific Teaching and/or Work Experience (list chronologically starting with the most recent employer, including this school):",null,null,null,null,null,null,null,null,null,null,null,null,null,null,null,null,{"$f":"'PDE3003 Instructor List'!C1126","v":0}]
[]
[null,null,null,null,null,null,null,null,null,null,null,"Dates of Employment"]
[null,"Employer",null,null,null,null,"Subject(s) Taught or Position Held",null,null,null,null,"Month/Year",null,"Month/Year"]
[null,"Employer name, city, & state",null,null,null,null,"(include supervisory experience)",null,null,null,null,"From",null,"To"]
[]
[]
[]
[]
[]
[]
[]
[]
[]
[]
[]
[]
[]
[]
[]
[]
[]
["Instructor's Verification of Qualifications:",null,null,null,null,null,null,null,null,null,null,null,null,null,null,null,null,{"$f":"'PDE3003 Instructor List'!C1126","v":0}]
[]
[null," The Board's regulations require instructors to have at least one of the qualifications listed below (22 Pa. Code Section 73.104).  "]
[null," Check all of the qualifications that apply, then attach the documentation needed for at least one of the qualifications you checked."]
[]
[null,"Baccalaureate degree or higher in the intended field of instruction.  (Embed copy of degree and/or transcript.)"]
[]
[null,"Two or more years' work experience in the intended field of instruction which is acceptable to the School Director."]
[null,"(Embed resume and/or letters from former employers describing the nature of the instructor's former duties.)"]
[]
[null,"Two or more years' teaching experience in the intended field of instruction.  "]
[null,"(Embed resume and/or letters from former employers that verify teaching experience and qualification in the field.)"]
[]
[null,"Journeyman's license relevant to the intended field of instruction.  (Embed copy of license.)"]
[]
[null,"Demonstrated competency in the intended field of instruction. "]
[null,"(Embed documentation of competency.  Such documentation would include a copy of a widely accepted license or certificate such "]
[null,"as a CDL, a MCSE certificate, or a \"Train the Trainer\" certificate.)"]
[]
[null,"State certification as a Vocational Educator in the intended field of instruction.  (Embed copy of certificate.)"]
[]
[null,"Embed evidence to verify the instructor's qualifications:"]
[]
[]
[]
[]
[]
[]
[]
[null,null,"Qualifications of Instructor:",{"$f":"'PDE3003 Instructor List'!C55","v":{"$error":"#N/A"}},null,null,null,null,null,null,null,null,null,null,null,null,null,{"$f":"'PDE3003 Instructor List'!C1127","v":0}]
[]
[null,null,"Instructor's Home Address:"]
[]
[]
[]
[]
[null,null,null,"City, State and Zip Code"]
[]
[null,null,null,null,"Is this instructor currently employed by the school? "]
[]
[null,null,"School Director:"]
[null,null,null,"By placing my name above, I certify that, to the best of my knowledge, the information reported herein is true and accurate."]
[]
[null,null,"Date of Certification:"]
[]
["Names of courses to be taught by this instructor in the proposed new program:"]
[]
["Courses:"]
[]
[]
[]
[]
[]
[]
[]
[]
[]
["Courses taught by this instructor in OTHER programs at the school:",null,null,null,null,null,null,null,null,null,null,null,null,null,null,null,null,{"$f":"'PDE3003 Instructor List'!C1127","v":0}]
[]
["Courses:"]
[]
[]
[]
[]
[]
[]
[]
[]
[]
[]
[]
["Instructor's Education:"]
[null,null,null,null,null,null,null,null,"Award Received and Field of Study",null,null,null,null,"Dates Attended"]
[null,"Institution Attended",null,null,null,null,null,null,"(Examples: BS-Computer Science or ",null,null,null,null,"Month/Year",null,"Month/Year"]
[null,"School name, city, & state",null,null,null,null,"Graduated",null,"Diploma-Carpentry or Certificate-Word Processing)",null,null,null,null,"From",null,"To"]
[]
["College:"]
[]
["College:"]
[]
["Other:"]
[]
["Other:"]
[]
["High School:"]
[]
["Instructor's Program-Specific Teaching and/or Work Experience (list chronologically starting with the most recent employer, including this school):",null,null,null,null,null,null,null,null,null,null,null,null,null,null,null,null,{"$f":"'PDE3003 Instructor List'!C1127","v":0}]
[]
[null,null,null,null,null,null,null,null,null,null,null,"Dates of Employment"]
[null,"Employer",null,null,null,null,"Subject(s) Taught or Position Held",null,null,null,null,"Month/Year",null,"Month/Year"]
[null,"Employer name, city, & state",null,null,null,null,"(include supervisory experience)",null,null,null,null,"From",null,"To"]
[]
[]
[]
[]
[]
[]
[]
[]
[]
[]
[]
[]
[]
[]
[]
[]
[]
["Instructor's Verification of Qualifications:",null,null,null,null,null,null,null,null,null,null,null,null,null,null,null,null,{"$f":"'PDE3003 Instructor List'!C1127","v":0}]
[]
[null," The Board's regulations require instructors to have at least one of the qualifications listed below (22 Pa. Code Section 73.104).  "]
[null," Check all of the qualifications that apply, then attach the documentation needed for at least one of the qualifications you checked."]
[]
[null,"Baccalaureate degree or higher in the intended field of instruction.  (Embed copy of degree and/or transcript.)"]
[]
[null,"Two or more years' work experience in the intended field of instruction which is acceptable to the School Director."]
[null,"(Embed resume and/or letters from former employers describing the nature of the instructor's former duties.)"]
[]
[null,"Two or more years' teaching experience in the intended field of instruction.  "]
[null,"(Embed resume and/or letters from former employers that verify teaching experience and qualification in the field.)"]
[]
[null,"Journeyman's license relevant to the intended field of instruction.  (Embed copy of license.)"]
[]
[null,"Demonstrated competency in the intended field of instruction. "]
[null,"(Embed documentation of competency.  Such documentation would include a copy of a widely accepted license or certificate such "]
[null,"as a CDL, a MCSE certificate, or a \"Train the Trainer\" certificate.)"]
[]
[null,"State certification as a Vocational Educator in the intended field of instruction.  (Embed copy of certificate.)"]
[]
[null,"Embed evidence to verify the instructor's qualifications:"]
[]
[]
[]
[]
[]
[]
[]
[]
[null,null,"Qualifications of Instructor:",{"$f":"'PDE3003 Instructor List'!C56","v":{"$error":"#N/A"}},null,null,null,null,null,null,null,null,null,null,null,null,null,{"$f":"'PDE3003 Instructor List'!C1128","v":0}]
[]
[null,null,"Instructor's Home Address:"]
[]
[]
[]
[]
[null,null,null,"City, State and Zip Code"]
[]
[null,null,null,null,"Is this instructor currently employed by the school? "]
[]
[null,null,"School Director:"]
[null,null,null,"By placing my name above, I certify that, to the best of my knowledge, the information reported herein is true and accurate."]
[]
[null,null,"Date of Certification:"]
[]
["Names of courses to be taught by this instructor in the proposed new program:"]
[]
["Courses:"]
[]
[]
[]
[]
[]
[]
[]
[]
[]
["Courses taught by this instructor in OTHER programs at the school:",null,null,null,null,null,null,null,null,null,null,null,null,null,null,null,null,{"$f":"'PDE3003 Instructor List'!C1128","v":0}]
[]
["Courses:"]
[]
[]
[]
[]
[]
[]
[]
[]
[]
[]
[]
["Instructor's Education:"]
[null,null,null,null,null,null,null,null,"Award Received and Field of Study",null,null,null,null,"Dates Attended"]
[null,"Institution Attended",null,null,null,null,null,null,"(Examples: BS-Computer Science or ",null,null,null,null,"Month/Year",null,"Month/Year"]
[null,"School name, city, & state",null,null,null,null,"Graduated",null,"Diploma-Carpentry or Certificate-Word Processing)",null,null,null,null,"From",null,"To"]
[]
["College:"]
[]
["College:"]
[]
["Other:"]
[]
["Other:"]
[]
["High School:"]
[]
["Instructor's Program-Specific Teaching and/or Work Experience (list chronologically starting with the most recent employer, including this school):",null,null,null,null,null,null,null,null,null,null,null,null,null,null,null,null,{"$f":"'PDE3003 Instructor List'!C1128","v":0}]
[]
[null,null,null,null,null,null,null,null,null,null,null,"Dates of Employment"]
[null,"Employer",null,null,null,null,"Subject(s) Taught or Position Held",null,null,null,null,"Month/Year",null,"Month/Year"]
[null,"Employer name, city, & state",null,null,null,null,"(include supervisory experience)",null,null,null,null,"From",null,"To"]
[]
[]
[]
[]
[]
[]
[]
[]
[]
[]
[]
[]
[]
[]
[]
[]
[]
["Instructor's Verification of Qualifications:",null,null,null,null,null,null,null,null,null,null,null,null,null,null,null,null,{"$f":"'PDE3003 Instructor List'!C1128","v":0}]
[]
[null," The Board's regulations require instructors to have at least one of the qualifications listed below (22 Pa. Code Section 73.104).  "]
[null," Check all of the qualifications that apply, then attach the documentation needed for at least one of the qualifications you checked."]
[]
[null,"Baccalaureate degree or higher in the intended field of instruction.  (Embed copy of degree and/or transcript.)"]
[]
[null,"Two or more years' work experience in the intended field of instruction which is acceptable to the School Director."]
[null,"(Embed resume and/or letters from former employers describing the nature of the instructor's former duties.)"]
[]
[null,"Two or more years' teaching experience in the intended field of instruction.  "]
[null,"(Embed resume and/or letters from former employers that verify teaching experience and qualification in the field.)"]
[]
[null,"Journeyman's license relevant to the intended field of instruction.  (Embed copy of license.)"]
[]
[null,"Demonstrated competency in the intended field of instruction. "]
[null,"(Embed documentation of competency.  Such documentation would include a copy of a widely accepted license or certificate such "]
[null,"as a CDL, a MCSE certificate, or a \"Train the Trainer\" certificate.)"]
[]
[null,"State certification as a Vocational Educator in the intended field of instruction.  (Embed copy of certificate.)"]
[]
[null,"Embed evidence to verify the instructor's qualifications:"]
[]
[]
[]
[]
[]
[]
[]
[null,null,"Qualifications of Instructor:",{"$f":"'PDE3003 Instructor List'!C57","v":{"$error":"#N/A"}},null,null,null,null,null,null,null,null,null,null,null,null,null,{"$f":"'PDE3003 Instructor List'!C1665","v":0}]
[]
[null,null,"Instructor's Home Address:"]
[]
[]
[]
[]
[null,null,null,"City, State and Zip Code"]
[]
[null,null,null,null,"Is this instructor currently employed by the school? "]
[]
[null,null,"School Director:"]
[null,null,null,"By placing my name above, I certify that, to the best of my knowledge, the information reported herein is true and accurate."]
[]
[null,null,"Date of Certification:"]
[]
["Names of courses to be taught by this instructor in the proposed new program:"]
[]
["Courses:"]
[]
[]
[]
[]
[]
[]
[]
[]
[]
["Courses taught by this instructor in OTHER programs at the school:",null,null,null,null,null,null,null,null,null,null,null,null,null,null,null,null,{"$f":"'PDE3003 Instructor List'!C1665","v":0}]
[]
["Courses:"]
[]
[]
[]
[]
[]
[]
[]
[]
[]
[]
[]
["Instructor's Education:"]
[null,null,null,null,null,null,null,null,"Award Received and Field of Study",null,null,null,null,"Dates Attended"]
[null,"Institution Attended",null,null,null,null,null,null,"(Examples: BS-Computer Science or ",null,null,null,null,"Month/Year",null,"Month/Year"]
[null,"School name, city, & state",null,null,null,null,"Graduated",null,"Diploma-Carpentry or Certificate-Word Processing)",null,null,null,null,"From",null,"To"]
[]
["College:"]
[]
["College:"]
[]
["Other:"]
[]
["Other:"]
[]
["High School:"]
[]
["Instructor's Program-Specific Teaching and/or Work Experience (list chronologically starting with the most recent employer, including this school):",null,null,null,null,null,null,null,null,null,null,null,null,null,null,null,null,{"$f":"'PDE3003 Instructor List'!C1665","v":0}]
[]
[null,null,null,null,null,null,null,null,null,null,null,"Dates of Employment"]
[null,"Employer",null,null,null,null,"Subject(s) Taught or Position Held",null,null,null,null,"Month/Year",null,"Month/Year"]
[null,"Employer name, city, & state",null,null,null,null,"(include supervisory experience)",null,null,null,null,"From",null,"To"]
[]
[]
[]
[]
[]
[]
[]
[]
[]
[]
[]
[]
[]
[]
[]
[]
[]
["Instructor's Verification of Qualifications:",null,null,null,null,null,null,null,null,null,null,null,null,null,null,null,null,{"$f":"'PDE3003 Instructor List'!C1665","v":0}]
[]
[null," The Board's regulations require instructors to have at least one of the qualifications listed below (22 Pa. Code Section 73.104).  "]
[null," Check all of the qualifications that apply, then attach the documentation needed for at least one of the qualifications you checked."]
[]
[null,"Baccalaureate degree or higher in the intended field of instruction.  (Embed copy of degree and/or transcript.)"]
[]
[null,"Two or more years' work experience in the intended field of instruction which is acceptable to the School Director."]
[null,"(Embed resume and/or letters from former employers describing the nature of the instructor's former duties.)"]
[]
[null,"Two or more years' teaching experience in the intended field of instruction.  "]
[null,"(Embed resume and/or letters from former employers that verify teaching experience and qualification in the field.)"]
[]
[null,"Journeyman's license relevant to the intended field of instruction.  (Embed copy of license.)"]
[]
[null,"Demonstrated competency in the intended field of instruction. "]
[null,"(Embed documentation of competency.  Such documentation would include a copy of a widely accepted license or certificate such "]
[null,"as a CDL, a MCSE certificate, or a \"Train the Trainer\" certificate.)"]
[]
[null,"State certification as a Vocational Educator in the intended field of instruction.  (Embed copy of certificate.)"]
[]
[null,"Embed evidence to verify the instructor's qualifications:"]
[]
[]
[]
[]
[]
[]
[]
[null,null,"Qualifications of Instructor:",{"$f":"'PDE3003 Instructor List'!C58","v":{"$error":"#N/A"}},null,null,null,null,null,null,null,null,null,null,null,null,null,{"$f":"'PDE3003 Instructor List'!C1666","v":0}]
[]
[null,null,"Instructor's Home Address:"]
[]
[]
[]
[]
[null,null,null,"City, State and Zip Code"]
[]
[null,null,null,null,"Is this instructor currently employed by the school? "]
[]
[null,null,"School Director:"]
[null,null,null,"By placing my name above, I certify that, to the best of my knowledge, the information reported herein is true and accurate."]
[]
[null,null,"Date of Certification:"]
[]
["Names of courses to be taught by this instructor in the proposed new program:"]
[]
["Courses:"]
[]
[]
[]
[]
[]
[]
[]
[]
[]
["Courses taught by this instructor in OTHER programs at the school:",null,null,null,null,null,null,null,null,null,null,null,null,null,null,null,null,{"$f":"'PDE3003 Instructor List'!C1666","v":0}]
[]
["Courses:"]
[]
[]
[]
[]
[]
[]
[]
[]
[]
[]
[]
["Instructor's Education:"]
[null,null,null,null,null,null,null,null,"Award Received and Field of Study",null,null,null,null,"Dates Attended"]
[null,"Institution Attended",null,null,null,null,null,null,"(Examples: BS-Computer Science or ",null,null,null,null,"Month/Year",null,"Month/Year"]
[null,"School name, city, & state",null,null,null,null,"Graduated",null,"Diploma-Carpentry or Certificate-Word Processing)",null,null,null,null,"From",null,"To"]
[]
["College:"]
[]
["College:"]
[]
["Other:"]
[]
["Other:"]
[]
["High School:"]
[]
["Instructor's Program-Specific Teaching and/or Work Experience (list chronologically starting with the most recent employer, including this school):",null,null,null,null,null,null,null,null,null,null,null,null,null,null,null,null,{"$f":"'PDE3003 Instructor List'!C1666","v":0}]
[]
[null,null,null,null,null,null,null,null,null,null,null,"Dates of Employment"]
[null,"Employer",null,null,null,null,"Subject(s) Taught or Position Held",null,null,null,null,"Month/Year",null,"Month/Year"]
[null,"Employer name, city, & state",null,null,null,null,"(include supervisory experience)",null,null,null,null,"From",null,"To"]
[]
[]
[]
[]
[]
[]
[]
[]
[]
[]
[]
[]
[]
[]
[]
[]
[]
["Instructor's Verification of Qualifications:",null,null,null,null,null,null,null,null,null,null,null,null,null,null,null,null,{"$f":"'PDE3003 Instructor List'!C1666","v":0}]
[]
[null," The Board's regulations require instructors to have at least one of the qualifications listed below (22 Pa. Code Section 73.104).  "]
[null," Check all of the qualifications that apply, then attach the documentation needed for at least one of the qualifications you checked."]
[]
[null,"Baccalaureate degree or higher in the intended field of instruction.  (Embed copy of degree and/or transcript.)"]
[]
[null,"Two or more years' work experience in the intended field of instruction which is acceptable to the School Director."]
[null,"(Embed resume and/or letters from former employers describing the nature of the instructor's former duties.)"]
[]
[null,"Two or more years' teaching experience in the intended field of instruction.  "]
[null,"(Embed resume and/or letters from former employers that verify teaching experience and qualification in the field.)"]
[]
[null,"Journeyman's license relevant to the intended field of instruction.  (Embed copy of license.)"]
[]
[null,"Demonstrated competency in the intended field of instruction. "]
[null,"(Embed documentation of competency.  Such documentation would include a copy of a widely accepted license or certificate such "]
[null,"as a CDL, a MCSE certificate, or a \"Train the Trainer\" certificate.)"]
[]
[null,"State certification as a Vocational Educator in the intended field of instruction.  (Embed copy of certificate.)"]
[]
[null,"Embed evidence to verify the instructor's qualifications:"]
[]
[]
[]
[]
[]
[]
[]
[null,null,"Qualifications of Instructor:",{"$f":"'PDE3003 Instructor List'!C59","v":{"$error":"#N/A"}},null,null,null,null,null,null,null,null,null,null,null,null,null,{"$f":"'PDE3003 Instructor List'!C1667","v":0}]
[]
[null,null,"Instructor's Home Address:"]
[]
[]
[]
[]
[null,null,null,"City, State and Zip Code"]
[]
[null,null,null,null,"Is this instructor currently employed by the school? "]
[]
[null,null,"School Director:"]
[null,null,null,"By placing my name above, I certify that, to the best of my knowledge, the information reported herein is true and accurate."]
[]
[null,null,"Date of Certification:"]
[]
["Names of courses to be taught by this instructor in the proposed new program:"]
[]
["Courses:"]
[]
[]
[]
[]
[]
[]
[]
[]
[]
["Courses taught by this instructor in OTHER programs at the school:",null,null,null,null,null,null,null,null,null,null,null,null,null,null,null,null,{"$f":"'PDE3003 Instructor List'!C1667","v":0}]
[]
["Courses:"]
[]
[]
[]
[]
[]
[]
[]
[]
[]
[]
[]
["Instructor's Education:"]
[null,null,null,null,null,null,null,null,"Award Received and Field of Study",null,null,null,null,"Dates Attended"]
[null,"Institution Attended",null,null,null,null,null,null,"(Examples: BS-Computer Science or ",null,null,null,null,"Month/Year",null,"Month/Year"]
[null,"School name, city, & state",null,null,null,null,"Graduated",null,"Diploma-Carpentry or Certificate-Word Processing)",null,null,null,null,"From",null,"To"]
[]
["College:"]
[]
["College:"]
[]
["Other:"]
[]
["Other:"]
[]
["High School:"]
[]
["Instructor's Program-Specific Teaching and/or Work Experience (list chronologically starting with the most recent employer, including this school):",null,null,null,null,null,null,null,null,null,null,null,null,null,null,null,null,{"$f":"'PDE3003 Instructor List'!C1667","v":0}]
[]
[null,null,null,null,null,null,null,null,null,null,null,"Dates of Employment"]
[null,"Employer",null,null,null,null,"Subject(s) Taught or Position Held",null,null,null,null,"Month/Year",null,"Month/Year"]
[null,"Employer name, city, & state",null,null,null,null,"(include supervisory experience)",null,null,null,null,"From",null,"To"]
[]
[]
[]
[]
[]
[]
[]
[]
[]
[]
[]
[]
[]
[]
[]
[]
[]
["Instructor's Verification of Qualifications:",null,null,null,null,null,null,null,null,null,null,null,null,null,null,null,null,{"$f":"'PDE3003 Instructor List'!C1667","v":0}]
[]
[null," The Board's regulations require instructors to have at least one of the qualifications listed below (22 Pa. Code Section 73.104).  "]
[null," Check all of the qualifications that apply, then attach the documentation needed for at least one of the qualifications you checked."]
[]
[null,"Baccalaureate degree or higher in the intended field of instruction.  (Embed copy of degree and/or transcript.)"]
[]
[null,"Two or more years' work experience in the intended field of instruction which is acceptable to the School Director."]
[null,"(Embed resume and/or letters from former employers describing the nature of the instructor's former duties.)"]
[]
[null,"Two or more years' teaching experience in the intended field of instruction.  "]
[null,"(Embed resume and/or letters from former employers that verify teaching experience and qualification in the field.)"]
[]
[null,"Journeyman's license relevant to the intended field of instruction.  (Embed copy of license.)"]
[]
[null,"Demonstrated competency in the intended field of instruction. "]
[null,"(Embed documentation of competency.  Such documentation would include a copy of a widely accepted license or certificate such "]
[null,"as a CDL, a MCSE certificate, or a \"Train the Trainer\" certificate.)"]
[]
[null,"State certification as a Vocational Educator in the intended field of instruction.  (Embed copy of certificate.)"]
[]
[null,"Embed evidence to verify the instructor's qualifications:"]
[]
[]
[]
[]
[]
[]
[]
[null,null,"Qualifications of Instructor:",{"$f":"'PDE3003 Instructor List'!C60","v":{"$error":"#N/A"}},null,null,null,null,null,null,null,null,null,null,null,null,null,{"$f":"'PDE3003 Instructor List'!C1668","v":0}]
[]
[null,null,"Instructor's Home Address:"]
[]
[]
[]
[]
[null,null,null,"City, State and Zip Code"]
[]
[null,null,null,null,"Is this instructor currently employed by the school? "]
[]
[null,null,"School Director:"]
[null,null,null,"By placing my name above, I certify that, to the best of my knowledge, the information reported herein is true and accurate."]
[]
[null,null,"Date of Certification:"]
[]
["Names of courses to be taught by this instructor in the proposed new program:"]
[]
["Courses:"]
[]
[]
[]
[]
[]
[]
[]
[]
[]
["Courses taught by this instructor in OTHER programs at the school:",null,null,null,null,null,null,null,null,null,null,null,null,null,null,null,null,{"$f":"'PDE3003 Instructor List'!C1668","v":0}]
[]
["Courses:"]
[]
[]
[]
[]
[]
[]
[]
[]
[]
[]
[]
["Instructor's Education:"]
[null,null,null,null,null,null,null,null,"Award Received and Field of Study",null,null,null,null,"Dates Attended"]
[null,"Institution Attended",null,null,null,null,null,null,"(Examples: BS-Computer Science or ",null,null,null,null,"Month/Year",null,"Month/Year"]
[null,"School name, city, & state",null,null,null,null,"Graduated",null,"Diploma-Carpentry or Certificate-Word Processing)",null,null,null,null,"From",null,"To"]
[]
["College:"]
[]
["College:"]
[]
["Other:"]
[]
["Other:"]
[]
["High School:"]
[]
["Instructor's Program-Specific Teaching and/or Work Experience (list chronologically starting with the most recent employer, including this school):",null,null,null,null,null,null,null,null,null,null,null,null,null,null,null,null,{"$f":"'PDE3003 Instructor List'!C1668","v":0}]
[]
[null,null,null,null,null,null,null,null,null,null,null,"Dates of Employment"]
[null,"Employer",null,null,null,null,"Subject(s) Taught or Position Held",null,null,null,null,"Month/Year",null,"Month/Year"]
[null,"Employer name, city, & state",null,null,null,null,"(include supervisory experience)",null,null,null,null,"From",null,"To"]
[]
[]
[]
[]
[]
[]
[]
[]
[]
[]
[]
[]
[]
[]
[]
[]
[]
["Instructor's Verification of Qualifications:",null,null,null,null,null,null,null,null,null,null,null,null,null,null,null,null,{"$f":"'PDE3003 Instructor List'!C1668","v":0}]
[]
[null," The Board's regulations require instructors to have at least one of the qualifications listed below (22 Pa. Code Section 73.104).  "]
[null," Check all of the qualifications that apply, then attach the documentation needed for at least one of the qualifications you checked."]
[]
[null,"Baccalaureate degree or higher in the intended field of instruction.  (Embed copy of degree and/or transcript.)"]
[]
[null,"Two or more years' work experience in the intended field of instruction which is acceptable to the School Director."]
[null,"(Embed resume and/or letters from former employers describing the nature of the instructor's former duties.)"]
[]
[null,"Two or more years' teaching experience in the intended field of instruction.  "]
[null,"(Embed resume and/or letters from former employers that verify teaching experience and qualification in the field.)"]
[]
[null,"Journeyman's license relevant to the intended field of instruction.  (Embed copy of license.)"]
[]
[null,"Demonstrated competency in the intended field of instruction. "]
[null,"(Embed documentation of competency.  Such documentation would include a copy of a widely accepted license or certificate such "]
[null,"as a CDL, a MCSE certificate, or a \"Train the Trainer\" certificate.)"]
[]
[null,"State certification as a Vocational Educator in the intended field of instruction.  (Embed copy of certificate.)"]
[]
[null,"Embed evidence to verify the instructor's qualifications:"]
[]
[]
[]
[]
[]
[]
[]
[]
[null,null,"Qualifications of Instructor:",{"$f":"'PDE3003 Instructor List'!C61","v":{"$error":"#N/A"}},null,null,null,null,null,null,null,null,null,null,null,null,null,{"$f":"'PDE3003 Instructor List'!C1669","v":0}]
[]
[null,null,"Instructor's Home Address:"]
[]
[]
[]
[]
[null,null,null,"City, State and Zip Code"]
[]
[null,null,null,null,"Is this instructor currently employed by the school? "]
[]
[null,null,"School Director:"]
[null,null,null,"By placing my name above, I certify that, to the best of my knowledge, the information reported herein is true and accurate."]
[]
[null,null,"Date of Certification:"]
[]
["Names of courses to be taught by this instructor in the proposed new program:"]
[]
["Courses:"]
[]
[]
[]
[]
[]
[]
[]
[]
[]
["Courses taught by this instructor in OTHER programs at the school:",null,null,null,null,null,null,null,null,null,null,null,null,null,null,null,null,{"$f":"'PDE3003 Instructor List'!C1669","v":0}]
[]
["Courses:"]
[]
[]
[]
[]
[]
[]
[]
[]
[]
[]
[]
["Instructor's Education:"]
[null,null,null,null,null,null,null,null,"Award Received and Field of Study",null,null,null,null,"Dates Attended"]
[null,"Institution Attended",null,null,null,null,null,null,"(Examples: BS-Computer Science or ",null,null,null,null,"Month/Year",null,"Month/Year"]
[null,"School name, city, & state",null,null,null,null,"Graduated",null,"Diploma-Carpentry or Certificate-Word Processing)",null,null,null,null,"From",null,"To"]
[]
["College:"]
[]
["College:"]
[]
["Other:"]
[]
["Other:"]
[]
["High School:"]
[]
["Instructor's Program-Specific Teaching and/or Work Experience (list chronologically starting with the most recent employer, including this school):",null,null,null,null,null,null,null,null,null,null,null,null,null,null,null,null,{"$f":"'PDE3003 Instructor List'!C1669","v":0}]
[]
[null,null,null,null,null,null,null,null,null,null,null,"Dates of Employment"]
[null,"Employer",null,null,null,null,"Subject(s) Taught or Position Held",null,null,null,null,"Month/Year",null,"Month/Year"]
[null,"Employer name, city, & state",null,null,null,null,"(include supervisory experience)",null,null,null,null,"From",null,"To"]
[]
[]
[]
[]
[]
[]
[]
[]
[]
[]
[]
[]
[]
[]
[]
[]
[]
["Instructor's Verification of Qualifications:",null,null,null,null,null,null,null,null,null,null,null,null,null,null,null,null,{"$f":"'PDE3003 Instructor List'!C1669","v":0}]
[]
[null," The Board's regulations require instructors to have at least one of the qualifications listed below (22 Pa. Code Section 73.104).  "]
[null," Check all of the qualifications that apply, then attach the documentation needed for at least one of the qualifications you checked."]
[]
[null,"Baccalaureate degree or higher in the intended field of instruction.  (Embed copy of degree and/or transcript.)"]
[]
[null,"Two or more years' work experience in the intended field of instruction which is acceptable to the School Director."]
[null,"(Embed resume and/or letters from former employers describing the nature of the instructor's former duties.)"]
[]
[null,"Two or more years' teaching experience in the intended field of instruction.  "]
[null,"(Embed resume and/or letters from former employers that verify teaching experience and qualification in the field.)"]
[]
[null,"Journeyman's license relevant to the intended field of instruction.  (Embed copy of license.)"]
[]
[null,"Demonstrated competency in the intended field of instruction. "]
[null,"(Embed documentation of competency.  Such documentation would include a copy of a widely accepted license or certificate such "]
[null,"as a CDL, a MCSE certificate, or a \"Train the Trainer\" certificate.)"]
[]
[null,"State certification as a Vocational Educator in the intended field of instruction.  (Embed copy of certificate.)"]
[]
[null,"Embed evidence to verify the instructor's qualifications:"]
[]
[]
[]
[]
[]
[]
[]
[null,null,"Qualifications of Instructor:",{"$f":"'PDE3003 Instructor List'!C62","v":{"$error":"#N/A"}},null,null,null,null,null,null,null,null,null,null,null,null,null,{"$f":"'PDE3003 Instructor List'!C2206","v":0}]
[]
[null,null,"Instructor's Home Address:"]
[]
[]
[]
[]
[null,null,null,"City, State and Zip Code"]
[]
[null,null,null,null,"Is this instructor currently employed by the school? "]
[]
[null,null,"School Director:"]
[null,null,null,"By placing my name above, I certify that, to the best of my knowledge, the information reported herein is true and accurate."]
[]
[null,null,"Date of Certification:"]
[]
["Names of courses to be taught by this instructor in the proposed new program:"]
[]
["Courses:"]
[]
[]
[]
[]
[]
[]
[]
[]
[]
["Courses taught by this instructor in OTHER programs at the school:",null,null,null,null,null,null,null,null,null,null,null,null,null,null,null,null,{"$f":"'PDE3003 Instructor List'!C2206","v":0}]
[]
["Courses:"]
[]
[]
[]
[]
[]
[]
[]
[]
[]
[]
[]
["Instructor's Education:"]
[null,null,null,null,null,null,null,null,"Award Received and Field of Study",null,null,null,null,"Dates Attended"]
[null,"Institution Attended",null,null,null,null,null,null,"(Examples: BS-Computer Science or ",null,null,null,null,"Month/Year",null,"Month/Year"]
[null,"School name, city, & state",null,null,null,null,"Graduated",null,"Diploma-Carpentry or Certificate-Word Processing)",null,null,null,null,"From",null,"To"]
[]
["College:"]
[]
["College:"]
[]
["Other:"]
[]
["Other:"]
[]
["High School:"]
[]
["Instructor's Program-Specific Teaching and/or Work Experience (list chronologically starting with the most recent employer, including this school):",null,null,null,null,null,null,null,null,null,null,null,null,null,null,null,null,{"$f":"'PDE3003 Instructor List'!C2206","v":0}]
[]
[null,null,null,null,null,null,null,null,null,null,null,"Dates of Employment"]
[null,"Employer",null,null,null,null,"Subject(s) Taught or Position Held",null,null,null,null,"Month/Year",null,"Month/Year"]
[null,"Employer name, city, & state",null,null,null,null,"(include supervisory experience)",null,null,null,null,"From",null,"To"]
[]
[]
[]
[]
[]
[]
[]
[]
[]
[]
[]
[]
[]
[]
[]
[]
[]
["Instructor's Verification of Qualifications:",null,null,null,null,null,null,null,null,null,null,null,null,null,null,null,null,{"$f":"'PDE3003 Instructor List'!C2206","v":0}]
[]
[null," The Board's regulations require instructors to have at least one of the qualifications listed below (22 Pa. Code Section 73.104).  "]
[null," Check all of the qualifications that apply, then attach the documentation needed for at least one of the qualifications you checked."]
[]
[null,"Baccalaureate degree or higher in the intended field of instruction.  (Embed copy of degree and/or transcript.)"]
[]
[null,"Two or more years' work experience in the intended field of instruction which is acceptable to the School Director."]
[null,"(Embed resume and/or letters from former employers describing the nature of the instructor's former duties.)"]
[]
[null,"Two or more years' teaching experience in the intended field of instruction.  "]
[null,"(Embed resume and/or letters from former employers that verify teaching experience and qualification in the field.)"]
[]
[null,"Journeyman's license relevant to the intended field of instruction.  (Embed copy of license.)"]
[]
[null,"Demonstrated competency in the intended field of instruction. "]
[null,"(Embed documentation of competency.  Such documentation would include a copy of a widely accepted license or certificate such "]
[null,"as a CDL, a MCSE certificate, or a \"Train the Trainer\" certificate.)"]
[]
[null,"State certification as a Vocational Educator in the intended field of instruction.  (Embed copy of certificate.)"]
[]
[null,"Embed evidence to verify the instructor's qualifications:"]
[]
[]
[]
[]
[]
[]
[]
[null,null,"Qualifications of Instructor:",{"$f":"'PDE3003 Instructor List'!C63","v":{"$error":"#N/A"}},null,null,null,null,null,null,null,null,null,null,null,null,null,{"$f":"'PDE3003 Instructor List'!C2207","v":0}]
[]
[null,null,"Instructor's Home Address:"]
[]
[]
[]
[]
[null,null,null,"City, State and Zip Code"]
[]
[null,null,null,null,"Is this instructor currently employed by the school? "]
[]
[null,null,"School Director:"]
[null,null,null,"By placing my name above, I certify that, to the best of my knowledge, the information reported herein is true and accurate."]
[]
[null,null,"Date of Certification:"]
[]
["Names of courses to be taught by this instructor in the proposed new program:"]
[]
["Courses:"]
[]
[]
[]
[]
[]
[]
[]
[]
[]
["Courses taught by this instructor in OTHER programs at the school:",null,null,null,null,null,null,null,null,null,null,null,null,null,null,null,null,{"$f":"'PDE3003 Instructor List'!C2207","v":0}]
[]
["Courses:"]
[]
[]
[]
[]
[]
[]
[]
[]
[]
[]
[]
["Instructor's Education:"]
[null,null,null,null,null,null,null,null,"Award Received and Field of Study",null,null,null,null,"Dates Attended"]
[null,"Institution Attended",null,null,null,null,null,null,"(Examples: BS-Computer Science or ",null,null,null,null,"Month/Year",null,"Month/Year"]
[null,"School name, city, & state",null,null,null,null,"Graduated",null,"Diploma-Carpentry or Certificate-Word Processing)",null,null,null,null,"From",null,"To"]
[]
["College:"]
[]
["College:"]
[]
["Other:"]
[]
["Other:"]
[]
["High School:"]
[]
["Instructor's Program-Specific Teaching and/or Work Experience (list chronologically starting with the most recent employer, including this school):",null,null,null,null,null,null,null,null,null,null,null,null,null,null,null,null,{"$f":"'PDE3003 Instructor List'!C2207","v":0}]
[]
[null,null,null,null,null,null,null,null,null,null,null,"Dates of Employment"]
[null,"Employer",null,null,null,null,"Subject(s) Taught or Position Held",null,null,null,null,"Month/Year",null,"Month/Year"]
[null,"Employer name, city, & state",null,null,null,null,"(include supervisory experience)",null,null,null,null,"From",null,"To"]
[]
[]
[]
[]
[]
[]
[]
[]
[]
[]
[]
[]
[]
[]
[]
[]
[]
["Instructor's Verification of Qualifications:",null,null,null,null,null,null,null,null,null,null,null,null,null,null,null,null,{"$f":"'PDE3003 Instructor List'!C2207","v":0}]
[]
[null," The Board's regulations require instructors to have at least one of the qualifications listed below (22 Pa. Code Section 73.104).  "]
[null," Check all of the qualifications that apply, then attach the documentation needed for at least one of the qualifications you checked."]
[]
[null,"Baccalaureate degree or higher in the intended field of instruction.  (Embed copy of degree and/or transcript.)"]
[]
[null,"Two or more years' work experience in the intended field of instruction which is acceptable to the School Director."]
[null,"(Embed resume and/or letters from former employers describing the nature of the instructor's former duties.)"]
[]
[null,"Two or more years' teaching experience in the intended field of instruction.  "]
[null,"(Embed resume and/or letters from former employers that verify teaching experience and qualification in the field.)"]
[]
[null,"Journeyman's license relevant to the intended field of instruction.  (Embed copy of license.)"]
[]
[null,"Demonstrated competency in the intended field of instruction. "]
[null,"(Embed documentation of competency.  Such documentation would include a copy of a widely accepted license or certificate such "]
[null,"as a CDL, a MCSE certificate, or a \"Train the Trainer\" certificate.)"]
[]
[null,"State certification as a Vocational Educator in the intended field of instruction.  (Embed copy of certificate.)"]
[]
[null,"Embed evidence to verify the instructor's qualifications:"]
[]
[]
[]
[]
[]
[]
[]
[null,null,"Qualifications of Instructor:",{"$f":"'PDE3003 Instructor List'!C64","v":{"$error":"#N/A"}},null,null,null,null,null,null,null,null,null,null,null,null,null,{"$f":"'PDE3003 Instructor List'!C2208","v":0}]
[]
[null,null,"Instructor's Home Address:"]
[]
[]
[]
[]
[null,null,null,"City, State and Zip Code"]
[]
[null,null,null,null,"Is this instructor currently employed by the school? "]
[]
[null,null,"School Director:"]
[null,null,null,"By placing my name above, I certify that, to the best of my knowledge, the information reported herein is true and accurate."]
[]
[null,null,"Date of Certification:"]
[]
["Names of courses to be taught by this instructor in the proposed new program:"]
[]
["Courses:"]
[]
[]
[]
[]
[]
[]
[]
[]
[]
["Courses taught by this instructor in OTHER programs at the school:",null,null,null,null,null,null,null,null,null,null,null,null,null,null,null,null,{"$f":"'PDE3003 Instructor List'!C2208","v":0}]
[]
["Courses:"]
[]
[]
[]
[]
[]
[]
[]
[]
[]
[]
[]
["Instructor's Education:"]
[null,null,null,null,null,null,null,null,"Award Received and Field of Study",null,null,null,null,"Dates Attended"]
[null,"Institution Attended",null,null,null,null,null,null,"(Examples: BS-Computer Science or ",null,null,null,null,"Month/Year",null,"Month/Year"]
[null,"School name, city, & state",null,null,null,null,"Graduated",null,"Diploma-Carpentry or Certificate-Word Processing)",null,null,null,null,"From",null,"To"]
[]
["College:"]
[]
["College:"]
[]
["Other:"]
[]
["Other:"]
[]
["High School:"]
[]
["Instructor's Program-Specific Teaching and/or Work Experience (list chronologically starting with the most recent employer, including this school):",null,null,null,null,null,null,null,null,null,null,null,null,null,null,null,null,{"$f":"'PDE3003 Instructor List'!C2208","v":0}]
[]
[null,null,null,null,null,null,null,null,null,null,null,"Dates of Employment"]
[null,"Employer",null,null,null,null,"Subject(s) Taught or Position Held",null,null,null,null,"Month/Year",null,"Month/Year"]
[null,"Employer name, city, & state",null,null,null,null,"(include supervisory experience)",null,null,null,null,"From",null,"To"]
[]
[]
[]
[]
[]
[]
[]
[]
[]
[]
[]
[]
[]
[]
[]
[]
[]
["Instructor's Verification of Qualifications:",null,null,null,null,null,null,null,null,null,null,null,null,null,null,null,null,{"$f":"'PDE3003 Instructor List'!C2208","v":0}]
[]
[null," The Board's regulations require instructors to have at least one of the qualifications listed below (22 Pa. Code Section 73.104).  "]
[null," Check all of the qualifications that apply, then attach the documentation needed for at least one of the qualifications you checked."]
[]
[null,"Baccalaureate degree or higher in the intended field of instruction.  (Embed copy of degree and/or transcript.)"]
[]
[null,"Two or more years' work experience in the intended field of instruction which is acceptable to the School Director."]
[null,"(Embed resume and/or letters from former employers describing the nature of the instructor's former duties.)"]
[]
[null,"Two or more years' teaching experience in the intended field of instruction.  "]
[null,"(Embed resume and/or letters from former employers that verify teaching experience and qualification in the field.)"]
[]
[null,"Journeyman's license relevant to the intended field of instruction.  (Embed copy of license.)"]
[]
[null,"Demonstrated competency in the intended field of instruction. "]
[null,"(Embed documentation of competency.  Such documentation would include a copy of a widely accepted license or certificate such "]
[null,"as a CDL, a MCSE certificate, or a \"Train the Trainer\" certificate.)"]
[]
[null,"State certification as a Vocational Educator in the intended field of instruction.  (Embed copy of certificate.)"]
[]
[null,"Embed evidence to verify the instructor's qualifications:"]
[]
[]
[]
[]
[]
[]
[]
[null,null,"Qualifications of Instructor:",{"$f":"'PDE3003 Instructor List'!C65","v":{"$error":"#N/A"}},null,null,null,null,null,null,null,null,null,null,null,null,null,{"$f":"'PDE3003 Instructor List'!C2209","v":0}]
[]
[null,null,"Instructor's Home Address:"]
[]
[]
[]
[]
[null,null,null,"City, State and Zip Code"]
[]
[null,null,null,null,"Is this instructor currently employed by the school? "]
[]
[null,null,"School Director:"]
[null,null,null,"By placing my name above, I certify that, to the best of my knowledge, the information reported herein is true and accurate."]
[]
[null,null,"Date of Certification:"]
[]
["Names of courses to be taught by this instructor in the proposed new program:"]
[]
["Courses:"]
[]
[]
[]
[]
[]
[]
[]
[]
[]
["Courses taught by this instructor in OTHER programs at the school:",null,null,null,null,null,null,null,null,null,null,null,null,null,null,null,null,{"$f":"'PDE3003 Instructor List'!C2209","v":0}]
[]
["Courses:"]
[]
[]
[]
[]
[]
[]
[]
[]
[]
[]
[]
["Instructor's Education:"]
[null,null,null,null,null,null,null,null,"Award Received and Field of Study",null,null,null,null,"Dates Attended"]
[null,"Institution Attended",null,null,null,null,null,null,"(Examples: BS-Computer Science or ",null,null,null,null,"Month/Year",null,"Month/Year"]
[null,"School name, city, & state",null,null,null,null,"Graduated",null,"Diploma-Carpentry or Certificate-Word Processing)",null,null,null,null,"From",null,"To"]
[]
["College:"]
[]
["College:"]
[]
["Other:"]
[]
["Other:"]
[]
["High School:"]
[]
["Instructor's Program-Specific Teaching and/or Work Experience (list chronologically starting with the most recent employer, including this school):",null,null,null,null,null,null,null,null,null,null,null,null,null,null,null,null,{"$f":"'PDE3003 Instructor List'!C2209","v":0}]
[]
[null,null,null,null,null,null,null,null,null,null,null,"Dates of Employment"]
[null,"Employer",null,null,null,null,"Subject(s) Taught or Position Held",null,null,null,null,"Month/Year",null,"Month/Year"]
[null,"Employer name, city, & state",null,null,null,null,"(include supervisory experience)",null,null,null,null,"From",null,"To"]
[]
[]
[]
[]
[]
[]
[]
[]
[]
[]
[]
[]
[]
[]
[]
[]
[]
["Instructor's Verification of Qualifications:",null,null,null,null,null,null,null,null,null,null,null,null,null,null,null,null,{"$f":"'PDE3003 Instructor List'!C2209","v":0}]
[]
[null," The Board's regulations require instructors to have at least one of the qualifications listed below (22 Pa. Code Section 73.104).  "]
[null," Check all of the qualifications that apply, then attach the documentation needed for at least one of the qualifications you checked."]
[]
[null,"Baccalaureate degree or higher in the intended field of instruction.  (Embed copy of degree and/or transcript.)"]
[]
[null,"Two or more years' work experience in the intended field of instruction which is acceptable to the School Director."]
[null,"(Embed resume and/or letters from former employers describing the nature of the instructor's former duties.)"]
[]
[null,"Two or more years' teaching experience in the intended field of instruction.  "]
[null,"(Embed resume and/or letters from former employers that verify teaching experience and qualification in the field.)"]
[]
[null,"Journeyman's license relevant to the intended field of instruction.  (Embed copy of license.)"]
[]
[null,"Demonstrated competency in the intended field of instruction. "]
[null,"(Embed documentation of competency.  Such documentation would include a copy of a widely accepted license or certificate such "]
[null,"as a CDL, a MCSE certificate, or a \"Train the Trainer\" certificate.)"]
[]
[null,"State certification as a Vocational Educator in the intended field of instruction.  (Embed copy of certificate.)"]
[]
[null,"Embed evidence to verify the instructor's qualifications:"]
[]
[]
[]
[]
[]
[]
[]
[]
[null,null,"Qualifications of Instructor:",{"$f":"'PDE3003 Instructor List'!C66","v":{"$error":"#N/A"}},null,null,null,null,null,null,null,null,null,null,null,null,null,{"$f":"'PDE3003 Instructor List'!C2210","v":0}]
[]
[null,null,"Instructor's Home Address:"]
[]
[]
[]
[]
[null,null,null,"City, State and Zip Code"]
[]
[null,null,null,null,"Is this instructor currently employed by the school? "]
[]
[null,null,"School Director:"]
[null,null,null,"By placing my name above, I certify that, to the best of my knowledge, the information reported herein is true and accurate."]
[]
[null,null,"Date of Certification:"]
[]
["Names of courses to be taught by this instructor in the proposed new program:"]
[]
["Courses:"]
[]
[]
[]
[]
[]
[]
[]
[]
[]
["Courses taught by this instructor in OTHER programs at the school:",null,null,null,null,null,null,null,null,null,null,null,null,null,null,null,null,{"$f":"'PDE3003 Instructor List'!C2210","v":0}]
[]
["Courses:"]
[]
[]
[]
[]
[]
[]
[]
[]
[]
[]
[]
["Instructor's Education:"]
[null,null,null,null,null,null,null,null,"Award Received and Field of Study",null,null,null,null,"Dates Attended"]
[null,"Institution Attended",null,null,null,null,null,null,"(Examples: BS-Computer Science or ",null,null,null,null,"Month/Year",null,"Month/Year"]
[null,"School name, city, & state",null,null,null,null,"Graduated",null,"Diploma-Carpentry or Certificate-Word Processing)",null,null,null,null,"From",null,"To"]
[]
["College:"]
[]
["College:"]
[]
["Other:"]
[]
["Other:"]
[]
["High School:"]
[]
["Instructor's Program-Specific Teaching and/or Work Experience (list chronologically starting with the most recent employer, including this school):",null,null,null,null,null,null,null,null,null,null,null,null,null,null,null,null,{"$f":"'PDE3003 Instructor List'!C2210","v":0}]
[]
[null,null,null,null,null,null,null,null,null,null,null,"Dates of Employment"]
[null,"Employer",null,null,null,null,"Subject(s) Taught or Position Held",null,null,null,null,"Month/Year",null,"Month/Year"]
[null,"Employer name, city, & state",null,null,null,null,"(include supervisory experience)",null,null,null,null,"From",null,"To"]
[]
[]
[]
[]
[]
[]
[]
[]
[]
[]
[]
[]
[]
[]
[]
[]
[]
["Instructor's Verification of Qualifications:",null,null,null,null,null,null,null,null,null,null,null,null,null,null,null,null,{"$f":"'PDE3003 Instructor List'!C2210","v":0}]
[]
[null," The Board's regulations require instructors to have at least one of the qualifications listed below (22 Pa. Code Section 73.104).  "]
[null," Check all of the qualifications that apply, then attach the documentation needed for at least one of the qualifications you checked."]
[]
[null,"Baccalaureate degree or higher in the intended field of instruction.  (Embed copy of degree and/or transcript.)"]
[]
[null,"Two or more years' work experience in the intended field of instruction which is acceptable to the School Director."]
[null,"(Embed resume and/or letters from former employers describing the nature of the instructor's former duties.)"]
[]
[null,"Two or more years' teaching experience in the intended field of instruction.  "]
[null,"(Embed resume and/or letters from former employers that verify teaching experience and qualification in the field.)"]
[]
[null,"Journeyman's license relevant to the intended field of instruction.  (Embed copy of license.)"]
[]
[null,"Demonstrated competency in the intended field of instruction. "]
[null,"(Embed documentation of competency.  Such documentation would include a copy of a widely accepted license or certificate such "]
[null,"as a CDL, a MCSE certificate, or a \"Train the Trainer\" certificate.)"]
[]
[null,"State certification as a Vocational Educator in the intended field of instruction.  (Embed copy of certificate.)"]
[]
[null,"Embed evidence to verify the instructor's qualifications:"]
[]
[]
[]
[]
[]
[]
[]
["Staffing plans for courses which instructors have not yet been hired:"]
[]
[null,"The Board prefers to see a PDE-279 form for an instructor for every course in the program.  However, the Board recognizes that this is "]
[null,"not always possible. If there are courses in the program for which an instructor has not yet been hired, please indicate those courses.  "]
[null,"Please include only courses which will not be immediately offered at the start of the program.  Provide a staffing plan or a detailed job "]
[null,"description and at least 3 resumes of qualified candidates for each course."]
[]
[null,"Embed staffing plan:"]
[]
[]
[]
[]
[]
[]
[]
[]
["OR"]
[]
[null,"Detailed job description and at least 3 resumes of qualified candidates for each course:"]
[]
[null,"Course:"]
[]
[null,"Embed job description:"]
[]
[]
[]
[]
[]
[]
[]
[]
[null,"Embed resumes of at least 3 qualified candidates for this course:"]
[]
[]
[]
[]
[]
[]
[]
[]
[null,"Detailed job description and at least 3 resumes of qualified candidates for each course:"]
[]
[null,"Course:"]
[]
[null,"Embed job description:"]
[]
[]
[]
[]
[]
[]
[]
[]
[null,"Embed resumes of at least 3 qualified candidates for this course:"]
[]
[]
[]
[]
[]
[]
[]
[]
[null,"Detailed job description and at least 3 resumes of qualified candidates for each course:"]
[]
[null,"Course:"]
[]
[null,"Embed job description:"]
[]
[]
[]
[]
[]
[]
[]
[]
[null,"Embed resumes of at least 3 qualified candidates for this course:"]
[]
[]
[]
[]
[]
[]
[]
[]
[null,"Detailed job description and at least 3 resumes of qualified candidates for each course:"]
[]
[null,"Course:"]
[]
[null,"Embed job description:"]
[]
[]
[]
[]
[]
[]
[]
[]
[null,"Embed resumes of at least 3 qualified candidates for this course:"]
[]
[]
[]
[]
[]
[]
[]
[]
[null,"Detailed job description and at least 3 resumes of qualified candidates for each course:"]
[]
[null,"Course:"]
[]
[null,"Embed job description:"]
[]
[]
[]
[]
[]
[]
[]
[]
[null,"Embed resumes of at least 3 qualified candidates for this course:"]
[]
[]
[]
[]
[]
[]
[]
[]
[null,"Detailed job description and at least 3 resumes of qualified candidates for each course:"]
[]
[null,"Course:"]
[]
[null,"Embed job description:"]
[]
[]
[]
[]
[]
[]
[]
[]
[null,"Embed resumes of at least 3 qualified candidates for this course:"]
[]
[]
[]
[]
[]
[]
[]
[]
[null,"Detailed job description and at least 3 resumes of qualified candidates for each course:"]
[]
[null,"Course:"]
[]
[null,"Embed job description:"]
[]
[]
[]
[]
[]
[]
[]
[]
[null,"Embed resumes of at least 3 qualified candidates for this course:"]
[]
[]
[]
[]
[]
[]
[]
[]
[null,"Detailed job description and at least 3 resumes of qualified candidates for each course:"]
[]
[null,"Course:"]
[]
[null,"Embed job description:"]
[]
[]
[]
[]
[]
[]
[]
[]
[null,"Embed resumes of at least 3 qualified candidates for this course:"]
[]
[]
[]
[]
[]
[]
[]
[]
[null,"Detailed job description and at least 3 resumes of qualified candidates for each course:"]
[]
[null,"Course:"]
[]
[null,"Embed job description:"]
[]
[]
[]
[]
[]
[]
[]
[]
[null,"Embed resumes of at least 3 qualified candidates for this course:"]
[]
[]
[]
[]
[]
[]
[]
[]
[null,"Detailed job description and at least 3 resumes of qualified candidates for each course:"]
[]
[null,"Course:"]
[]
[null,"Embed job description:"]
[]
[]
[]
[]
[]
[]
[]
[]
[null,"Embed resumes of at least 3 qualified candidates for this course:"]
[]
[]
[]
[]
[]
[]
[]
[]
["END OF PDE279 INSTRUCTOR QUALIFICATIONS - PROCEED TO NEXT WORKSHEET TAB"]

{"sheet":"Job Opportunities","index":7,"n_rows":694,"n_cols":13,"rows_kept":694,"cut":false,"hidden":false,"merged":[[17,6,17,16],[19,6,19,16],[21,6,21,16],[23,6,23,16],[650,4,655,5],[650,1,655,2],[35,5,35,9],[37,5,37,9],[39,5,39,9],[41,5,41,9],[44,1,44,5],[48,1,53,2],[188,1,193,2],[195,5,195,9],[197,5,197,9],[199,5,199,9],[161,5,161,9],[81,5,81,9],[84,1,84,5],[88,1,93,2],[95,5,95,9],[97,5,97,9],[99,5,99,9],[141,5,141,9],[675,13,680,14],[55,5,55,9],[57,5,57,9],[59,5,59,9],[61,5,61,9],[64,1,64,5],[68,1,73,2],[75,5,75,9],[77,5,77,9],[79,5,79,9],[664,1,669,2],[643,13,648,14],[650,13,655,14],[101,5,101,9],[104,1,104,5],[108,1,113,2],[115,5,115,9],[117,5,117,9],[119,5,119,9],[155,5,155,9],[157,5,157,9],[159,5,159,9],[181,5,181,9],[184,1,184,5],[686,1,691,2],[675,1,680,2],[675,4,680,5],[675,7,680,8],[675,10,680,11],[643,1,648,2],[643,4,648,5],[643,7,648,8],[643,10,648,11],[650,10,655,11],[650,7,655,8],[144,1,144,5],[148,1,153,2],[121,5,121,9],[124,1,124,5],[128,1,133,2],[135,5,135,9],[137,5,137,9],[139,5,139,9],[164,1,164,5],[168,1,173,2],[175,5,175,9],[177,5,177,9],[179,5,179,9],[221,5,221,9],[224,1,224,5],[228,1,233,2],[235,5,235,9],[237,5,237,9],[239,5,239,9],[201,5,201,9],[204,1,204,5],[208,1,213,2],[215,5,215,9],[217,5,217,9],[219,5,219,9],[261,5,261,9],[264,1,264,5],[268,1,273,2],[275,5,275,9],[277,5,277,9],[279,5,279,9],[241,5,241,9],[244,1,244,5],[248,1,253,2],[255,5,255,9],[257,5,257,9],[259,5,259,9],[301,5,301,9],[304,1,304,5],[308,1,313,2],[315,5,315,9],[317,5,317,9],[319,5,319,9],[281,5,281,9],[284,1,284,5],[288,1,293,2],[295,5,295,9],[297,5,297,9],[299,5,299,9],[341,5,341,9],[344,1,344,5],[348,1,353,2],[355,5,355,9],[357,5,357,9],[359,5,359,9],[321,5,321,9],[324,1,324,5],[328,1,333,2],[335,5,335,9],[337,5,337,9],[339,5,339,9],[381,5,381,9],[384,1,384,5],[388,1,393,2],[395,5,395,9],[397,5,397,9],[399,5,399,9],[361,5,361,9],[364,1,364,5],[368,1,373,2],[375,5,375,9],[377,5,377,9],[379,5,379,9],[421,5,421,9],[424,1,424,5],[428,1,433,2],[435,5,435,9],[437,5,437,9],[439,5,439,9],[401,5,401,9],[404,1,404,5],[408,1,413,2],[415,5,415,9],[417,5,417,9],[419,5,419,9],[461,5,461,9],[464,1,464,5],[468,1,473,2],[475,5,475,9],[477,5,477,9],[479,5,479,9],[441,5,441,9],[444,1,444,5],[448,1,453,2],[455,5,455,9],[457,5,457,9],[459,5,459,9],[501,5,501,9],[504,1,504,5],[508,1,513,2],[515,5,515,9],[517,5,517,9],[519,5,519,9],[481,5,481,9],[484,1,484,5],[488,1,493,2],[495,5,495,9],[497,5,497,9],[499,5,499,9],[541,5,541,9],[544,1,544,5],[548,1,553,2],[555,5,555,9],[557,5,557,9],[559,5,559,9],[521,5,521,9],[524,1,524,5],[528,1,533,2],[535,5,535,9],[537,5,537,9],[539,5,539,9],[581,5,581,9],[584,1,584,5],[588,1,593,2],[595,5,595,9],[597,5,597,9],[599,5,599,9],[561,5,561,9],[564,1,564,5],[568,1,573,2],[575,5,575,9],[577,5,577,9],[579,5,579,9],[621,5,621,9],[624,1,624,5],[628,1,633,2],[601,5,601,9],[604,1,604,5],[608,1,613,2],[615,5,615,9],[617,5,617,9],[619,5,619,9]]}
["New Program Application"]
["Pennsylvania State Board of Private Licensed Schools"]
[]
["Evidence must be provided to show that there is a job market to support the program graduates and that the program adequately prepares graduates for jobs in the field.  "]
["This is traditionally provided in the form of job advertisements.  "]
["If using job advertisements, it is the applicants responsibility to show adequate employment opportunities to justify the intended size and enrollment in the program."]
[]
["Note that the Board does not have a specific requirement for a specific number of job advertisements. "]
["If the program will enroll only two cohorts per year, the application might include enough opportunities for the first cohort.  "]
["If the program will have monthly starts, it might be necessary to show enough opportunities for all graduates in the first year."]
[]
["It is also possible to demonstrate employment opportunities through with letters from potential employers, local market data or advisory committee minutes. "]
[]
["Evidence of employment opportunities will be provided in the following ways.  Please check all that apply:"]
[]
[null,"Job Advertisements"]
[]
[null,"Letters from Employers",null,null,null,null,"Letters should be entered in the section starting with row 636 at the bottom of this worksheet."]
[]
[null,"Local Market Data",null,null,null,null,"Data should be entered in the section starting with row 658 at the bottom of this worksheet."]
[]
[null,"Other Job Opportunities",null,null,null,null,"Opportunities should be entered in the section starting with row 672 at the bottom of this worksheet."]
[]
[null,"Program Advisory Committee (PAC) Meeting Minutes",null,null,null,null,"Minutes should be entered in the section starting with row 683 at the bottom of this worksheet."]
[]
["NOTE:  It is not necessary to provide all of the following.  It is only necessary to show sufficient evidence of opportunities for the intended enrollment."]
[]
["Job Advertisements"]
[]
["Please be careful to ensure that the job opportunities do not require education, skills, job experience or certifications that are not "]
["either included in your program or required for admission."]
[]
["Screenshot each advertisement and place the image into a MS Word document.  Do not retype or copy/paste the job advertisement.  "]
["Embed an actual copy of each advertisement, ensure the entire advertisement is made available for viewing."]
[]
[1,"Employer Name:"]
[]
[null,"Work experience required for this position:"]
[]
[null,"Education required for this position:"]
[]
[null,"Certification(s) required for this position:"]
[]
[null,"If available, provide a website link to the advertisement.  Provide website links only in addition to a copy of the advertisement, not instead of."]
[]
[]
[null,"Embed a copy of the job advertisement:"]
[]
[]
[]
[]
[]
[]
[]
[]
[2,"Employer Name:"]
[]
[null,"Work experience required for this position:"]
[]
[null,"Education required for this position:"]
[]
[null,"Certification(s) required for this position:"]
[]
[null,"If available, provide a website link to the advertisement.  Provide website links only in addition to a copy of the advertisement, not instead of."]
[]
[]
[null,"Embed a copy of the job advertisement:"]
[]
[]
[]
[]
[]
[]
[]
[]
[3,"Employer Name:"]
[]
[null,"Work experience required for this position:"]
[]
[null,"Education required for this position:"]
[]
[null,"Certification(s) required for this position:"]
[]
[null,"If available, provide a website link to the advertisement.  Provide website links only in addition to a copy of the advertisement, not instead of."]
[]
[]
[null,"Embed a copy of the job advertisement:"]
[]
[]
[]
[]
[]
[]
[]
[]
[4,"Employer Name:"]
[]
[null,"Work experience required for this position:"]
[]
[null,"Education required for this position:"]
[]
[null,"Certification(s) required for this position:"]
[]
[null,"If available, provide a website link to the advertisement.  Provide website links only in addition to a copy of the advertisement, not instead of."]
[]
[]
[null,"Embed a copy of the job advertisement:"]
[]
[]
[]
[]
[]
[]
[]
[]
[5,"Employer Name:"]
[]
[null,"Work experience required for this position:"]
[]
[null,"Education required for this position:"]
[]
[null,"Certification(s) required for this position:"]
[]
[null,"If available, provide a website link to the advertisement.  Provide website links only in addition to a copy of the advertisement, not instead of."]
[]
[]
[null,"Embed a copy of the job advertisement:"]
[]
[]
[]
[]
[]
[]
[]
[]
[6,"Employer Name:"]
[]
[null,"Work experience required for this position:"]
[]
[null,"Education required for this position:"]
[]
[null,"Certification(s) required for this position:"]
[]
[null,"If available, provide a website link to the advertisement.  Provide website links only in addition to a copy of the advertisement, not instead of."]
[]
[]
[null,"Embed a copy of the job advertisement:"]
[]
[]
[]
[]
[]
[]
[]
[]
[7,"Employer Name:"]
[]
[null,"Work experience required for this position:"]
[]
[null,"Education required for this position:"]
[]
[null,"Certification(s) required for this position:"]
[]
[null,"If available, provide a website link to the advertisement.  Provide website links only in addition to a copy of the advertisement, not instead of."]
[]
[]
[null,"Embed a copy of the job advertisement:"]
[]
[]
[]
[]
[]
[]
[]
[]
[8,"Employer Name:"]
[]
[null,"Work experience required for this position:"]
[]
[null,"Education required for this position:"]
[]
[null,"Certification(s) required for this position:"]
[]
[null,"If available, provide a website link to the advertisement.  Provide website links only in addition to a copy of the advertisement, not instead of."]
[]
[]
[null,"Embed a copy of the job advertisement:"]
[]
[]
[]
[]
[]
[]
[]
[]
[9,"Employer Name:"]
[]
[null,"Work experience required for this position:"]
[]
[null,"Education required for this position:"]
[]
[null,"Certification(s) required for this position:"]
[]
[null,"If available, provide a website link to the advertisement.  Provide website links only in addition to a copy of the advertisement, not instead of."]
[]
[]
[null,"Embed a copy of the job advertisement:"]
[]
[]
[]
[]
[]
[]
[]
[]
[10,"Employer Name:"]
[]
[null,"Work experience required for this position:"]
[]
[null,"Education required for this position:"]
[]
[null,"Certification(s) required for this position:"]
[]
[null,"If available, provide a website link to the advertisement.  Provide website links only in addition to a copy of the advertisement, not instead of."]
[]
[]
[null,"Embed a copy of the job advertisement:"]
[]
[]
[]
[]
[]
[]
[]
[]
[11,"Employer Name:"]
[]
[null,"Work experience required for this position:"]
[]
[null,"Education required for this position:"]
[]
[null,"Certification(s) required for this position:"]
[]
[null,"If available, provide a website link to the advertisement.  Provide website links only in addition to a copy of the advertisement, not instead of."]
[]
[]
[null,"Embed a copy of the job advertisement:"]
[]
[]
[]
[]
[]
[]
[]
[]
[12,"Employer Name:"]
[]
[null,"Work experience required for this position:"]
[]
[null,"Education required for this position:"]
[]
[null,"Certification(s) required for this position:"]
[]
[null,"If available, provide a website link to the advertisement.  Provide website links only in addition to a copy of the advertisement, not instead of."]
[]
[]
[null,"Embed a copy of the job advertisement:"]
[]
[]
[]
[]
[]
[]
[]
[]
[13,"Employer Name:"]
[]
[null,"Work experience required for this position:"]
[]
[null,"Education required for this position:"]
[]
[null,"Certification(s) required for this position:"]
[]
[null,"If available, provide a website link to the advertisement.  Provide website links only in addition to a copy of the advertisement, not instead of."]
[]
[]
[null,"Embed a copy of the job advertisement:"]
[]
[]
[]
[]
[]
[]
[]
[]
[14,"Employer Name:"]
[]
[null,"Work experience required for this position:"]
[]
[null,"Education required for this position:"]
[]
[null,"Certification(s) required for this position:"]
[]
[null,"If available, provide a website link to the advertisement.  Provide website links only in addition to a copy of the advertisement, not instead of."]
[]
[]
[null,"Embed a copy of the job advertisement:"]
[]
[]
[]
[]
[]
[]
[]
[]
[15,"Employer Name:"]
[]
[null,"Work experience required for this position:"]
[]
[null,"Education required for this position:"]
[]
[null,"Certification(s) required for this position:"]
[]
[null,"If available, provide a website link to the advertisement.  Provide website links only in addition to a copy of the advertisement, not instead of."]
[]
[]
[null,"Embed a copy of the job advertisement:"]
[]
[]
[]
[]
[]
[]
[]
[]
[16,"Employer Name:"]
[]
[null,"Work experience required for this position:"]
[]
[null,"Education required for this position:"]
[]
[null,"Certification(s) required for this position:"]
[]
[null,"If available, provide a website link to the advertisement.  Provide website links only in addition to a copy of the advertisement, not instead of."]
[]
[]
[null,"Embed a copy of the job advertisement:"]
[]
[]
[]
[]
[]
[]
[]
[]
[17,"Employer Name:"]
[]
[null,"Work experience required for this position:"]
[]
[null,"Education required for this position:"]
[]
[null,"Certification(s) required for this position:"]
[]
[null,"If available, provide a website link to the advertisement.  Provide website links only in addition to a copy of the advertisement, not instead of."]
[]
[]
[null,"Embed a copy of the job advertisement:"]
[]
[]
[]
[]
[]
[]
[]
[]
[18,"Employer Name:"]
[]
[null,"Work experience required for this position:"]
[]
[null,"Education required for this position:"]
[]
[null,"Certification(s) required for this position:"]
[]
[null,"If available, provide a website link to the advertisement.  Provide website links only in addition to a copy of the advertisement, not instead of."]
[]
[]
[null,"Embed a copy of the job advertisement:"]
[]
[]
[]
[]
[]
[]
[]
[]
[19,"Employer Name:"]
[]
[null,"Work experience required for this position:"]
[]
[null,"Education required for this position:"]
[]
[null,"Certification(s) required for this position:"]
[]
[null,"If available, provide a website link to the advertisement.  Provide website links only in addition to a copy of the advertisement, not instead of."]
[]
[]
[null,"Embed a copy of the job advertisement:"]
[]
[]
[]
[]
[]
[]
[]
[]
[20,"Employer Name:"]
[]
[null,"Work experience required for this position:"]
[]
[null,"Education required for this position:"]
[]
[null,"Certification(s) required for this position:"]
[]
[null,"If available, provide a website link to the advertisement.  Provide website links only in addition to a copy of the advertisement, not instead of."]
[]
[]
[null,"Embed a copy of the job advertisement:"]
[]
[]
[]
[]
[]
[]
[]
[]
[21,"Employer Name:"]
[]
[null,"Work experience required for this position:"]
[]
[null,"Education required for this position:"]
[]
[null,"Certification(s) required for this position:"]
[]
[null,"If available, provide a website link to the advertisement.  Provide website links only in addition to a copy of the advertisement, not instead of."]
[]
[]
[null,"Embed a copy of the job advertisement:"]
[]
[]
[]
[]
[]
[]
[]
[]
[22,"Employer Name:"]
[]
[null,"Work experience required for this position:"]
[]
[null,"Education required for this position:"]
[]
[null,"Certification(s) required for this position:"]
[]
[null,"If available, provide a website link to the advertisement.  Provide website links only in addition to a copy of the advertisement, not instead of."]
[]
[]
[null,"Embed a copy of the job advertisement:"]
[]
[]
[]
[]
[]
[]
[]
[]
[23,"Employer Name:"]
[]
[null,"Work experience required for this position:"]
[]
[null,"Education required for this position:"]
[]
[null,"Certification(s) required for this position:"]
[]
[null,"If available, provide a website link to the advertisement.  Provide website links only in addition to a copy of the advertisement, not instead of."]
[]
[]
[null,"Embed a copy of the job advertisement:"]
[]
[]
[]
[]
[]
[]
[]
[]
[24,"Employer Name:"]
[]
[null,"Work experience required for this position:"]
[]
[null,"Education required for this position:"]
[]
[null,"Certification(s) required for this position:"]
[]
[null,"If available, provide a website link to the advertisement.  Provide website links only in addition to a copy of the advertisement, not instead of."]
[]
[]
[null,"Embed a copy of the job advertisement:"]
[]
[]
[]
[]
[]
[]
[]
[]
[25,"Employer Name:"]
[]
[null,"Work experience required for this position:"]
[]
[null,"Education required for this position:"]
[]
[null,"Certification(s) required for this position:"]
[]
[null,"If available, provide a website link to the advertisement.  Provide website links only in addition to a copy of the advertisement, not instead of."]
[]
[]
[null,"Embed a copy of the job advertisement:"]
[]
[]
[]
[]
[]
[]
[]
[]
[26,"Employer Name:"]
[]
[null,"Work experience required for this position:"]
[]
[null,"Education required for this position:"]
[]
[null,"Certification(s) required for this position:"]
[]
[null,"If available, provide a website link to the advertisement.  Provide website links only in addition to a copy of the advertisement, not instead of."]
[]
[]
[null,"Embed a copy of the job advertisement:"]
[]
[]
[]
[]
[]
[]
[]
[]
[27,"Employer Name:"]
[]
[null,"Work experience required for this position:"]
[]
[null,"Education required for this position:"]
[]
[null,"Certification(s) required for this position:"]
[]
[null,"If available, provide a website link to the advertisement.  Provide website links only in addition to a copy of the advertisement, not instead of."]
[]
[]
[null,"Embed a copy of the job advertisement:"]
[]
[]
[]
[]
[]
[]
[]
[]
[28,"Employer Name:"]
[]
[null,"Work experience required for this position:"]
[]
[null,"Education required for this position:"]
[]
[null,"Certification(s) required for this position:"]
[]
[null,"If available, provide a website link to the advertisement.  Provide website links only in addition to a copy of the advertisement, not instead of."]
[]
[]
[null,"Embed a copy of the job advertisement:"]
[]
[]
[]
[]
[]
[]
[]
[]
[29,"Employer Name:"]
[]
[null,"Work experience required for this position:"]
[]
[null,"Education required for this position:"]
[]
[null,"Certification(s) required for this position:"]
[]
[null,"If available, provide a website link to the advertisement.  Provide website links only in addition to a copy of the advertisement, not instead of."]
[]
[]
[null,"Embed a copy of the job advertisement:"]
[]
[]
[]
[]
[]
[]
[]
[]
[30,"Employer Name:"]
[]
[null,"Work experience required for this position:"]
[]
[null,"Education required for this position:"]
[]
[null,"Certification(s) required for this position:"]
[]
[null,"If available, provide a website link to the advertisement.  Provide website links only in addition to a copy of the advertisement, not instead of."]
[]
[]
[null,"Embed a copy of the job advertisement:"]
[]
[]
[]
[]
[]
[]
[]
[]
["Letters from Employers"]
[]
["Letters from employers may be included to demonstrate job opportunities.  Please note that it is the applicant's responsibility to provide evidence "]
["of adequate openings to support the program.  Letters should also provide evidence that graduates of the program will be adequately prepared for "]
["employment in the field."]
[]
[null,"Embed letters from potential employers below:"]
[]
[1,null,null,2,null,null,3,null,null,4,null,null,5]
[]
[]
[]
[]
[]
[]
[6,null,null,7,null,null,8,null,null,9,null,null,10]
[]
[]
[]
[]
[]
[]
["Local Market Data"]
[]
["Insert local market data below.  Please note that data must be current and specific to your region. "]
["National data or old data will not be adequate to show employment opportunities."]
[]
[null,"Embed a copy of the local market data:"]
[]
[]
[]
[]
[]
[]
[]
[]
["Other Job Opportunities"]
[]
[null,"Embed other evidence of employment opportunities below:"]
[]
[1,null,null,2,null,null,3,null,null,4,null,null,5]
[]
[]
[]
[]
[]
[]
["Program Advisory Committee (PAC) Meeting Minutes"]
[]
[null,"Embed a copy of the advisory committee meeting minutes:"]
[]
[]
[]
[]
[]
[]
[]
[]
["END OF JOB OPPORTUNITIES - PROCEED TO NEXT WORKSHEET TAB"]

{"sheet":"Facility","index":8,"n_rows":292,"n_cols":6,"rows_kept":292,"cut":false,"hidden":false,"merged":[[60,2,60,6],[62,2,62,6],[64,2,64,6],[200,1,205,2],[210,1,215,2],[239,1,244,2],[154,1,159,2],[284,1,289,2],[219,1,224,2],[189,1,194,2],[174,1,179,2],[254,1,259,2],[265,1,270,2],[275,1,280,2],[9,1,14,4],[24,1,29,4],[36,1,41,4],[46,1,51,4],[145,1,150,2],[71,1,76,2],[82,1,87,2],[91,1,96,2],[112,2,112,6],[114,2,114,6],[116,2,116,6],[118,2,118,6],[125,1,130,2],[136,1,141,2],[100,1,105,2],[58,2,58,6]]}
["New Program Application"]
["Pennsylvania State Board of Private Licensed Schools"]
[]
["School Facility:"]
[]
["Embed a copy of the facility floor plan with square footage indicated for all instructional space(s)."]
["On the floor plan, indicate the purpose for the space and show major equipment."]
["If exterior space(s) will be used for instruction, an outdoor space plan, with measurements indicated, along with reference to any obstructions, limitations, and throughways."]
[]
[]
[]
[null,null,null,null,null,"Include both the floor plan and outdoor space plan, if applicable."]
[]
[]
[]
[]
[null,"Current school enrollment without this new program:"]
[]
[null,"Will this new program share space with existing programs?"]
[]
[]
[]
[null,"If yes and space will be shared, embed a usage plan."]
[]
[]
[]
[]
[]
[]
[]
[null,"If the facility will be expanded to accommodate this program, a site visit and Board approval of the expanded space is required.  "]
[null,"Please contact your Board Administrator to facilitate this process."]
[]
["Embed a copy of the facility's certificate of occupancy. "]
["If this is a CDL program application, zoning permits are required for all driving ranges, even if adjacent to the school's facility."]
[]
[]
[]
[null,null,null,null,null,"Include both the certificate of occupancy and zoning permit, if applicable"]
[]
[]
[]
[]
["Embed a copy of the current signed agreement, which includes the terms of the arrangement, for the school's facility."]
["If the property is owned by the school, provide supporting evidence of facility ownership."]
[]
[]
[]
[]
[]
[]
[]
[]
["Remote Facility:"]
[]
["If the school will conduct some of the program's clinical/lab coursework at another site, such as a driving range for a trucking program, a clinical site for a nurse aid program, or an off-site laboratory, that facility must be approved as a remote location.  "]
["Each additional facility requires a certificate of occupancy/zoning permit, evidence of surety, a signed agreement or evidence of ownership, a site visit, and payment of the $750 site visit fee."]
[]
["Name of Remote Site:"]
[]
["Address of Remote Site:"]
[]
[]
[]
[]
[null,null,"City, State and Zip Code"]
[]
["Embed a copy of the facility floor plan with square footage indicated for all instructional space(s)."]
["On the floor plan, indicate the purpose for the space and show major equipment."]
["If exterior space(s) will be used for instruction, an outdoor space plan, with measurements indicated, along with reference to any obstructions, limitations, and throughways."]
[]
[]
[]
[]
[]
[]
[]
[]
["Embed a copy of the certificate of occupancy/zoning permit. "]
[]
[null,"If you do not yet have the required certificate of occupancy/zoning permit, check here to acknowledge that you understand that the required document must be provide at least three weeks before the Board meeting date."]
[]
[]
[]
[]
[]
[]
[]
[]
["Embed the signed agreement describing the terms with the remote location."]
[]
[]
[]
[]
[]
[]
[]
[]
["Embed a copy of the surety bond rider evidencing coverage of the remote facility."]
[]
[]
[]
[]
[]
[]
[]
[]
["Remote Facility:"]
[]
["If the school will conduct some of the program's clinical/lab coursework at another site, such as a driving range for a trucking program, a clinical site for a nurse aid program, or an off-site laboratory, that facility must be approved as a remote location.  "]
["Each additional facility requires a certificate of occupancy/zoning permit, evidence of surety, a signed agreement or evidence of ownership, a site visit, and payment of the $750 site visit fee."]
[]
["Name of Remote Site:"]
[]
["Address of Remote Site:"]
[]
[]
[]
[]
[null,null,"City, State and Zip Code"]
[]
["Embed a copy of the facility floor plan with square footage indicated for all instructional space(s)."]
["On the floor plan, indicate the purpose for the space and show major equipment."]
["If exterior space(s) will be used for instruction, an outdoor space plan, with measurements indicated, along with reference to any obstructions, limitations, and throughways."]
[]
[]
[]
[]
[]
[]
[]
[]
["Embed a copy of the certificate of occupancy/zoning permit."]
[]
[null,"If you do not yet have the required certificate of occupancy/zoning permit, check here to acknowledge that you understand that the required document must be provide at least three weeks before the Board meeting date."]
[]
[]
[]
[]
[]
[]
[]
[]
["Embed the signed agreement describing the terms with the remote location."]
[]
[]
[]
[]
[]
[]
[]
[]
["Embed a copy of the surety bond rider evidencing coverage of the remote facility."]
[]
[]
[]
[]
[]
[]
[]
[]
["Branch Facility:"]
[]
["Address of Branch:"]
[]
[]
[]
[]
[null,null,"City, State and Zip Code"]
[]
["Embed a copy of the facility floor plan with square footage indicated for all instructional space(s)."]
["On the floor plan, indicate the purpose for the space and show major equipment."]
["If exterior space(s) will be used for instruction, an outdoor space plan, with measurements indicated, along with reference to any obstructions, limitations, and throughways."]
[]
[]
[]
[]
[]
[]
[]
[]
[null,"Current school enrollment without this new program:"]
[]
[null,"Will this new program share space with existing programs?"]
[]
[]
[]
[null,"If yes and space will be shared, embed a usage plan."]
[]
[]
[]
[]
[]
[]
[]
[null,"If the facility will be expanded to accommodate this program, a site visit and Board approval of the expanded space is required.  "]
[null,"Please contact your Board Administrator to facilitate this process."]
[]
["Embed a copy of the facility's certificate of occupancy."]
[]
[]
[]
[]
[]
[]
[]
[]
["Embed a copy of the current signed agreement, which includes the terms of the arrangement, for the school's facility."]
["If the property is owned by the school, provide supporting evidence of facility ownership."]
[]
[]
[]
[]
[]
[]
[]
[]
["Embed a copy of the surety bond rider evidencing coverage of the branch facility."]
[]
[]
[]
[]
[]
[]
[]
[]
["Branch Facility:"]
[]
["Address of Branch:"]
[]
[]
[]
[]
[null,null,"City, State and Zip Code"]
[]
["Embed a copy of the facility floor plan with square footage indicated for all instructional space(s)."]
["On the floor plan, indicate the purpose for the space and show major equipment."]
["If exterior space(s) will be used for instruction, an outdoor space plan, with measurements indicated, along with reference to any obstructions, limitations, and throughways."]
[]
[]
[]
[]
[]
[]
[]
[]
[null,"Current school enrollment without this new program:"]
[]
[null,"Will this new program share space with existing programs?"]
[]
[]
[]
[null,"If yes and space will be shared, embed a usage plan."]
[]
[]
[]
[]
[]
[]
[]
[null,"If the facility will be expanded to accommodate this program, a site visit and Board approval of the expanded space is required.  "]
[null,"Please contact your Board Administrator to facilitate this process."]
[]
["Embed a copy of the facility's certificate of occupancy."]
[]
[]
[]
[]
[]
[]
[]
[]
["Embed a copy of the current signed agreement, which includes the terms of the arrangement, for the school's facility."]
["If the property is owned by the school, provide supporting evidence of facility ownership."]
[]
[]
[]
[]
[]
[]
[]
[]
["Embed a copy of the surety bond rider evidencing coverage of the branch facility."]
[]
[]
[]
[]
[]
[]
[]
[]
["END OF FACILITY - PROCEED TO NEXT WORKSHEET TAB"]

{"sheet":"Reading Levels","index":9,"n_rows":70,"n_cols":16,"rows_kept":70,"cut":false,"hidden":false,"merged":[]}
["New Program Application"]
["Pennsylvania State Board of Private Licensed Schools"]
[]
["Provide the following information for each textbook to be used by students."]
[null,null,null,null,null,null,null,null,null,null,null,null,null,"Course Numbers"]
[null,null,null,null,null,null,null,null,null,null,null,"Method Used ",null,"of all courses in which students",null,"Course Names"]
[null,null,null,null,null,null,null,"Date",null,"Grade Level/",null,"to determine",null,"will use this text - list multiple",null,"of all courses in which students will use this text - "]
[null,"Title of Textbook/Resource",null,"Author",null,"Publisher",null,"of Publication",null,"Reading Level",null,"Reading Level",null,"course numbers if necessary",null,"list multiple course names if necessary"]
[]
[]
[]
[]
[]
[]
[]
[]
[]
[]
[]
[]
[]
[]
[]
[]
[]
[]
[]
[]
[]
[]
[]
[]
[]
[]
[]
[]
[]
[]
[]
[]
[]
[]
[]
[]
[]
[]
[]
[]
[]
[]
[]
[]
[]
[]
[]
[]
[]
[]
[]
[]
[]
[]
[]
[]
[]
[]
[]
[]
[]
["END OF READING LEVELS - PROCEED TO NEXT WORKSHEET TAB"]

{"sheet":"Externship","index":10,"n_rows":274,"n_cols":5,"rows_kept":274,"cut":false,"hidden":false,"merged":[[65,5,65,8],[63,5,63,8],[19,1,24,2],[28,1,33,2],[37,1,42,2],[47,1,52,2],[63,1,68,2],[70,1,75,2],[70,5,70,8],[72,5,72,8],[77,1,82,2],[77,5,77,8],[79,5,79,8],[84,1,89,2],[84,5,84,8],[86,5,86,8],[91,1,96,2],[91,5,91,8],[93,5,93,8],[98,1,103,2],[98,5,98,8],[100,5,100,8],[105,1,110,2],[105,5,105,8],[107,5,107,8],[112,1,117,2],[112,5,112,8],[114,5,114,8],[119,1,124,2],[119,5,119,8],[121,5,121,8],[126,1,131,2],[126,5,126,8],[128,5,128,8],[133,1,138,2],[133,5,133,8],[135,5,135,8],[140,1,145,2],[140,5,140,8],[142,5,142,8],[147,1,152,2],[147,5,147,8],[149,5,149,8],[154,1,159,2],[154,5,154,8],[156,5,156,8],[161,1,166,2],[161,5,161,8],[163,5,163,8],[168,1,173,2],[168,5,168,8],[170,5,170,8],[175,1,180,2],[175,5,175,8],[177,5,177,8],[182,1,187,2],[182,5,182,8],[184,5,184,8],[189,1,194,2],[189,5,189,8],[191,5,191,8],[196,1,201,2],[196,5,196,8],[198,5,198,8],[203,1,208,2],[203,5,203,8],[205,5,205,8],[210,1,215,2],[210,5,210,8],[212,5,212,8],[217,1,222,2],[217,5,217,8],[219,5,219,8],[247,5,247,8],[224,1,229,2],[224,5,224,8],[226,5,226,8],[231,1,236,2],[231,5,231,8],[233,5,233,8],[5,0,5,13],[15,1,15,4],[266,1,271,2],[266,5,266,8],[268,5,268,8],[252,1,257,2],[252,5,252,8],[254,5,254,8],[259,1,264,2],[259,5,259,8],[261,5,261,8],[238,1,243,2],[238,5,238,8],[240,5,240,8],[245,1,250,2],[245,5,245,8]]}
["New Program Application"]
["Pennsylvania State Board of Private Licensed Schools"]
[]
["Internship or externship. A structured, supervised learning experience which takes place outside of the school and involves the practical application of competencies acquired during school-based instruction."]
[]
["Internships/Externships must be based on a training plan that specifies the goals, educational objectives, and specific experiences and applications to be accomplished. "]
[]
["The training plan must identify educational resources, established timelines for the externship, the evaluation process, and the criteria to be used that appropriately and fairly measures demonstrated competency and skill attainment."]
[]
["Will the proposed program include an internship/externship?"]
[]
["If the program will include an internship/externship, the following information must be provided."]
[]
["Provide the course name and course number of the syllabus provided on the PDE3004 Program Outline+Syllabi worksheet that is the syllabus for the externship."]
[]
[]
[]
["Embed the site selection criteria for the externship below:"]
[]
[]
[]
[]
[]
[]
[]
[]
["Embed the list of school responsibilities for the externship below:"]
[]
[]
[]
[]
[]
[]
[]
[]
["Embed the list of site responsibilities for the externship below:"]
[]
[]
[]
[]
[]
[]
[]
[]
["Embed the grading rubric for the externship below:"]
["The evaluation rubric must be detailed and it must asses practical skills.  Ensure that the externship evaluation rubric does not assess only \"soft skills.\""]
[]
[]
[]
[]
[]
[]
[]
[]
["The school must show evidence that it has sufficient sites to support the intended enrollment.  "]
[]
["Your first cohort is projected to enroll"]
[{"$f":"'PDE3003 Summary'!B152","v":0},"students.  Please paste completed and signed agreements to show at least "]
[{"$f":"'PDE3003 Summary'!B152","v":0},"internship/externship sites."]
[null,"If the numbers for projected enrollment do not appear accurate, adjust the 'maximum number of students at start-up', line item 65 in the PDE3003 Summary worksheet."]
[]
["Embed completed and signed site agreements specific to this program:"]
[]
[1,null,null,null,"Site Name:"]
[]
[null,null,null,null,"Location - City, State:"]
[]
[null,null,null,null,"Number of externs:"]
[]
[]
[2,null,null,null,"Site Name:"]
[]
[null,null,null,null,"Location - City, State:"]
[]
[null,null,null,null,"Number of externs:"]
[]
[]
[3,null,null,null,"Site Name:"]
[]
[null,null,null,null,"Location - City, State:"]
[]
[null,null,null,null,"Number of externs:"]
[]
[]
[4,null,null,null,"Site Name:"]
[]
[null,null,null,null,"Location - City, State:"]
[]
[null,null,null,null,"Number of externs:"]
[]
[]
[5,null,null,null,"Site Name:"]
[]
[null,null,null,null,"Location - City, State:"]
[]
[null,null,null,null,"Number of externs:"]
[]
[]
[6,null,null,null,"Site Name:"]
[]
[null,null,null,null,"Location - City, State:"]
[]
[null,null,null,null,"Number of externs:"]
[]
[]
[7,null,null,null,"Site Name:"]
[]
[null,null,null,null,"Location - City, State:"]
[]
[null,null,null,null,"Number of externs:"]
[]
[]
[8,null,null,null,"Site Name:"]
[]
[null,null,null,null,"Location - City, State:"]
[]
[null,null,null,null,"Number of externs:"]
[]
[]
[9,null,null,null,"Site Name:"]
[]
[null,null,null,null,"Location - City, State:"]
[]
[null,null,null,null,"Number of externs:"]
[]
[]
[10,null,null,null,"Site Name:"]
[]
[null,null,null,null,"Location - City, State:"]
[]
[null,null,null,null,"Number of externs:"]
[]
[]
[11,null,null,null,"Site Name:"]
[]
[null,null,null,null,"Location - City, State:"]
[]
[null,null,null,null,"Number of externs:"]
[]
[]
[12,null,null,null,"Site Name:"]
[]
[null,null,null,null,"Location - City, State:"]
[]
[null,null,null,null,"Number of externs:"]
[]
[]
[13,null,null,null,"Site Name:"]
[]
[null,null,null,null,"Location - City, State:"]
[]
[null,null,null,null,"Number of externs:"]
[]
[]
[14,null,null,null,"Site Name:"]
[]
[null,null,null,null,"Location - City, State:"]
[]
[null,null,null,null,"Number of externs:"]
[]
[]
[15,null,null,null,"Site Name:"]
[]
[null,null,null,null,"Location - City, State:"]
[]
[null,null,null,null,"Number of externs:"]
[]
[]
[16,null,null,null,"Site Name:"]
[]
[null,null,null,null,"Location - City, State:"]
[]
[null,null,null,null,"Number of externs:"]
[]
[]
[17,null,null,null,"Site Name:"]
[]
[null,null,null,null,"Location - City, State:"]
[]
[null,null,null,null,"Number of externs:"]
[]
[]
[18,null,null,null,"Site Name:"]
[]
[null,null,null,null,"Location - City, State:"]
[]
[null,null,null,null,"Number of externs:"]
[]
[]
[19,null,null,null,"Site Name:"]
[]
[null,null,null,null,"Location - City, State:"]
[]
[null,null,null,null,"Number of externs:"]
[]
[]
[20,null,null,null,"Site Name:"]
[]
[null,null,null,null,"Location - City, State:"]
[]
[null,null,null,null,"Number of externs:"]
[]
[]
[21,null,null,null,"Site Name:"]
[]
[null,null,null,null,"Location - City, State:"]
[]
[null,null,null,null,"Number of externs:"]
[]
[]
[22,null,null,null,"Site Name:"]
[]
[null,null,null,null,"Location - City, State:"]
[]
[null,null,null,null,"Number of externs:"]
[]
[]
[23,null,null,null,"Site Name:"]
[]
[null,null,null,null,"Location - City, State:"]
[]
[null,null,null,null,"Number of externs:"]
[]
[]
[24,null,null,null,"Site Name:"]
[]
[null,null,null,null,"Location - City, State:"]
[]
[null,null,null,null,"Number of externs:"]
[]
[]
[25,null,null,null,"Site Name:"]
[]
[null,null,null,null,"Location - City, State:"]
[]
[null,null,null,null,"Number of externs:"]
[]
[]
[26,null,null,null,"Site Name:"]
[]
[null,null,null,null,"Location - City, State:"]
[]
[null,null,null,null,"Number of externs:"]
[]
[]
[27,null,null,null,"Site Name:"]
[]
[null,null,null,null,"Location - City, State:"]
[]
[null,null,null,null,"Number of externs:"]
[]
[]
[28,null,null,null,"Site Name:"]
[]
[null,null,null,null,"Location - City, State:"]
[]
[null,null,null,null,"Number of externs:"]
[]
[]
[29,null,null,null,"Site Name:"]
[]
[null,null,null,null,"Location - City, State:"]
[]
[null,null,null,null,"Number of externs:"]
[]
[]
[30,null,null,null,"Site Name:"]
[]
[null,null,null,null,"Location - City, State:"]
[]
[null,null,null,null,"Number of externs:"]
[]
[]
["END OF EXTERNSHIP - PROCEED TO NEXT WORKSHEET TAB"]

{"sheet":"PN Clinicals","index":11,"n_rows":219,"n_cols":5,"rows_kept":219,"cut":false,"hidden":false,"merged":[[8,1,13,2],[8,5,8,8],[10,5,10,8],[15,1,20,2],[15,5,15,8],[17,5,17,8],[22,1,27,2],[22,5,22,8],[24,5,24,8],[29,1,34,2],[29,5,29,8],[31,5,31,8],[36,1,41,2],[36,5,36,8],[38,5,38,8],[43,1,48,2],[43,5,43,8],[45,5,45,8],[50,1,55,2],[50,5,50,8],[52,5,52,8],[57,1,62,2],[57,5,57,8],[59,5,59,8],[64,1,69,2],[64,5,64,8],[66,5,66,8],[71,1,76,2],[71,5,71,8],[73,5,73,8],[78,1,83,2],[78,5,78,8],[80,5,80,8],[85,1,90,2],[85,5,85,8],[87,5,87,8],[92,1,97,2],[92,5,92,8],[94,5,94,8],[99,1,104,2],[99,5,99,8],[101,5,101,8],[106,1,111,2],[106,5,106,8],[108,5,108,8],[113,1,118,2],[113,5,113,8],[115,5,115,8],[120,1,125,2],[120,5,120,8],[122,5,122,8],[127,1,132,2],[127,5,127,8],[129,5,129,8],[134,1,139,2],[134,5,134,8],[136,5,136,8],[141,1,146,2],[141,5,141,8],[143,5,143,8],[148,1,153,2],[148,5,148,8],[150,5,150,8],[155,1,160,2],[155,5,155,8],[157,5,157,8],[162,1,167,2],[162,5,162,8],[164,5,164,8],[169,1,174,2],[169,5,169,8],[171,5,171,8],[176,1,181,2],[176,5,176,8],[178,5,178,8],[183,1,188,2],[183,5,183,8],[185,5,185,8],[190,1,195,2],[190,5,190,8],[192,5,192,8],[211,1,216,2],[211,5,211,8],[213,5,213,8],[197,1,202,2],[197,5,197,8],[199,5,199,8],[204,1,209,2],[204,5,204,8],[206,5,206,8]]}
["New Program Application"]
["Pennsylvania State Board of Private Licensed Schools"]
[]
["For Practical Nurse Program Applications Only"]
[]
["Embed the affiliation agreements for the clinical sites approved, or to be approved, by the State Board of Nursing:"]
[]
[]
[1,null,null,null,"Site Name:"]
[]
[null,null,null,null,"Location - City, State:"]
[]
[null,null,null,null,"Number of externs:"]
[]
[]
[2,null,null,null,"Site Name:"]
[]
[null,null,null,null,"Location - City, State:"]
[]
[null,null,null,null,"Number of externs:"]
[]
[]
[3,null,null,null,"Site Name:"]
[]
[null,null,null,null,"Location - City, State:"]
[]
[null,null,null,null,"Number of externs:"]
[]
[]
[4,null,null,null,"Site Name:"]
[]
[null,null,null,null,"Location - City, State:"]
[]
[null,null,null,null,"Number of externs:"]
[]
[]
[5,null,null,null,"Site Name:"]
[]
[null,null,null,null,"Location - City, State:"]
[]
[null,null,null,null,"Number of externs:"]
[]
[]
[6,null,null,null,"Site Name:"]
[]
[null,null,null,null,"Location - City, State:"]
[]
[null,null,null,null,"Number of externs:"]
[]
[]
[7,null,null,null,"Site Name:"]
[]
[null,null,null,null,"Location - City, State:"]
[]
[null,null,null,null,"Number of externs:"]
[]
[]
[8,null,null,null,"Site Name:"]
[]
[null,null,null,null,"Location - City, State:"]
[]
[null,null,null,null,"Number of externs:"]
[]
[]
[9,null,null,null,"Site Name:"]
[]
[null,null,null,null,"Location - City, State:"]
[]
[null,null,null,null,"Number of externs:"]
[]
[]
[10,null,null,null,"Site Name:"]
[]
[null,null,null,null,"Location - City, State:"]
[]
[null,null,null,null,"Number of externs:"]
[]
[]
[11,null,null,null,"Site Name:"]
[]
[null,null,null,null,"Location - City, State:"]
[]
[null,null,null,null,"Number of externs:"]
[]
[]
[12,null,null,null,"Site Name:"]
[]
[null,null,null,null,"Location - City, State:"]
[]
[null,null,null,null,"Number of externs:"]
[]
[]
[13,null,null,null,"Site Name:"]
[]
[null,null,null,null,"Location - City, State:"]
[]
[null,null,null,null,"Number of externs:"]
[]
[]
[14,null,null,null,"Site Name:"]
[]
[null,null,null,null,"Location - City, State:"]
[]
[null,null,null,null,"Number of externs:"]
[]
[]
[15,null,null,null,"Site Name:"]
[]
[null,null,null,null,"Location - City, State:"]
[]
[null,null,null,null,"Number of externs:"]
[]
[]
[16,null,null,null,"Site Name:"]
[]
[null,null,null,null,"Location - City, State:"]
[]
[null,null,null,null,"Number of externs:"]
[]
[]
[17,null,null,null,"Site Name:"]
[]
[null,null,null,null,"Location - City, State:"]
[]
[null,null,null,null,"Number of externs:"]
[]
[]
[18,null,null,null,"Site Name:"]
[]
[null,null,null,null,"Location - City, State:"]
[]
[null,null,null,null,"Number of externs:"]
[]
[]
[19,null,null,null,"Site Name:"]
[]
[null,null,null,null,"Location - City, State:"]
[]
[null,null,null,null,"Number of externs:"]
[]
[]
[20,null,null,null,"Site Name:"]
[]
[null,null,null,null,"Location - City, State:"]
[]
[null,null,null,null,"Number of externs:"]
[]
[]
[21,null,null,null,"Site Name:"]
[]
[null,null,null,null,"Location - City, State:"]
[]
[null,null,null,null,"Number of externs:"]
[]
[]
[22,null,null,null,"Site Name:"]
[]
[null,null,null,null,"Location - City, State:"]
[]
[null,null,null,null,"Number of externs:"]
[]
[]
[23,null,null,null,"Site Name:"]
[]
[null,null,null,null,"Location - City, State:"]
[]
[null,null,null,null,"Number of externs:"]
[]
[]
[24,null,null,null,"Site Name:"]
[]
[null,null,null,null,"Location - City, State:"]
[]
[null,null,null,null,"Number of externs:"]
[]
[]
[25,null,null,null,"Site Name:"]
[]
[null,null,null,null,"Location - City, State:"]
[]
[null,null,null,null,"Number of externs:"]
[]
[]
[26,null,null,null,"Site Name:"]
[]
[null,null,null,null,"Location - City, State:"]
[]
[null,null,null,null,"Number of externs:"]
[]
[]
[27,null,null,null,"Site Name:"]
[]
[null,null,null,null,"Location - City, State:"]
[]
[null,null,null,null,"Number of externs:"]
[]
[]
[28,null,null,null,"Site Name:"]
[]
[null,null,null,null,"Location - City, State:"]
[]
[null,null,null,null,"Number of externs:"]
[]
[]
[29,null,null,null,"Site Name:"]
[]
[null,null,null,null,"Location - City, State:"]
[]
[null,null,null,null,"Number of externs:"]
[]
[]
[30,null,null,null,"Site Name:"]
[]
[null,null,null,null,"Location - City, State:"]
[]
[null,null,null,null,"Number of externs:"]
[]
[]
["END OF EXTERNSHIP - PROCEED TO NEXT WORKSHEET TAB"]

{"sheet":"Distance Education","index":12,"n_rows":123,"n_cols":8,"rows_kept":123,"cut":false,"hidden":false,"merged":[[5,0,5,3],[90,1,94,5],[14,1,20,7],[25,1,31,7],[38,1,44,7],[49,1,55,7],[60,1,66,7],[77,1,77,5]]}
["New Program Application"]
["Pennsylvania State Board of Private Licensed Schools"]
[]
["If the program will be regulated by any other agencies, State Boards, or Departments in PDE, their approval letter to offer distance education must be included in the application's 'Documents' worksheet."]
[]
["Private Licensed Schools Memorandum #83 Distance Education"]
[]
["In addition to all other State Board of Private Licensed School new program application requirements, the following items must be submitted by schools applying to offer their program to include distance education."]
[]
["Instructors"]
[]
["Describe the experience and background required for instructors in distance education."]
["Embed a document if the information extends beyond the provided text box."]
[]
[]
[]
[]
[]
[]
[]
[]
[]
["Describe the training provided for instructors in distance education. The description should include topics covered, timeline to complete etc."]
["Embed a document if the information extends beyond the provided text box."]
[]
[]
[]
[]
[]
[]
[]
[]
[]
["Distance Education Information"]
[]
["List and describe the resources in place to support student success. "]
["Embed a document if the information extends beyond the provided text box."]
[]
[]
[]
[]
[]
[]
[]
[]
[]
["Provide a narrative as to how this delivery method will be effective for this specific program."]
["Embed a document if the information extends beyond the provided text box."]
[]
[]
[]
[]
[]
[]
[]
[]
[]
["Outline your distance education orientation process for incoming students. This outline should include when the orientation occurs, topics covered, duration etc."]
["Embed a document if the information extends beyond the provided text box."]
[]
[]
[]
[]
[]
[]
[]
[]
[]
["All approvals require a username and password for the reviewer to have full access to the courses being requested. Full courses must be accessible for review. If more than 25% of a program is to be "]
["taught via distance education, a minimum of 25% of the full courses must be accessible for review.  Incomplete courses will not be approved."]
[]
["Schools using non-LMS modalities of instruction, such a Zoom or Skype, must provide access to a 10-15 minute demonstration of the modality."]
["Schools using non-LMS modalities of instruction, such as Google Classroom, must provide access to the intended resource materials."]
["Links and/or access information to non-LMS modalities must be included in the documents worksheet of the application."]
[]
["Provide the URL where the distance education LMS may be accessed:"]
[]
[]
[]
["User Name:"]
[]
[]
[]
["Password:"]
[]
[]
[]
["Special instructions for accessing the site:"]
["Embed a document if the information extends beyond the provided text box."]
[]
[]
[]
[]
[]
[]
[]
["Technology and Equipment"]
[]
["List the technology and equipment that the students will need in order to be successful in completing portions of the program offered via distance education."]
[]
[null,"Technology/Equipment",null,"Make",null,"Model",null,"Specifications"]
[]
[]
[]
[]
[]
[]
[]
[]
[]
[]
[]
[]
[]
[]
[]
[]
[]
[]
[]
[]
[]
["END OF DISTANCE EDUCATION - PROCEED TO NEXT WORKSHEET TAB"]

{"sheet":"Enrollment Agreement","index":13,"n_rows":57,"n_cols":13,"rows_kept":57,"cut":false,"hidden":false,"merged":[[4,1,8,8],[54,1,54,9]]}
["New Program Application"]
["Pennsylvania State Board of Private Licensed Schools"]
[]
[null,"Embed a draft of the enrollment agreement which demonstrates the addition of the proposed new program."]
[]
[]
[]
[]
[]
[]
[null,"Complete the following checklist to certify that all requirements are included."]
[1,"The name and address of the school the student will be attending."]
[2,"The student's name."]
[3,"The program name as approved by the Board and identified in the school’s student information publication (catalog). "]
[4,"The number of clock hours, credit hours, or lessons and the number of weeks or months required to complete the course or program."]
[5,"The type of award the student will receive upon successful completion of the program (certificate, diploma, AST, ASB)."]
[6,"The costs for the following when applicable: "]
[null,null,"Total tuition for the program (for programs which include nonresident and resident training, the tuition"]
[null,null,"for the nonresident training, the tuition for the resident training, and the total tuition for the complete "]
[null,null,"combined program shall be stated)."]
[null,null,"Estimated costs for books and supplies (if the costs for books and supplies are included in the tuition, "]
[null,null,"this shall be clearly stated)."]
[null,null,"If interest or finance charges, or both, will be charged, the total amount of these charges shall be listed",null,null,null,null,null,null,null,null,null,"n/a"]
[null,null,"in accordance with Federal truth-in-lending and State retail installment requirements."]
[null,null,"If the school provides room or board, or both, the enrollment agreement shall specify that a separate ",null,null,null,null,null,null,null,null,null,"n/a"]
[null,null,"agreement shall be entered into for that purpose. "]
[null,null,"Other costs and charges, such as application fee, student activity fee or laboratory fees, shall be listed. ",null,null,null,null,null,null,null,null,null,"n/a"]
[7,"The terms of payment. The method and terms of payment of costs shall be clearly stated and shall comply with Federal "]
[null,"truth-in-lending and State retail installment requirements. "]
[8,"Student's enrolled start date."]
[9,"Cancellation policy (cancellation of enrollment prior to the start of classes, including refund of fees and tuition)."]
[10,"Refund policy (student withdrawal or school termination after the start of classes)."]
[11,"If employment assistance is provided, an employment guarantee disclaimer must be included. ",null,null,null,null,null,null,null,null,null,null,"n/a"]
[null,"This disclaimer shall be printed in boldface type, in at least 10-point type. "]
[12,"Complaint procedure. A statement informing students that: "]
[null,null,"There is an individual at the school to whom questions or concerns may be directed regarding the school’s "]
[null,null,"satisfying the terms of the enrollment agreement. This individual shall be identified by title. "]
[null,null,"The school is licensed or registered—as applicable—by the Pennsylvania State Board of Private Licensed Schools. "]
[null,null,"Questions or concerns that are not satisfactorily resolved by the school may be brought to the attention of the "]
[null,null,"Pennsylvania State Board of Private Licensed Schools, Division of Law Enforcement Education and Trade Schools, "]
[null,null,"Pennsylvania Department of Education, 607 South Drive, Floor 3E, Harrisburg, PA  17120"]
[13,"A statement verifying that the student has received, read, and understands the school's student information publication (catalog)."]
[14,"A statement acknowledging that the agreement is not binding until it is accepted by a representative of the school."]
[15,"An acknowledgement that the signers have received, read, and understands an exact copy of the fully signed enrollment agreement."]
[16,"An enrollment agreement shall be dated and signed by the applicant."]
[null,"If the applicant is a minor, the enrollment agreement shall be dated and signed by the parent or guardian.",null,null,null,null,null,null,null,null,null,null,"n/a"]
[null,"An enrollment agreement shall be dated and signed by a representative of the school (this will become the effective date)."]
[17,"If the enrollment agreement is longer than one side of a single sheet of paper, each side shall clearly refer to the conditions on ",null,null,null,null,null,null,null,null,null,null,"n/a"]
[null,"the other side as being part of the agreement. If more than one page is used, each page shall be numbered: "]
[null,"page 1 of X pages, page 2 of x pages and the like."]
[18,"If the program includes mandatory or optional distance education, it must be fully disclosed and transparent to the student.",null,null,null,null,null,null,null,null,null,null,"n/a"]
[19,"If the program includes mandatory or optional distance education, the technology requirements must be fully disclosed.",null,null,null,null,null,null,null,null,null,null,"n/a"]
[20,"Consumer Protection Policies and Disclosures to be provided to students during admission. ",null,null,null,null,null,null,null,null,null,null,"n/a"]
[null,"Consumer Protection Policies and Disclosures are required for CDL programs. Please refer to Policy Memo #93 to ensure all required information is included."]
[null,"​Private Licensed Schools Policy Memo #93 ​Commercial Truck Driving Programs "]
[]
["END OF ENROLLMENT AGREEMENT - PROCEED TO NEXT WORKSHEET TAB"]

{"sheet":"Catalog","index":14,"n_rows":43,"n_cols":21,"rows_kept":43,"cut":false,"hidden":false,"merged":[[40,20,40,26],[13,1,18,2],[13,4,18,5],[13,7,18,8],[12,1,12,2],[12,4,12,5],[12,7,12,8]]}
["New Program Application"]
["Pennsylvania State Board of Private Licensed Schools"]
[]
["Distance Education notes:"]
[null,"Assign a course number different from the on-ground course number for courses being taught via distance education or to be taught via distance education."]
[null,"Courses taught in part via distance education (hybrid) are still considered distance education and must be assigned a new course number."]
[null,"Course catalogs must reflect the on-ground and/or distance education assigned course numbers, when both delivery options are available to students."]
[null,"Academic transcripts must reflect the on-ground and/or distance education assigned course numbers attempted by the student."]
[]
[null,"Embed either a draft of the catalog which demonstrates the addition of the proposed program OR the current catalog and the necessary addendum; include affected school policies if adding distance education (i.e. make-up policy, attendance policy, etc.)."]
[null,"Ensure all program-specific information is included; i.e. tuition, admission requirements, courses, program award, etc."]
[]
[null,"Current Catalog",null,null,"Addendum",null,null,"Draft Catalog"]
[]
[]
[null,null,null,"and",null,null,"or"]
[]
[]
[]
[]
[null,"Complete the following list, indicating the corresponding page number where the information is located, to certify that all requirements are included within the student information publication (catalog)."]
[null,null,"Found on page number:"]
[null,null,null,1,"The name and address of the school."]
[null,null,null,2,"The date of publication—may not exceed 3 years from the date of submission. "]
[null,null,null,3,"Admission requirements and procedures. "]
[null,null,null,4,"The educational objectives of the program, including the name, occupation and level for which training is provided. "]
[null,null,null,5,"The number of clock hours or credit hours of instruction of each course, as well as the number of weeks or months required to complete the course or program."]
[null,null,null,6,"The courses offered, specifying sufficiently the subjects included to identify the coverage of the program and specifying sufficiently the modality(ies) by which the courses will be offered."]
[null,null,null,null,"If a course is offered both residentially/on-ground and via distance education, both course numbers are provided in the catalog"]
[null,null,null,7,"A general description of the school’s physical facilities. "]
[null,null,null,8,"Policies relating to tardiness, absences, makeup work, conduct, termination and other rules of the school or reference to the policies in another school publication which contains the information. "]
[null,null,null,9,"The grading system. "]
[null,null,null,10,"Requirements for graduation. "]
[null,null,null,11,"A statement which clearly defines whether a certificate, diploma, AST, or ASB is awarded upon graduation. "]
[null,null,null,12,"A statement of tuition and other student charges related to the enrollment, or reference to the statement in another school publication which contains the information."]
[null,null,null,13,"A statement of the school's cancellation policy (cancellation of enrollment prior to the start of classes, including refund of fees and tuition)."]
[null,null,null,null,"A statement of the school's refund policy (student withdrawal or school termination after the start of classes)."]
[null,null,null,14,"A description of placement assistance, if available, to students and graduates. ",null,null,null,null,null,null,null,null,null,null,"n/a"]
[null,null,null,15,"A description of available student services, if provided. ",null,null,null,null,null,null,null,"n/a"]
[null,null,null,16,"A school calendar, including holidays and either beginning and ending dates of courses and programs or a statement regarding the frequency of class starting policy or reference to the calendar in another student publication which contains the information. "]
[null,null,null,17,"A statement concerning transfer of credits that clarifies that there is no guarantee that credits earned at the school will transfer to another institution.",null,null,null,null,null,null,null,null,null,null,null,null,null,null,null,"​Private Licensed Schools Policy Memo #97 Statement Concerning Transfer of Credits/Hours (PDF)"]
[]
["END OF CATALOG - PROCEED TO NEXT WORKSHEET TAB"]

{"sheet":"Academic Performance","index":15,"n_rows":53,"n_cols":2,"rows_kept":53,"cut":false,"hidden":false,"merged":[[45,1,50,2],[25,1,30,2]]}
["New Program Application"]
["Pennsylvania State Board of Private Licensed Schools"]
[]
["Transcript of Academic Performance"]
[]
["A transcript of academic performance must be initiated for each student upon their program start date and must be retained for all students who have graduated, withdrawn, or whose enrollment has been terminated by the school."]
[]
["A transcript of academic performance must include the following. Complete the checklist to certify that all requirements are included."]
[null,"School name (the Board-approved school name) and full address of the school/branch location attended"]
[null,"Student's first and last name"]
[null,"Student's DOB (date of birth month, day, and year)"]
[null,"Student's home address"]
[null,"Student ID number (it is recommended that student social security numbers not be used)"]
[null,"Enrolled program (the Board-approved program name)"]
[null,"Program start date (the date the student began attending)"]
[null,"List of courses attempted and/or completed"]
[null,"Grades for each course attempted/completed (including 'I' for incomplete and 'W' for withdrawn courses)"]
[null,"Clock hours and/or credits for each course attempted/completed"]
[null,"Student's last date of attendance"]
[null,"Student status (active, leave of absence, graduated, withdrawn, terminated)"]
[null,"Student status change date"]
[null,"Earned award (if student has graduated - certificate or diploma program award)"]
[]
["Embed a copy of the proposed program's transcript of academic performance."]
[]
[]
[]
[]
[]
[]
[]
[]
["Program Award"]
[]
["Students who successfully complete (graduate) earn either a certificate or diploma program award."]
[]
["A program award must include the following. Complete the checklist to certify that all requirements are included."]
[null,"School name, city, and state"]
[null,"Student's name"]
[null,"Enrolled program (the Board-approved program name)"]
[null,"Date the award was conferred"]
[null,"Earned award (certificate or diploma program award)"]
[]
["Embed a copy of the award to be issued upon program completion (graduation)."]
[]
[]
[]
[]
[]
[]
[]
[]
["END OF ACADEMIC PERFORMANCE - PROCEED TO NEXT WORKSHEET TAB"]

{"sheet":"Financial Ledger","index":16,"n_rows":29,"n_cols":2,"rows_kept":29,"cut":false,"hidden":false,"merged":[[21,1,26,2]]}
["New Program Application"]
["Pennsylvania State Board of Private Licensed Schools"]
[]
["Financial Ledger"]
[]
["A financial ledger must be initiated for each student upon initial payment and must be retained for all students who have graduated, withdrawn, or whose enrollment has been terminated by the school."]
[]
["A financial ledger must include, at a minimum, the following items. Complete the checklist to certify that all requirements are included."]
[null,"School name (the Board-approved school name) and full address of the school/branch location attended"]
[null,"Student's name"]
[null,"ID number (it is recommended that student social security numbers not be used)"]
[null,"Enrolled program (the Board-approved program name)"]
[null,"Program start date (the date the student began attending)"]
[null,"Charges made to the student's account must be itemized with a clear description of the item charged."]
[null,"Payments or credits made to the student's account with a clear description of who made the payment or why the credit was applied."]
[null,"If charges are applied by payment period, applicable date ranges must be presented."]
[null,"Student's last date of attendance, if student is not actively enrolled."]
[null,"Student status (active, leave of absence, graduated, withdrawn, terminated)"]
[]
["Embed a sample of the financial ledger to be used."]
[]
[]
[]
[]
[]
[]
[]
[]
["END OF FINANCIAL LEDGER - PROCEED TO NEXT WORKSHEET TAB"]

{"sheet":"Documents","index":17,"n_rows":207,"n_cols":1,"rows_kept":207,"cut":false,"hidden":false,"merged":[[74,2,78,2],[7,2,11,2],[192,1,196,6],[200,2,204,2],[138,1,142,6],[146,2,150,2],[156,1,160,6],[164,2,168,2],[174,1,178,6],[182,2,186,2],[84,1,88,6],[92,2,96,2],[102,1,106,6],[110,2,114,2],[120,1,124,6],[128,2,132,2],[17,2,21,2],[38,2,42,2],[48,1,52,6],[56,2,60,2],[66,1,70,6],[30,1,34,6]]}
["New Program Application"]
["Pennsylvania State Board of Private Licensed Schools"]
[]
["If this program requires the approval of another approving entity in order for the program to be offered, embed a copy of the approval (or approval pending) letter."]
[]
["Embed document below:"]
[]
[]
[]
[]
[]
[]
[]
["If this program requires the approval of another approving entity to offer distance education, embed a copy of the approval (or approval pending) letter."]
[]
["Embed document below:"]
[]
[]
[]
[]
[]
[]
[]
["Additional material may not be required for traditional applications.  However, this space is available to allow you to submit additional documentation if needed. "]
["Please do not submit large additional documentation files unless they are clearly needed."]
[]
["Type of document:"]
[]
["Reason for submitting:"]
[]
[]
[]
[]
[]
[]
[]
["Embed document below:"]
[]
[]
[]
[]
[]
[]
[]
["Type of document:"]
[]
["Reason for submitting:"]
[]
[]
[]
[]
[]
[]
[]
["Embed document below:"]
[]
[]
[]
[]
[]
[]
[]
["Type of document:"]
[]
["Reason for submitting:"]
[]
[]
[]
[]
[]
[]
[]
["Embed document below:"]
[]
[]
[]
[]
[]
[]
[]
["Type of document:"]
[]
["Reason for submitting:"]
[]
[]
[]
[]
[]
[]
[]
["Embed document below:"]
[]
[]
[]
[]
[]
[]
[]
["Type of document:"]
[]
["Reason for submitting:"]
[]
[]
[]
[]
[]
[]
[]
["Embed document below:"]
[]
[]
[]
[]
[]
[]
[]
["Type of document:"]
[]
["Reason for submitting:"]
[]
[]
[]
[]
[]
[]
[]
["Embed document below:"]
[]
[]
[]
[]
[]
[]
[]
["Type of document:"]
[]
["Reason for submitting:"]
[]
[]
[]
[]
[]
[]
[]
["Embed document below:"]
[]
[]
[]
[]
[]
[]
[]
["Type of document:"]
[]
["Reason for submitting:"]
[]
[]
[]
[]
[]
[]
[]
["Embed document below:"]
[]
[]
[]
[]
[]
[]
[]
["Type of document:"]
[]
["Reason for submitting:"]
[]
[]
[]
[]
[]
[]
[]
["Embed document below:"]
[]
[]
[]
[]
[]
[]
[]
["Type of document:"]
[]
["Reason for submitting:"]
[]
[]
[]
[]
[]
[]
[]
["Embed document below:"]
[]
[]
[]
[]
[]
[]
[]
["END OF DOCUMENTS - PROCEED TO NEXT WORKSHEET TAB"]

{"sheet":"Submission","index":18,"n_rows":142,"n_cols":8,"rows_kept":142,"cut":false,"hidden":false,"merged":[[19,1,19,5],[20,1,20,6],[23,1,23,5],[35,1,35,2],[93,1,93,4],[94,1,94,4],[95,1,95,3],[96,1,96,3],[40,1,40,4]]}
["New Program Application"]
["Pennsylvania State Board of Private Licensed Schools"]
[]
["ATTENTION: THIS IS AN MICROSOFT EXCEL WORKBOOK.  Attempting to convert this document to any other format - including Mac/Apple Numbers - will cause this document to lose formatting and will deemed unacceptable for submission.  MS Excel must be used to complete this application."]
[]
["Do not attempt to unlock or modify this application.  You will be required to submit a new application if the submitted application is unlocked, unprotected, edited, or modified in any way."]
["If you experience issues with the application or require assistance, call the Division at (717)783-8228."]
[]
["Board staff communicates with school personnel during the application process and not any external consultants contracted to assist with the application process."]
[]
["Board staff is responsible for ensuring an application has all mandated information and documentation included before presenting the application to the Board for review.  "]
["Board staff is not responsible for the quality of the information or documentation included in applications.  "]
["Board staff may provide the school with guidance regarding the quality of the application, but this should not be considered a qualitative review of the application as that is the responsibility of the Board."]
["Ultimately it is the school's responsibility to ensure accurate, consistent, and full information is provided to the Board."]
["*The SharePoint links to the most recent applications uploaded by the school are shared with the Board.  The school is responsible for ensuring that the applications include all intended information and documents."]
[]
["New Program Application Seminar for Licensed/Registered Schools Required"]
[null,"Licensed/Registered schools intending to submit a New Program Application to the Board for consideration are required to have the individual completing the application, "]
[null,"or the individual certifying the application, participate in the 'New Director Seminar Part 1 - New Program Application' within the 12 months PRIOR to submission. "]
[null,"New Director Seminar Dates"]
[null,"New Director Seminar Registration Form"]
[]
["Published submission deadlines are firm for all items and can be viewed at:"]
[null,"Board Meeting Dates and Submission Deadlines"]
[]
[null,"Applications must be submitted/uploaded to SharePoint by the published deadline date."]
[null,"The submission must be uploaded by 2 p.m. on the deadline date.  "]
[null,"Applications submitted after 2 p.m. on the submission deadline date will be considered for the subsequent Board meeting."]
[]
[null,"The application fee, along with any site visit fees, must be received in our offices by the submission deadline."]
[]
["Fees / Fee Submission:"]
[null,"New Program Application - $1,400 (a maximum of three applications may be placed on the agenda for review per Board meeting)"]
[null,"Remote Location Site Visit(s) - $750 per site"]
[]
[null,"Online Payment Center"]
[]
[null,"Effective June 30, 2023, check and money order payments are no longer accepted.  All payments need to be made using the Online Payment Center. "]
[]
[null,"Review and follow the instructions for making an online payment:"]
[null,"Payment for Private Licensed School Fees"]
[]
[null,"Important Notes: "]
[null,"Please be sure to carefully select the correct Program ID (which is the service/item you are paying the fee for). Selecting an incorrect Program ID may delay the processing of the school's request, as the payment will be applied to the selected Program ID (service/item). "]
[null,"Program ID – 063 NEW PROGRAM APPLICATION CERTIFICATE/DIPLOMA"]
[null,"Payment Reference – please be sure to provide your school's name and city as the 'Payment Reference'. Failure to provide this information may delay the processing of the school's request as we will need to verify the source of any anonymous payments. "]
[null,"Email – to receive an emailed receipt of your payment, you must provide your email address when processing the payment.  Receiving an emailed receipt is recommended for all transactions, especially in the event the school fails to provide the school's name and city as the 'Payment Reference'. "]
[null,"There is a 2% transaction fee charged for credit cards.  There is no fee charged for ACH transactions. "]
[]
["Approval"]
[null,"Only when an application and the corresponding fees are received in our offices by the published submission deadline will Board staff review a New Program Application."]
[null,"No exceptions will be made.  No extensions will be provided. Submission deadlines are firm."]
[]
[null,"Staff will conduct a quantitative review of the application to ensure the application is materially complete and to confirm that the applicant is eligible to use the application prior to presenting the application to the Board for consideration."]
[null,"Staff will provide written notice of application deficiencies identified during the review.  Schools are strongly encouraged to cure staff-identified deficiencies to avoid potential delays in the approval of the application. "]
[null,"If a revised application is not submitted within the afforded 10-day revision time period, the revised application does not cure the identified deficiencies, or the application is otherwise materially incomplete the application will not be placed before the Board for consideration.  "]
[null,"Staff will place the New Program Application on the next Board meeting agenda only when the application is deemed materially complete.  "]
[null,"Applications expire one year following the submission deadline date in which the application was originally submitted for and are able to be considered for no more than four consecutive Board meetings."]
[]
[null,"The State Board of Private Licensed Schools will consider applications only when presented by Board staff, after staff has deemed the application is materially complete."]
[null,"The application will be assigned by the Division Chief to an appropriate Board member to serve as a reviewer of the application.  The Board member will conduct a qualitative review of the New Program Application."]
[null,"The application may also be assigned to the Board's Curriculum Committee (CC) as a reviewer for any distance education programming included in the application.  The CC will conduct a qualitative review of the applicant's distance education LMS, course materials, resources, etc."]
[null,"The applicant will be invited to attend the Board meeting in which the application's status will be voted on by the full Board."]
[null,"Staff will provide written confirmation of the Board's decision, along with notice of any deficiencies identified by the Board and the CC, as soon as possible following the Board meeting."]
[null,"The applicant will be afforded the opportunity to cure any application deficiencies, providing the request is not denied."]
[null,"If a revised application is not submitted within the afforded 10-day revision time period, the revised application does not cure the identified deficiencies, or the application is otherwise materially incomplete the application will not be placed before the Board for consideration.  "]
[]
[null,"The Board may vote to approve an application, approve it pending revisions, defer it for revisions and reconsideration at a subsequent Board meeting, or deny the application.  "]
[null,"The regulations afford the Board the authority to request additional information or materials from the applicant in addition to the information requested in this application."]
[]
[null,null,"An approved New Program Application enables the applicant to launch the approved program immediately. A written letter of approval will be sent by Board staff."]
[]
[null,null,"Applicants with an approved pending New Program Application will receive written notice from staff of any deficiencies identified by the Board and CC.  "]
[null,null,"The applicant will be afforded the opportunity to cure any application deficiencies and will receive a written letter of approval from Board staff when the deficiencies have been effectively cured."]
[null,null,"Approved pending New Program Applications expire one year following the Board meeting date on which the approved pending status was received."]
[null,null,"Once an application has expired, a new application and the corresponding fees will be required for any further consideration from the Board."]
[]
[null,null,"Applicants with a deferred New Program Application will receive written notice from staff of any deficiencies identified by the Board.  "]
[null,null,"The applicant will be afforded 10-days (refer to the resubmission deadline date provided in the cure letter) to cure any application deficiencies."]
[null,null,"If a revised application is not submitted within the afforded 10-day revision time period, the revised application does not cure the identified deficiencies, or the application is otherwise materially incomplete the application will need to be held for a subsequent meeting."]
[null,null,"It is important to note that not all necessary revisions may be identified during an initial or subsequent review.  As the application changes, additional concerns or inconsistencies may be identified.\t\t\t\t\t\t\t\t\t\t\t\t"]
[null,null,"Deferred New Program Applications expire one year following the submission deadline date in which the application was originally submitted for and are able to be considered for no more than four consecutive Board meetings."]
[null,null,"Once an application has expired, a new application and the corresponding fees will be required for any further consideration from the Board."]
[]
[null,null,"Applicants with a denied New Program Application will receive written notice of the denial from staff. "]
[null,null,"Applicants with a denied New Program Application should carefully consider the Board's feedback prior to future New Program Applications being submitted."]
[null,null,"Denied New Program Applications cannot be resubmitted and the same program from the applicant will not be immediately reconsidered."]
[]
["ATTENTION: THIS IS AN MICROSOFT EXCEL WORKBOOK.  Attempting to convert this document to any other format - including Mac/Apple Numbers - will cause this document to lose formatting and will deemed unacceptable for submission.  MS Excel must be used to complete this application."]
[]
["IMPORTANT - PLEASE READ"]
[]
["Carefully review the Statute, Regulations, and Board Policy Memos at:"]
[null,"Private Licensed Schools Act 174 of 1986"]
[null,"Private Licensed Schools Act 110 of 2019"]
[null,"22 Pa. Code Chapter 73"]
[null,"Board Policy Memos"]
[]
["Respond to all questions and requests for information/documentation.  Information may be added in the following ways:"]
[null,"1. Type directly in the box."]
[null,"2. Copy and paste text into the box."]
[null,"3. Embed documents as an icon."]
[null,null,"On the insert tab, choose Object.  Select Create from File, check to display as an icon.  Browse for your document."]
[null,null,"NOTE:  Always embed the document as an icon.  You should see a symbol (icon) in the application rather than the entire document. "]
[null,null,"If the entire document appears, you have not embedded the document as an icon."]
[]
[null,"The  application cannot exceed 200MB.  If your application is larger than 200MB, you may have included information that was not requested or you have embedded large files such as .jpg files.  "]
[null,"Change the format of any large files and eliminate anything that was not requested.  "]
[]
["File Naming Conventions"]
[null,"Begin the file name with the school name or abbreviation - if multiple campuses, note location - followed by the name or abbreviation of the program name."]
[null,"Do not use punctuation in the file name.  "]
[null,"NOTE:  When resubmitting revisions to the application, it is absolutely essential to use the exact same filename.  "]
[null,"NOTE:  When resubmitting revisions to the application, it is absolutely essential that the same registered user upload the revised application to SharePoint."]
[null,"Do not change the filename in any way.  Do not even add a number or date to indicate a new version."]
[]
["SharePoint Submission - REGISTERED USER"]
[]
["Keystone Logins cannot be used to gain access to the Private Licensed Schools SharePoint site."]
["PLS SharePoint site users must be registered with a PA Login.",null,null,null,null,null,null,"Register New PA Login"]
[null,"Note: Special characters cannot be used when registering a new user name (for example: ! @ # $ % & * etc. may not be used)."]
[]
["If this is your first time using the 'Registered User' option, you must first email and request access to the PLS SharePoint site."]
["To request access, or for general technical assistance, please email: ",null,null,null,null,null,null,"RA-PLS@pa.gov"]
[]
["When requesting access, please be sure to indicate the individual's name, username, and email associated with the PA Login."]
[]
[null,"1.   Go to:","SharePoint Submission Site"]
[null,"2.   Registered User Application Submission"]
[null,"3.   Enter your PA Login username"]
[null,"4.   Enter your PA Login password"]
[null,"5.   Select 'Add document' and check the box 'Add as a new version to existing files'"]
[null,"6.   Select 'Choose File' and select the file from your own drive.  Click 'OK'."]
[null,"7.  Under 'Content Type', select 'PLS New Program'."]
[null,"8.  Enter ALL OTHER INFORMATION as requested and click save."]
[null,null,"*You will now be able to view and independently confirm that your application has been successfully submitted."]
[]
[null,"NOTE:  Failure to enter ALL OTHER INFORMATION will result in your application not being submitted."]
[]
[null,"NOTE:  When resubmitting a revised application, it is absolutely essential to use the exact same filename as the original application."]
[]
["END OF SUBMISSION - PLEASE SUBMIT YOUR APPLICATION ACCORDINGLY"]